Service Delivery Area(T),Service Delivery Team(T),ExpenditureGroup(T),Account(T),Supplier Name(T),Trans Date,Amount
Adult Social Care,ASC Directorate,Employees,Professional Subs,ADASS Association of Directors of Adult Social Services,28/03/2024,2408
Adult Social Care,ASC Prevention & Enablement,Transport-Related Expenditure,Taxi Costs,Cartello Ambulance,22/03/2024,165
Adult Social Care,ASC Prevention & Enablement,Transport-Related Expenditure,Taxi Costs,Cartello Ambulance,22/03/2024,220
Adult Social Care,ASC Prevention & Enablement,Transport-Related Expenditure,Taxi Costs,Cartello Ambulance,22/03/2024,192.5
Adult Social Care,ASC Prevention & Enablement,Supplies & Services,Equipment - Hire,ARJO UK LTD,22/03/2024,620
Adult Social Care,ASC Prevention & Enablement,Transport-Related Expenditure,Taxi Costs,Cartello Ambulance,27/03/2024,220
Adult Social Care,ASC Prevention & Enablement,Transport-Related Expenditure,Taxi Costs,Cartello Ambulance,01/03/2024,165
Adult Social Care,ASC Prevention & Enablement,Transport-Related Expenditure,Taxi Costs,Cartello Ambulance,22/03/2024,192.5
Adult Social Care,ASC Prevention & Enablement,Transport-Related Expenditure,Taxi Costs,Cartello Ambulance,01/03/2024,187.25
Adult Social Care,ASC Prevention & Enablement,Transport-Related Expenditure,Taxi Costs,Cartello Ambulance,01/03/2024,192.5
Adult Social Care,ASC Prevention & Enablement,Transport-Related Expenditure,Taxi Costs,Cartello Ambulance,01/03/2024,192.5
Adult Social Care,ASC Prevention & Enablement,Third Party Payments,Nursing Expenditure,NHS Shropshire Telford & Wrekin ICB QOC Receivables,22/03/2024,6960
Adult Social Care,ASC Prevention & Enablement,Premises-Related Expenditure,Contract Cleaning,Vortex Cleaning Ltd,01/03/2024,825
Adult Social Care,ASC Prevention & Enablement,Premises-Related Expenditure,Hire Of Rooms,MEETING POINT TRUST LTD,22/03/2024,129.17
Adult Social Care,ASC Prevention & Enablement,Supplies & Services,Furniture - Purchase,CHRISBEON OFFICE SUPPLIES,15/03/2024,552.75
Adult Social Care,ASC Prevention & Enablement,Employees,Employee Costs Recharged,SHROPSHIRE COMMUNITY HEALTH NHS TRUST,20/03/2024,19662
Adult Social Care,ASC Prevention & Enablement,Premises-Related Expenditure,Contract Cleaning,CLEANIT CLEANING SERVICES,25/03/2024,1440
Adult Social Care,"Assurance, Transformation & Financial Management",Supplies & Services,Computer Software (Maint),LIQUIDLOGIC LIMITED,27/03/2024,16323
Adult Social Care,"Assurance, Transformation & Financial Management",Supplies & Services,Systems Procurement,Prepaid Financial Services Limited,21/03/2024,371.77
Adult Social Care,"Assurance, Transformation & Financial Management",Supplies & Services,Systems Procurement,Prepaid Financial Services Limited,21/03/2024,568.9
Adult Social Care,"Commissioning, Procurement & Brokerage",Third Party Payments,Interpreters Fees,EXPRESS INTERPRETING & TRANSLATION,26/03/2024,6263.1
Adult Social Care,"Commissioning, Procurement & Brokerage",Employees,Staff Training,Gidea Solutions Limited,05/03/2024,3500
Adult Social Care,Community Social Work & Adult Safeguarding,Supplies & Services,Other Grants (Expenses),POHWER,05/03/2024,19312.5
Adult Social Care,Community Social Work & Adult Safeguarding,Premises-Related Expenditure,Hire Of Rooms,MEETING POINT TRUST LTD,19/03/2024,147.54
Adult Social Care,Community Social Work & Adult Safeguarding,Supplies & Services,Other Grants (Expenses),POHWER,25/03/2024,19312.5
Adult Social Care,Community Social Work & Adult Safeguarding,Supplies & Services,Equipment - Hire,SKIPS TELFORD LTD,21/03/2024,828
Adult Social Care,Community Social Work & Adult Safeguarding,Employees,Staff Training,SHROPSHIRE COUNCIL ,19/03/2024,267
Adult Social Care,Community Social Work & Adult Safeguarding,Premises-Related Expenditure,Contract Cleaning,Vortex Cleaning Ltd,28/03/2024,1950
Adult Social Care,Community Social Work (Principal Social Worker),Transport-Related Expenditure,Taxi Costs,Telford and Wrekin Community Enterprise LTD,19/03/2024,195
Adult Social Care,Community Social Work (Principal Social Worker),Transport-Related Expenditure,Transport,More Than Care Telford,01/03/2024,4512.38
Adult Social Care,Community Social Work (Principal Social Worker),Supplies & Services,Medical Consultants Fees,Onside Independent Advocacy,19/03/2024,108.6
Adult Social Care,My Options,Capital Expenditure,Payments to Contractor,GRANVILLE CONSTRUCTION & MAINTENANCE LTD,13/03/2024,1800
Adult Social Care,My Options,Capital Expenditure,Payments to Contractor,GRANVILLE CONSTRUCTION & MAINTENANCE LTD,13/03/2024,1068.65
Adult Social Care,My Options,Premises-Related Expenditure,Clean Mats & Toilet Requisites,PHS GROUP,07/03/2024,165.5
Adult Social Care,My Options,Premises-Related Expenditure,Clean Mats & Toilet Requisites,PHS GROUP,07/03/2024,125.22
Adult Social Care,My Options,Premises-Related Expenditure,Clean Mats & Toilet Requisites,PHS GROUP,07/03/2024,125.22
Adult Social Care,My Options,Premises-Related Expenditure,Clean Mats & Toilet Requisites,PHS GROUP,07/03/2024,176.28
Adult Social Care,My Options,Premises-Related Expenditure,Clean Mats & Toilet Requisites,PHS GROUP,07/03/2024,206.79
Adult Social Care,My Options,Premises-Related Expenditure,Hire Of Rooms,All Saints Wellington,21/03/2024,255
Adult Social Care,My Options,Supplies & Services,Computer Software (Maint),Access UK Ltd,07/03/2024,150
Adult Social Care,My Options,Supplies & Services,Computer Software (Maint),Access UK Ltd,08/03/2024,150
Adult Social Care,My Options,Premises-Related Expenditure,Clean Mats & Toilet Requisites,BROSCH DIRECT LTD,13/03/2024,107.51
Adult Social Care,My Options,Employees,Agency Supply Costs,Safehands Recruitment,01/03/2024,6606.4
Adult Social Care,My Options,Employees,Agency Supply Costs,Safehands Recruitment,13/03/2024,5479.65
Adult Social Care,My Options,Premises-Related Expenditure,Clean Mats & Toilet Requisites,BERWICK CARE EQUIPMENT LTD,13/03/2024,184
Adult Social Care,My Options,Supplies & Services,Equipment - Purchase,MEDACO,07/03/2024,765
Adult Social Care,My Options,Premises-Related Expenditure,Clean Mats & Toilet Requisites,BERWICK CARE EQUIPMENT LTD,07/03/2024,241.15
Adult Social Care,My Options,Premises-Related Expenditure,Clean Mats & Toilet Requisites,BERWICK CARE EQUIPMENT LTD,07/03/2024,291.85
Adult Social Care,My Options,Premises-Related Expenditure,Clean Mats & Toilet Requisites,BERWICK CARE EQUIPMENT LTD,07/03/2024,202.82
Adult Social Care,My Options,Premises-Related Expenditure,Clean Mats & Toilet Requisites,BERWICK CARE EQUIPMENT LTD,07/03/2024,143.79
Adult Social Care,My Options,Employees,Agency Supply Costs,Safehands Recruitment,21/03/2024,7000.79
Adult Social Care,My Options,Employees,Agency Supply Costs,Safehands Recruitment,21/03/2024,7390.66
Adult Social Care,My Options,Premises-Related Expenditure,Clean Mats & Toilet Requisites,BERWICK CARE EQUIPMENT LTD,21/03/2024,471.09
Adult Social Care,My Options,Supplies & Services,Equipment - Purchase,MEDACO,20/03/2024,130.8
Adult Social Care,My Options,Premises-Related Expenditure,R&M -Buildings DLO Charge,A E Chapman & Co (Old Hill) Ltd,18/03/2024,237.36
Adult Social Care,My Options,Premises-Related Expenditure,R&M -Buildings DLO Charge,A E Chapman & Co (Old Hill) Ltd,25/03/2024,260.82
Adult Social Care,My Options,Employees,Agency Supply Costs,Safehands Recruitment,13/03/2024,146.3
Adult Social Care,My Options,Employees,Agency Supply Costs,Safehands Recruitment,21/03/2024,231
Adult Social Care,My Options,Employees,Agency Supply Costs,Safehands Recruitment,21/03/2024,292.6
Adult Social Care,My Options,Employees,Agency Supply Costs,Safehands Recruitment,21/03/2024,158.95
Adult Social Care,My Options,Supplies & Services,Computer Software (Maint),Access UK Ltd,07/03/2024,494.4
Adult Social Care,My Options,Supplies & Services,Computer Software (Maint),Access UK Ltd,08/03/2024,494.4
Adult Social Care,My Options,Supplies & Services,Adult Flexi / Day Care,Redacted Personal Information,25/03/2024,1732.2
Adult Social Care,My Options,Supplies & Services,Respite Care,Redacted Personal Information,05/03/2024,1030.4
Adult Social Care,My Options,Supplies & Services,Respite Care,Redacted Personal Information,25/03/2024,115.48
Adult Social Care,My Options,Supplies & Services,Respite Care,Redacted Personal Information,25/03/2024,173.22
Adult Social Care,My Options,Employees,Agency Supply Costs,Safehands Recruitment,01/03/2024,704.54
Adult Social Care,My Options,Employees,Agency Supply Costs,Safehands Recruitment,01/03/2024,4959.35
Adult Social Care,My Options,Supplies & Services,Respite Care,Redacted Personal Information,04/03/2024,683.76
Adult Social Care,My Options,Supplies & Services,Respite Care,Redacted Personal Information,04/03/2024,683.76
Adult Social Care,My Options,Supplies & Services,Respite Care,Redacted Personal Information,04/03/2024,1159.48
Adult Social Care,My Options,Employees,Agency Supply Costs,Safehands Recruitment,13/03/2024,1109.3
Adult Social Care,My Options,Employees,Agency Supply Costs,Safehands Recruitment,13/03/2024,3836.8
Adult Social Care,My Options,Premises-Related Expenditure,Clean Mats & Toilet Requisites,BERWICK CARE EQUIPMENT LTD,07/03/2024,109.72
Adult Social Care,My Options,Employees,Agency Supply Costs,Safehands Recruitment,21/03/2024,6334.9
Adult Social Care,My Options,Employees,Agency Supply Costs,Safehands Recruitment,21/03/2024,398.87
Adult Social Care,My Options,Employees,Agency Supply Costs,Safehands Recruitment,21/03/2024,1228.14
Adult Social Care,My Options,Employees,Agency Supply Costs,Safehands Recruitment,21/03/2024,6425.65
Adult Social Care,My Options,Supplies & Services,Registration / Licence Fees,OFSTED,25/03/2024,910
Adult Social Care,Prevention & Independence - Older Adults & Disability,Transport-Related Expenditure,Taxi Costs,Cartello Ambulance,13/03/2024,192.5
Adult Social Care,Prevention & Independence - Older Adults & Disability,Supplies & Services,Aids & Appliances,OTICON LIMITED,06/03/2024,120
Adult Social Care,Prevention & Independence - Older Adults & Disability,Supplies & Services,Aids & Appliances,Possum Ltd,07/03/2024,640
Adult Social Care,Prevention & Independence - Older Adults & Disability,Supplies & Services,Aids & Appliances,Possum Ltd,11/03/2024,765
Adult Social Care,Prevention & Independence - Older Adults & Disability,Supplies & Services,Aids & Appliances,Possum Ltd,12/03/2024,895
Adult Social Care,Prevention & Independence - Older Adults & Disability,Supplies & Services,Aids & Appliances,Easylink,14/03/2024,293.5
Adult Social Care,Prevention & Independence - Older Adults & Disability,Supplies & Services,Aids & Appliances,Easylink,18/03/2024,168.3
Adult Social Care,Prevention & Independence - Older Adults & Disability,Supplies & Services,Equipment - Repair,Closomat Limited,08/03/2024,515
Adult Social Care,Prevention & Independence - Older Adults & Disability,Supplies & Services,Mobile Phones,EE LTD EQUIPMENT ,06/03/2024,105
Adult Social Care,Prevention & Independence - Older Adults & Disability,Supplies & Services,Aids & Appliances,OSPREY HEALTHCARE LTD,06/03/2024,296.7
Adult Social Care,Prevention & Independence - Older Adults & Disability,Supplies & Services,Equipment - Repair,STANNAH LIFT SERVICES LTD,06/03/2024,149.8
Adult Social Care,Prevention & Independence - Older Adults & Disability,Supplies & Services,Equipment - Repair,STANNAH LIFT SERVICES LTD,06/03/2024,409.26
Adult Social Care,Prevention & Independence - Older Adults & Disability,Supplies & Services,Equipment - Repair,Closomat Limited,07/03/2024,205
Adult Social Care,Prevention & Independence - Older Adults & Disability,Supplies & Services,Equipment - Repair,Closomat Limited,07/03/2024,205
Adult Social Care,Prevention & Independence - Older Adults & Disability,Supplies & Services,Equipment - Repair,Closomat Limited,07/03/2024,205
Adult Social Care,Prevention & Independence - Older Adults & Disability,Supplies & Services,Aids & Appliances,Nottingham Rehab Ltd,07/03/2024,115
Adult Social Care,Prevention & Independence - Older Adults & Disability,Supplies & Services,Aids & Appliances,OSPREY HEALTHCARE LTD,12/03/2024,1280.8
Adult Social Care,Prevention & Independence - Older Adults & Disability,Supplies & Services,Equipment - Purchase,OSPREY HEALTHCARE LTD,18/03/2024,155
Adult Social Care,Prevention & Independence - Older Adults & Disability,Supplies & Services,Aids & Appliances,OSPREY HEALTHCARE LTD,18/03/2024,208
Adult Social Care,Prevention & Independence - Older Adults & Disability,Supplies & Services,Aids & Appliances,OSPREY HEALTHCARE LTD,18/03/2024,207
Adult Social Care,Prevention & Independence - Older Adults & Disability,Supplies & Services,Equipment - Repair,Closomat Limited,27/03/2024,205
Adult Social Care,Prevention & Independence - Older Adults & Disability,Supplies & Services,Equipment - Repair,STANNAH LIFT SERVICES LTD,26/03/2024,149.8
Adult Social Care,Prevention & Independence - Older Adults & Disability,Supplies & Services,Equipment - Repair,STANNAH LIFT SERVICES LTD,26/03/2024,150.61
Adult Social Care,Prevention & Independence - Older Adults & Disability,Supplies & Services,Equipment - Repair,Closomat Limited,26/03/2024,205
Adult Social Care,Prevention & Independence - Older Adults & Disability,Supplies & Services,Equipment - Repair,STANNAH LIFT SERVICES LTD,26/03/2024,184.18
Adult Social Care,Prevention & Independence - Older Adults & Disability,Supplies & Services,Equipment - Repair,STANNAH LIFT SERVICES LTD,26/03/2024,527.53
Adult Social Care,Prevention & Independence - Older Adults & Disability,Supplies & Services,Equipment - Repair,STANNAH LIFT SERVICES LTD,26/03/2024,228.93
Adult Social Care,Prevention & Independence - Older Adults & Disability,Employees,Staff Training,A1 Risk Solutions Ltd,04/03/2024,595
Adult Social Care,Prevention & Independence - Older Adults & Disability,Employees,Staff Training,PARTNERS IN CARE,26/03/2024,847
Adult Social Care,Prevention & Independence - Older Adults & Disability,Employees,Staff Training,PARTNERS IN CARE,26/03/2024,924
Adult Social Care,Prevention & Independence - Older Adults & Disability,Supplies & Services,Aids & Appliances,SHROPSHIRE COMMUNITY HEALTH NHS TRUST,26/03/2024,6301.66
Adult Social Care,Prevention & Independence - Older Adults & Disability,Premises-Related Expenditure,Contract Cleaning,CLEANIT CLEANING SERVICES,13/03/2024,1390
Adult Social Care,Prevention & Independence - Older Adults & Disability,Supplies & Services,Translation Services,VISS Sign Language Interpreting Service,13/03/2024,120
Adult Social Care,Prevention & Independence - Older Adults & Disability,Transport-Related Expenditure,Taxi Costs,Telford and Wrekin Community Enterprise LTD,13/03/2024,180
Adult Social Care,Prevention & Independence - Older Adults & Disability,Transport-Related Expenditure,Taxi Costs,1st Choice,13/03/2024,175
Adult Social Care,Prevention & Independence - Older Adults & Disability,Transport-Related Expenditure,Taxi Costs,Cartello Ambulance,13/03/2024,187.25
Adult Social Care,Prevention & Independence - Older Adults & Disability,Transport-Related Expenditure,Taxi Costs,Cartello Ambulance,13/03/2024,220
Adult Social Care,Prevention & Independence - Older Adults & Disability,Transport-Related Expenditure,Taxi Costs,Cartello Ambulance,05/03/2024,360
Adult Social Care,Prevention & Independence - Older Adults & Disability,Transport-Related Expenditure,Taxi Costs,Cartello Ambulance,05/03/2024,360
Adult Social Care,Prevention & Independence - Older Adults & Disability,Transport-Related Expenditure,Taxi Costs,1st Choice,05/03/2024,105
Adult Social Care,Prevention & Independence - Older Adults & Disability,Supplies & Services,Legal Expenses,WEIGHTMANS,05/03/2024,220.5
Adult Social Care,Prevention & Independence - Older Adults & Disability,Transport-Related Expenditure,Taxi Costs,1st Choice,20/03/2024,140
Adult Social Care,Prevention & Independence - Older Adults & Disability,Transport-Related Expenditure,Taxi Costs,1st Choice,20/03/2024,105
Adult Social Care,Prevention & Independence - Older Adults & Disability,Transport-Related Expenditure,Taxi Costs,1st Choice,20/03/2024,140
Adult Social Care,Prevention & Independence - Older Adults & Disability,Supplies & Services,Legal Expenses,St Ives Chambers,05/03/2024,1250
Children's Safeguarding & Family Support,Child Protection & Family Support,Transport-Related Expenditure,Taxi Costs,Ezy Car Ltd,05/03/2024,3198
Children's Safeguarding & Family Support,Child Protection & Family Support,Transport-Related Expenditure,Taxi Costs,Ezy Car Ltd,05/03/2024,1938.6
Children's Safeguarding & Family Support,Child Protection & Family Support,Transport-Related Expenditure,Taxi Costs,Ezy Car Ltd,05/03/2024,454.65
Children's Safeguarding & Family Support,Child Protection & Family Support,Transport-Related Expenditure,Taxi Costs,Ezy Car Ltd,05/03/2024,1878.69
Children's Safeguarding & Family Support,Child Protection & Family Support,Transport-Related Expenditure,Taxi Costs,Ezy Car Ltd,05/03/2024,799.5
Children's Safeguarding & Family Support,Child Protection & Family Support,Transport-Related Expenditure,Taxi Costs,Ezy Car Ltd,05/03/2024,389.7
Children's Safeguarding & Family Support,Child Protection & Family Support,Transport-Related Expenditure,Taxi Costs,Ezy Car Ltd,05/03/2024,129.9
Children's Safeguarding & Family Support,Child Protection & Family Support,Transport-Related Expenditure,Taxi Costs,Redacted Personal Information,19/03/2024,902.4
Children's Safeguarding & Family Support,Child Protection & Family Support,Employees,Agency Supply Costs,Matrix SCM,22/03/2024,144778.9
Children's Safeguarding & Family Support,Child Protection & Family Support,Employees,Course Fees,Ability Smart Ltd,25/03/2024,490
Children's Safeguarding & Family Support,Child Protection & Family Support,Transport-Related Expenditure,Taxi Costs,Redacted Personal Information,05/03/2024,2129.8
Children's Safeguarding & Family Support,Child Protection & Family Support,Supplies & Services,Other Services,BASE 25,04/03/2024,2000
Children's Safeguarding & Family Support,Child Protection & Family Support,Supplies & Services,Grants To Voluntary Organis,YMCA,04/03/2024,19876.4
Children's Safeguarding & Family Support,Child Protection & Family Support,Supplies & Services,Other Grants (Expenses),Midlands Partnership NHS Foundation Trust,22/03/2024,10395.67
Children's Safeguarding & Family Support,Child Protection & Family Support,Supplies & Services,Other Grants (Expenses),Midlands Partnership NHS Foundation Trust,22/03/2024,10395.67
Children's Safeguarding & Family Support,Child Protection & Family Support,Supplies & Services,Other Services,Midlands Partnership NHS Foundation Trust,22/03/2024,32000
Children's Safeguarding & Family Support,Child Protection & Family Support,Employees,Professional Subs,H D Consultancy Limited,22/03/2024,125
Children's Safeguarding & Family Support,Child Protection & Family Support,Supplies & Services,Materials,PEARSON EDUCATIONAL ,22/03/2024,477.75
Children's Safeguarding & Family Support,Child Protection & Family Support,Supplies & Services,Other Services,SOLIHULL METROPOLITAN BOROUGH COUNCIL,13/03/2024,3168
Children's Safeguarding & Family Support,Child Protection & Family Support,Premises-Related Expenditure,Hire Of Rooms,Mercure Telford Centre Hotel,04/03/2024,143.34
Children's Safeguarding & Family Support,Child Protection & Family Support,Supplies & Services,Subscriptions,ADCS,04/03/2024,1901
Children's Safeguarding & Family Support,Child Protection & Family Support,Supplies & Services,Consultancy,Impower Consulting Limited,22/03/2024,76304.04
Children's Safeguarding & Family Support,Child Protection & Family Support,Supplies & Services,Other Services,SOLIHULL METROPOLITAN BOROUGH COUNCIL,22/03/2024,33650
Children's Safeguarding & Family Support,Child Protection & Family Support,Supplies & Services,Consultancy,Impower Consulting Limited,22/03/2024,72000
Children's Safeguarding & Family Support,Child Protection & Family Support,Supplies & Services,Consultancy,Impower Consulting Limited,22/03/2024,101725.71
Children's Safeguarding & Family Support,Child Protection & Family Support,Premises-Related Expenditure,Hire Of Rooms,MEETING POINT TRUST LTD,19/03/2024,129.17
Children's Safeguarding & Family Support,Child Protection & Family Support,Supplies & Services,Other Grants (Expenses),Midlands Partnership NHS Foundation Trust,01/03/2024,41535.31
Children's Safeguarding & Family Support,Child Protection & Family Support,Transport-Related Expenditure,Taxi Costs,Ezy Car Ltd,12/03/2024,1918.4
Children's Safeguarding & Family Support,Child Protection & Family Support,Employees,Staff Training,Ability Smart Ltd,26/03/2024,1368
Children's Safeguarding & Family Support,Child Protection & Family Support,Supplies & Services,Other Grants (Expenses),VOLUNTEERING MATTERS,26/03/2024,13924.6
Children's Safeguarding & Family Support,Family Connect & Childrens Centres,Supplies & Services,Books,AMITY RELATIONSHIP SOLUTIONS,07/03/2024,3264.87
Children's Safeguarding & Family Support,Family Connect & Childrens Centres,Employees,Course Fees,AMITY RELATIONSHIP SOLUTIONS,07/03/2024,4000
Children's Safeguarding & Family Support,Family Connect & Childrens Centres,Supplies & Services,Comp Hardware (Purch / Hire),CCS MEDIA LIMITED,15/03/2024,175
Children's Safeguarding & Family Support,Family Connect & Childrens Centres,Employees,Staff Training,PUBLIC POLICY EXCHANGE LIMITED,11/03/2024,258
Children's Safeguarding & Family Support,Family Connect & Childrens Centres,Premises-Related Expenditure,Hire Of Rooms,MEETING POINT TRUST LTD,19/03/2024,291.69
Children's Safeguarding & Family Support,Family Connect & Childrens Centres,Supplies & Services,Stationery,SIGNS EXPRESS (TELFORD),01/03/2024,1416.86
Children's Safeguarding & Family Support,Family Connect & Childrens Centres,Supplies & Services,Events,Redacted Personal Information,04/03/2024,200
Children's Safeguarding & Family Support,Family Connect & Childrens Centres,Supplies & Services,Other Grants (Expenses),GREAT DAWLEY PARISH COUNCIL,04/03/2024,9500
Children's Safeguarding & Family Support,Family Connect & Childrens Centres,Supplies & Services,Other Grants (Expenses),GREAT DAWLEY PARISH COUNCIL,04/03/2024,3000
Children's Safeguarding & Family Support,Family Connect & Childrens Centres,Supplies & Services,Marketing & Publicity,GREAT DAWLEY PARISH COUNCIL,04/03/2024,1200
Children's Safeguarding & Family Support,Family Connect & Childrens Centres,Supplies & Services,Equipment - Purchase,GREAT DAWLEY PARISH COUNCIL,04/03/2024,5000
Children's Safeguarding & Family Support,Family Connect & Childrens Centres,Supplies & Services,Equipment - Purchase,GREAT DAWLEY PARISH COUNCIL,04/03/2024,1000
Children's Safeguarding & Family Support,Family Connect & Childrens Centres,Supplies & Services,Other Services,Redacted Personal Information,07/03/2024,4500
Children's Safeguarding & Family Support,Family Connect & Childrens Centres,Supplies & Services,Other Services,GREAT DAWLEY PARISH COUNCIL,12/03/2024,1000
Children's Safeguarding & Family Support,Family Connect & Childrens Centres,Supplies & Services,Equipment - Purchase,GREAT DAWLEY PARISH COUNCIL,12/03/2024,17500
Children's Safeguarding & Family Support,Family Connect & Childrens Centres,Supplies & Services,Translation Services,Premium Linguistic Services,12/03/2024,570.9
Children's Safeguarding & Family Support,Family Connect & Childrens Centres,Premises-Related Expenditure,Hire Of Rooms,MEETING POINT TRUST LTD,12/03/2024,179.5
Children's Safeguarding & Family Support,Family Connect & Childrens Centres,Employees,Staff Training,The Fatherhood Institute,25/03/2024,18000
Children's Safeguarding & Family Support,Family Connect & Childrens Centres,Supplies & Services,Consultancy,The Fatherhood Institute,25/03/2024,12000
Children's Safeguarding & Family Support,Family Connect & Childrens Centres,Supplies & Services,Other Services,TELFORD & WREKIN CITIZENS ADVICE BUREAU,26/03/2024,3750
Children's Safeguarding & Family Support,Family Connect & Childrens Centres,Supplies & Services,Other Services,TELFORD & WREKIN CITIZENS ADVICE BUREAU,26/03/2024,3750
Children's Safeguarding & Family Support,Family Connect & Childrens Centres,Supplies & Services,Licences,Alchemer LLC,26/03/2024,865
Children's Safeguarding & Family Support,Family Connect & Childrens Centres,Supplies & Services,Conference Expenses,Mercure Telford Centre Hotel,22/03/2024,247.08
Children's Safeguarding & Family Support,Family Connect & Childrens Centres,Supplies & Services,Conference Expenses,Mercure Telford Centre Hotel,22/03/2024,247.08
Children's Safeguarding & Family Support,Family Connect & Childrens Centres,Supplies & Services,Conference Expenses,Mercure Telford Centre Hotel,22/03/2024,247.08
Children's Safeguarding & Family Support,Family Connect & Childrens Centres,Supplies & Services,Other Services,The Breastfeeding Network,27/03/2024,43750
Children's Safeguarding & Family Support,Family Connect & Childrens Centres,Supplies & Services,Other Services,PODS,27/03/2024,6250
Children's Safeguarding & Family Support,Family Connect & Childrens Centres,Employees,Staff Training,MEETING POINT TRUST LTD,28/03/2024,203.84
Children's Safeguarding & Family Support,Family Connect & Childrens Centres,Employees,Staff Training,MEETING POINT TRUST LTD,28/03/2024,203.84
Children's Safeguarding & Family Support,"Family Placements, Children in Care, Leaving Care & Emergency Duty Team",Supplies & Services,Form F Assessments,PC Assessments Ltd,15/03/2024,2180.9
Children's Safeguarding & Family Support,"Family Placements, Children in Care, Leaving Care & Emergency Duty Team",Supplies & Services,Form F Assessments,EW Assessments ltd,13/03/2024,533.33
Children's Safeguarding & Family Support,"Family Placements, Children in Care, Leaving Care & Emergency Duty Team",Supplies & Services,Form F Assessments,EW Assessments ltd,13/03/2024,314.63
Children's Safeguarding & Family Support,"Family Placements, Children in Care, Leaving Care & Emergency Duty Team",Supplies & Services,Form F Assessments,PC Assessments Ltd,13/03/2024,533.3
Children's Safeguarding & Family Support,"Family Placements, Children in Care, Leaving Care & Emergency Duty Team",Supplies & Services,Doctors Fees,Pontesbury and Worthen Medical Practice,25/03/2024,220
Children's Safeguarding & Family Support,"Family Placements, Children in Care, Leaving Care & Emergency Duty Team",Premises-Related Expenditure,Hire Of Rooms,MEETING POINT TRUST LTD,12/03/2024,105.83
Children's Safeguarding & Family Support,"Family Placements, Children in Care, Leaving Care & Emergency Duty Team",Supplies & Services,Holidays & Outings,Kangaroo Castles,13/03/2024,250
Children's Safeguarding & Family Support,"Family Placements, Children in Care, Leaving Care & Emergency Duty Team",Supplies & Services,Registration / Licence Fees,Coram Academy Limited,12/03/2024,3808.9
Children's Safeguarding & Family Support,"Family Placements, Children in Care, Leaving Care & Emergency Duty Team",Supplies & Services,Consultancy,STAFFORDSHIRE COUNTY COUNCIL,12/03/2024,2829.1
Children's Safeguarding & Family Support,"Family Placements, Children in Care, Leaving Care & Emergency Duty Team",Supplies & Services,Registration / Licence Fees,Coram Academy Limited,12/03/2024,2808.6
Children's Safeguarding & Family Support,"Family Placements, Children in Care, Leaving Care & Emergency Duty Team",Supplies & Services,Advertising,Bauer Radio Ltd,25/03/2024,936.92
Children's Safeguarding & Family Support,"Family Placements, Children in Care, Leaving Care & Emergency Duty Team",Supplies & Services,Other Services,Sea Change Psychotherapy Limited,16/03/2024,375
Children's Safeguarding & Family Support,"Family Placements, Children in Care, Leaving Care & Emergency Duty Team",Third Party Payments,Childminders,HADLEY UNDER 5'S,04/03/2024,347
Children's Safeguarding & Family Support,"Family Placements, Children in Care, Leaving Care & Emergency Duty Team",Third Party Payments,Childminders,Country Kids Day Nursery,16/03/2024,228
Children's Safeguarding & Family Support,"Family Placements, Children in Care, Leaving Care & Emergency Duty Team",Employees,Training Exp's (Facilitators),ES-PBS Services,02/03/2024,250
Children's Safeguarding & Family Support,"Family Placements, Children in Care, Leaving Care & Emergency Duty Team",Employees,Training Exp's (Facilitators),ES-PBS Services,19/03/2024,500
Children's Safeguarding & Family Support,"Family Placements, Children in Care, Leaving Care & Emergency Duty Team",Supplies & Services,Aids & Appliances,MIDSHIRES MOBILITY GROUP,07/03/2024,183
Children's Safeguarding & Family Support,"Family Placements, Children in Care, Leaving Care & Emergency Duty Team",Supplies & Services,Aids & Appliances,MIDSHIRES MOBILITY GROUP,07/03/2024,2906.5
Children's Safeguarding & Family Support,"Family Placements, Children in Care, Leaving Care & Emergency Duty Team",Supplies & Services,Aids & Appliances,MIDSHIRES MOBILITY GROUP,08/03/2024,2972.25
Children's Safeguarding & Family Support,"Family Placements, Children in Care, Leaving Care & Emergency Duty Team",Supplies & Services,Furniture - Purchase,POSTURITE (UK) LTD,07/03/2024,270
Children's Safeguarding & Family Support,"Family Placements, Children in Care, Leaving Care & Emergency Duty Team",Supplies & Services,Aids & Appliances,M A Smith Associates,07/03/2024,340
Children's Safeguarding & Family Support,"Family Placements, Children in Care, Leaving Care & Emergency Duty Team",Supplies & Services,Aids & Appliances,G & S SMIRTHWAITE LTD,07/03/2024,656
Children's Safeguarding & Family Support,"Family Placements, Children in Care, Leaving Care & Emergency Duty Team",Supplies & Services,Aids & Appliances,OSPREY HEALTHCARE LTD,25/03/2024,172
Children's Safeguarding & Family Support,"Family Placements, Children in Care, Leaving Care & Emergency Duty Team",Supplies & Services,Aids & Appliances,Tough Furniture Ltd,25/03/2024,601
Children's Safeguarding & Family Support,"Family Placements, Children in Care, Leaving Care & Emergency Duty Team",Employees,Training Exp's (Facilitators),ES-PBS Services,02/03/2024,250
Children's Safeguarding & Family Support,"Family Placements, Children in Care, Leaving Care & Emergency Duty Team",Supplies & Services,Furniture - Purchase,Hetleys (UK) Limited,25/03/2024,415
Children's Safeguarding & Family Support,"Family Placements, Children in Care, Leaving Care & Emergency Duty Team",Premises-Related Expenditure,Hire Of Rooms,MEETING POINT TRUST LTD,02/03/2024,917.08
Children's Safeguarding & Family Support,"Family Placements, Children in Care, Leaving Care & Emergency Duty Team",Premises-Related Expenditure,Hire Of Rooms,MEETING POINT TRUST LTD,12/03/2024,917.08
Children's Safeguarding & Family Support,"Family Placements, Children in Care, Leaving Care & Emergency Duty Team",Supplies & Services,Section 17 Childrens Act,Birmingham City Council,02/03/2024,120
Children's Safeguarding & Family Support,"Family Placements, Children in Care, Leaving Care & Emergency Duty Team",Supplies & Services,Section 17 Childrens Act,BOURNVILLE VILLAGE TRUST,19/03/2024,457.6
Children's Safeguarding & Family Support,"Family Placements, Children in Care, Leaving Care & Emergency Duty Team",Premises-Related Expenditure,Hire Of Rooms,MEETING POINT TRUST LTD,12/03/2024,115
Children's Safeguarding & Family Support,"Family Placements, Children in Care, Leaving Care & Emergency Duty Team",Transport-Related Expenditure,Taxi Costs,1st Choice,19/03/2024,455
Children's Safeguarding & Family Support,"Family Placements, Children in Care, Leaving Care & Emergency Duty Team",Transport-Related Expenditure,Taxi Costs,1st Choice,19/03/2024,3600
Children's Safeguarding & Family Support,"Family Placements, Children in Care, Leaving Care & Emergency Duty Team",Transport-Related Expenditure,Taxi Costs,1st Choice,19/03/2024,1235
Children's Safeguarding & Family Support,"Family Placements, Children in Care, Leaving Care & Emergency Duty Team",Transport-Related Expenditure,Taxi Costs,1st Choice,19/03/2024,3420
Children's Safeguarding & Family Support,"Family Placements, Children in Care, Leaving Care & Emergency Duty Team",Transport-Related Expenditure,Taxi Costs,1st Choice,19/03/2024,2880
Children's Safeguarding & Family Support,"Family Placements, Children in Care, Leaving Care & Emergency Duty Team",Transport-Related Expenditure,Taxi Costs,1st Choice,19/03/2024,130
Children's Safeguarding & Family Support,"Family Placements, Children in Care, Leaving Care & Emergency Duty Team",Transport-Related Expenditure,Taxi Costs,1st Choice,19/03/2024,405
Children's Safeguarding & Family Support,"Family Placements, Children in Care, Leaving Care & Emergency Duty Team",Transport-Related Expenditure,Taxi Costs,1st Choice,05/03/2024,180
Children's Safeguarding & Family Support,Safeguarding Advisory,Third Party Payments,Private Contractors,Change Grow Live Services Ltd ,14/03/2024,5106.75
"Communities, Customer & Commercial Services",Community Services,Supplies & Services,Equipment - Purchase,Symmetrikit,19/03/2024,1373.75
"Communities, Customer & Commercial Services",Community Services,Supplies & Services,Protective Clothing,The Purple Company (UK) Ltd,19/03/2024,735
"Communities, Customer & Commercial Services",Community Services,Supplies & Services,Materials,Shropshire Wildlife Trading Company Ltd,28/03/2024,153
"Communities, Customer & Commercial Services",Community Services,Supplies & Services,Grants To Voluntary Organis,YMCA,06/03/2024,1000
"Communities, Customer & Commercial Services",Community Services,Supplies & Services,Grants To Voluntary Organis,HADLEY & LEEGOMERY PARISH COUNCIL,06/03/2024,2870
"Communities, Customer & Commercial Services",Community Services,Supplies & Services,Grants To Voluntary Organis,TELFORD MIND,06/03/2024,2000
"Communities, Customer & Commercial Services",Community Services,Supplies & Services,Grants To Voluntary Organis,TELFORD MIND,06/03/2024,800
"Communities, Customer & Commercial Services",Community Services,Supplies & Services,Grants To Voluntary Organis,Lawley Primary School Fund,06/03/2024,750
"Communities, Customer & Commercial Services",Community Services,Supplies & Services,Grants To Voluntary Organis,Telford Sea Cadets & Marine Cadets,06/03/2024,750
"Communities, Customer & Commercial Services",Community Services,Supplies & Services,Grants To Voluntary Organis,Telford Sea Cadets & Marine Cadets,06/03/2024,500
"Communities, Customer & Commercial Services",Community Services,Supplies & Services,Grants To Voluntary Organis,Telford Sea Cadets & Marine Cadets,06/03/2024,750
"Communities, Customer & Commercial Services",Community Services,Supplies & Services,Grants To Voluntary Organis,Telford & Wrekin Deaf Community Group,06/03/2024,600
"Communities, Customer & Commercial Services",Community Services,Supplies & Services,Grants To Voluntary Organis,TELFORD MIND,06/03/2024,389.16
"Communities, Customer & Commercial Services",Community Services,Supplies & Services,Grants To Voluntary Organis,Holy Trinity Church Oakengates,06/03/2024,950
"Communities, Customer & Commercial Services",Community Services,Supplies & Services,Grants To Voluntary Organis,"St Mary the Virgin Church, Ketley",06/03/2024,500
"Communities, Customer & Commercial Services",Community Services,Supplies & Services,Grants To Voluntary Organis,HADLEY & LEEGOMERY PARISH COUNCIL,06/03/2024,975
"Communities, Customer & Commercial Services",Community Services,Supplies & Services,Grants To Voluntary Organis,HADLEY & LEEGOMERY PARISH COUNCIL,06/03/2024,325
"Communities, Customer & Commercial Services",Community Services,Supplies & Services,Other Services,OVE ARUP & PARTNERS LIMITED,19/03/2024,690
"Communities, Customer & Commercial Services",Community Services,Supplies & Services,Grants To Voluntary Organis,Lawley Primary School Fund,13/03/2024,389.16
"Communities, Customer & Commercial Services",Community Services,Supplies & Services,Grants To Voluntary Organis,1ST PRIORSLEE & ST GEORGES SCOUT GROUP,13/03/2024,250
"Communities, Customer & Commercial Services",Community Services,Supplies & Services,Grants To Voluntary Organis,A Better Tomorrow C.I.C.,13/03/2024,200
"Communities, Customer & Commercial Services",Community Services,Supplies & Services,Grants To Voluntary Organis,OAKENGATES TOWN COUNCIL,13/03/2024,200
"Communities, Customer & Commercial Services",Community Services,Supplies & Services,Grants To Voluntary Organis,PCC Priorslee,13/03/2024,250
"Communities, Customer & Commercial Services",Community Services,Supplies & Services,Grants To Voluntary Organis,Club 2000,13/03/2024,1000
"Communities, Customer & Commercial Services",Community Services,Supplies & Services,Grants To Voluntary Organis,Ironbridge WWII Weekend,13/03/2024,300
"Communities, Customer & Commercial Services",Community Services,Supplies & Services,Grants To Voluntary Organis,All Sports Coaches Coaching Academy,13/03/2024,649.2
"Communities, Customer & Commercial Services",Community Services,Supplies & Services,Grants To Voluntary Organis,All Sports Coaches Coaching Academy,13/03/2024,500
"Communities, Customer & Commercial Services",Community Services,Supplies & Services,Grants To Voluntary Organis,RAF (Dawley) Squadron ATC,14/03/2024,250
"Communities, Customer & Commercial Services",Community Services,Supplies & Services,Grants To Voluntary Organis,St Patrick�s Primary School Association,14/03/2024,1000
"Communities, Customer & Commercial Services",Community Services,Supplies & Services,Grants To Voluntary Organis,WROCKWARDINE WOOD & TRENCH PC ,16/03/2024,1000
"Communities, Customer & Commercial Services",Community Services,Supplies & Services,Grants To Voluntary Organis,WROCKWARDINE WOOD & TRENCH PC ,16/03/2024,500
"Communities, Customer & Commercial Services",Community Services,Supplies & Services,Grants To Voluntary Organis,MADELEY TOWN COUNCIL ,16/03/2024,4000
"Communities, Customer & Commercial Services",Community Services,Supplies & Services,Grants To Voluntary Organis,WELLINGTON TOWN COUNCIL,22/03/2024,281
"Communities, Customer & Commercial Services",Community Services,Supplies & Services,Grants To Voluntary Organis,THE GORGE PARISH COUNCIL ,22/03/2024,400
"Communities, Customer & Commercial Services",Community Services,Premises-Related Expenditure,Electricity,West Mercia Energy (WME),21/03/2024,947.03
"Communities, Customer & Commercial Services",Community Services,Supplies & Services,Grants To Voluntary Organis,1st Priorslee Rainbows and Brownies,22/03/2024,250
"Communities, Customer & Commercial Services",Community Services,Supplies & Services,Grants To Voluntary Organis,Newport Youth Cafe,22/03/2024,2500
"Communities, Customer & Commercial Services",Community Services,Supplies & Services,Grants To Voluntary Organis,Wellington Methodist Church Art Group,22/03/2024,1000
"Communities, Customer & Commercial Services",Community Services,Supplies & Services,Grants To Voluntary Organis,LITTLE DRAGONS PRE-SCHOOL,26/03/2024,200
"Communities, Customer & Commercial Services",Community Services,Supplies & Services,Grants To Voluntary Organis,Newport Girls Football Club,26/03/2024,530
"Communities, Customer & Commercial Services",Community Services,Supplies & Services,Grants To Voluntary Organis,Aldersley High School,25/03/2024,2500
"Communities, Customer & Commercial Services",Community Services,Supplies & Services,Grants To Voluntary Organis,TIBBERTON & CHERRINGTON PARISH COUNCIL,28/03/2024,1000
"Communities, Customer & Commercial Services",Community Services,Supplies & Services,Grants To Voluntary Organis,PSG Football Club,28/03/2024,250
"Communities, Customer & Commercial Services",Community Services,Supplies & Services,Grants To Voluntary Organis,1st Wrekin (Hadley) Scouts,28/03/2024,596.95
"Communities, Customer & Commercial Services",Community Services,Supplies & Services,Grants To Voluntary Organis,TIBBERTON & CHERRINGTON PARISH COUNCIL,28/03/2024,1000
"Communities, Customer & Commercial Services",Community Services,Supplies & Services,Grants To Voluntary Organis,6th Wellington Guides,28/03/2024,200
"Communities, Customer & Commercial Services",Community Services,Supplies & Services,Grants To Voluntary Organis,Severn Hospice Ltd,28/03/2024,210
"Communities, Customer & Commercial Services",Culture & Events,Supplies & Services,Grants To Voluntary Organis,GREAT DAWLEY PARISH COUNCIL,12/03/2024,2500
"Communities, Customer & Commercial Services",Culture & Events,Supplies & Services,Grants To Voluntary Organis,OAKENGATES TOWN COUNCIL,19/03/2024,2500
"Communities, Customer & Commercial Services",Culture & Events,Supplies & Services,Registration / Licence Fees,PPL PRS Ltd,15/03/2024,-392.86
"Communities, Customer & Commercial Services",Culture & Events,Supplies & Services,Artistes Fees,Anstice Community Trust,01/03/2024,1425.6
"Communities, Customer & Commercial Services",Culture & Events,Supplies & Services,Artistes Fees,Cordingley Hall,07/03/2024,115.63
"Communities, Customer & Commercial Services",Culture & Events,Supplies & Services,Artistes Fees,Ticketplan Limited,07/03/2024,102.68
"Communities, Customer & Commercial Services",Culture & Events,Supplies & Services,Artistes Fees,Simon Fielder Productions,07/03/2024,1853.08
"Communities, Customer & Commercial Services",Culture & Events,Supplies & Services,Artistes Fees,Orangebox Theatre Group Ltd,07/03/2024,2795.25
"Communities, Customer & Commercial Services",Culture & Events,Supplies & Services,Promotion Expenses,Spektrix Limited,07/03/2024,2172.97
"Communities, Customer & Commercial Services",Culture & Events,Supplies & Services,Artistes Fees,Soul Promotions Ltd,05/03/2024,1164
"Communities, Customer & Commercial Services",Culture & Events,Supplies & Services,Wet Resale Provision,MOLSON COORS BREWING COMPANY UK LTD,17/03/2024,149.68
"Communities, Customer & Commercial Services",Culture & Events,Supplies & Services,Wet Resale Provision,MOLSON COORS BREWING COMPANY UK LTD,17/03/2024,299.36
"Communities, Customer & Commercial Services",Culture & Events,Supplies & Services,Wet Resale Provision,MOLSON COORS BREWING COMPANY UK LTD,17/03/2024,149.68
"Communities, Customer & Commercial Services",Culture & Events,Supplies & Services,Wet Resale Provision,MOLSON COORS BREWING COMPANY UK LTD,17/03/2024,238.68
"Communities, Customer & Commercial Services",Culture & Events,Supplies & Services,Wet Resale Provision,MOLSON COORS BREWING COMPANY UK LTD,17/03/2024,130.25
"Communities, Customer & Commercial Services",Culture & Events,Supplies & Services,Wet Resale Provision,MOLSON COORS BREWING COMPANY UK LTD,17/03/2024,299.36
"Communities, Customer & Commercial Services",Culture & Events,Supplies & Services,Wet Resale Provision,MOLSON COORS BREWING COMPANY UK LTD,13/03/2024,2423.81
"Communities, Customer & Commercial Services",Culture & Events,Supplies & Services,Wet Resale Provision,MOLSON COORS BREWING COMPANY UK LTD,17/03/2024,2007.32
"Communities, Customer & Commercial Services",Customer Relationships & Welfare Services,Supplies & Services,Other Grants (Expenses),Discretionary Household Support,05/03/2024,1465
"Communities, Customer & Commercial Services",Customer Relationships & Welfare Services,Supplies & Services,Other Grants (Expenses),Hawk Incentives Ltd (Crown Commercial Services),06/03/2024,323999.04
"Communities, Customer & Commercial Services",Customer Relationships & Welfare Services,Transfer Payments,Crisis Assistance Awards,PayPoint Network Limited,12/03/2024,215
"Communities, Customer & Commercial Services",Customer Relationships & Welfare Services,Supplies & Services,Other Grants (Expenses),Discretionary Household Support,11/03/2024,500
"Communities, Customer & Commercial Services",Customer Relationships & Welfare Services,Supplies & Services,Other Grants (Expenses),Discretionary Household Support,27/03/2024,1200
"Communities, Customer & Commercial Services",Customer Relationships & Welfare Services,Transfer Payments,Crisis Assistance Awards,PayPoint Network Limited,20/03/2024,150
"Communities, Customer & Commercial Services",Customer Relationships & Welfare Services,Supplies & Services,Other Grants (Expenses),Discretionary Household Support,20/03/2024,817.7
"Communities, Customer & Commercial Services",Customer Relationships & Welfare Services,Supplies & Services,Other Grants (Expenses),Discretionary Household Support,20/03/2024,1956.71
"Communities, Customer & Commercial Services",Customer Relationships & Welfare Services,Supplies & Services,Other Grants (Expenses),Discretionary Household Support,18/03/2024,1075
"Communities, Customer & Commercial Services",Customer Relationships & Welfare Services,Supplies & Services,Other Grants (Expenses),Discretionary Household Support,27/03/2024,250
"Communities, Customer & Commercial Services",Customer Relationships & Welfare Services,Supplies & Services,Other Grants (Expenses),Discretionary Household Support,22/03/2024,700
"Communities, Customer & Commercial Services",Customer Relationships & Welfare Services,Supplies & Services,Other Grants (Expenses),Discretionary Household Support,22/03/2024,400
"Communities, Customer & Commercial Services",Customer Relationships & Welfare Services,Supplies & Services,Other Grants (Expenses),Hawk Incentives Ltd (Crown Commercial Services),21/03/2024,2468
"Communities, Customer & Commercial Services",Customer Relationships & Welfare Services,Transfer Payments,Crisis Assistance Awards,PayPoint Network Limited,26/03/2024,159
"Communities, Customer & Commercial Services",Customer Relationships & Welfare Services,Supplies & Services,Permit Production - Blue Badge,Valtech Limited,04/03/2024,560.28
"Communities, Customer & Commercial Services",Customer Relationships & Welfare Services,Supplies & Services,Permit Production - Blue Badge,APS Group,04/03/2024,1220.46
"Communities, Customer & Commercial Services",Customer Relationships & Welfare Services,Supplies & Services,Bus Pass Production,Euclid Limited,07/03/2024,895.84
"Communities, Customer & Commercial Services",Customer Relationships & Welfare Services,Supplies & Services,Blue Badge Assessments,Ascenti,07/03/2024,330
"Communities, Customer & Commercial Services",Customer Relationships & Welfare Services,Supplies & Services,Computer Software (Maint),NEC Software Solutions UK Ltd,19/03/2024,45143
"Communities, Customer & Commercial Services",Customer Relationships & Welfare Services,Supplies & Services,Bus Pass Production,Unicard Ltd,14/03/2024,10032.75
"Communities, Customer & Commercial Services",Customer Relationships & Welfare Services,Supplies & Services,Bus Pass Production,Unicard Ltd,14/03/2024,3344.25
"Communities, Customer & Commercial Services",Customer Relationships & Welfare Services,Supplies & Services,Translation Services,VISS Sign Language Interpreting Service,27/03/2024,120
"Communities, Customer & Commercial Services",Customer Relationships & Welfare Services,Supplies & Services,Permit Production - Blue Badge,Valtech Limited,27/03/2024,386.4
"Communities, Customer & Commercial Services",Customer Relationships & Welfare Services,Supplies & Services,Postages,ROYAL MAIL GROUP PLC ,27/03/2024,1848
"Communities, Customer & Commercial Services",Customer Relationships & Welfare Services,Supplies & Services,Comp Software (Purch / Hire),IEG4 Limited,25/03/2024,6435
"Communities, Customer & Commercial Services",Customer Relationships & Welfare Services,Transfer Payments,Crisis Assistance Awards,Kings of the Road,07/03/2024,475
"Communities, Customer & Commercial Services",Customer Relationships & Welfare Services,Transfer Payments,Crisis Assistance Awards,Kings of the Road,27/03/2024,325
"Communities, Customer & Commercial Services",Customer Relationships & Welfare Services,Employees,Staff Training,DUDLEY METROPOLITAN BOROUGH COUNCIL,26/03/2024,280
"Communities, Customer & Commercial Services",Customer Relationships & Welfare Services,Employees,Staff Training,DUDLEY METROPOLITAN BOROUGH COUNCIL,26/03/2024,560
"Communities, Customer & Commercial Services",Customer Relationships & Welfare Services,Employees,Staff Training,DUDLEY METROPOLITAN BOROUGH COUNCIL,26/03/2024,190
"Communities, Customer & Commercial Services",Customer Relationships & Welfare Services,Premises-Related Expenditure,Grounds Maintenance - Other,OASIS PLANTS LIMITED,22/03/2024,623.63
"Communities, Customer & Commercial Services",Customer Relationships & Welfare Services,Employees,Staff Training,DUDLEY METROPOLITAN BOROUGH COUNCIL,28/03/2024,200
"Communities, Customer & Commercial Services",Customer Relationships & Welfare Services,Employees,Staff Training,DUDLEY METROPOLITAN BOROUGH COUNCIL,28/03/2024,200
"Communities, Customer & Commercial Services",Customer Relationships & Welfare Services,Employees,Professional Subs,DUDLEY METROPOLITAN BOROUGH COUNCIL,28/03/2024,195
"Communities, Customer & Commercial Services",Customer Relationships & Welfare Services,Employees,Staff Training,ICCM,04/03/2024,250
"Communities, Customer & Commercial Services",Customer Relationships & Welfare Services,Supplies & Services,Equipment - Purchase,Black Country Metal Works Ltd,26/03/2024,500
"Communities, Customer & Commercial Services",ICT,Capital Expenditure,Payments to Contractor,Bramble Hub Limited,12/03/2024,8458.33
"Communities, Customer & Commercial Services",ICT,Capital Expenditure,Payments to Contractor,FarrPoint Ltd,12/03/2024,2400
"Communities, Customer & Commercial Services",ICT,Capital Expenditure,Payments to Contractor,Bramble Hub Limited,12/03/2024,7000
"Communities, Customer & Commercial Services",ICT,Capital Expenditure,Payments to Contractor,Zellis UK Ltd,12/03/2024,3760
"Communities, Customer & Commercial Services",ICT,Capital Expenditure,Payments to Contractor,Zellis UK Ltd,12/03/2024,1316
"Communities, Customer & Commercial Services",ICT,Capital Expenditure,Payments to Contractor,Zellis UK Ltd,12/03/2024,3384
"Communities, Customer & Commercial Services",ICT,Capital Expenditure,Computer Hardware,Aqua Cooling Ltd,21/03/2024,2781
"Communities, Customer & Commercial Services",ICT,Capital Expenditure,Computer Hardware,CCS MEDIA LIMITED,15/03/2024,5400
"Communities, Customer & Commercial Services",ICT,Capital Expenditure,Computer Hardware,CCS MEDIA LIMITED,15/03/2024,2950
"Communities, Customer & Commercial Services",ICT,Capital Expenditure,Payments to Contractor,Bramble Hub Limited,26/03/2024,8833.33
"Communities, Customer & Commercial Services",ICT,Capital Expenditure,Payments to Contractor,Bramble Hub Limited,27/03/2024,11072.25
"Communities, Customer & Commercial Services",ICT,Supplies & Services,Comp Hardware (Purch / Hire),CCS MEDIA LIMITED,15/03/2024,260
"Communities, Customer & Commercial Services",ICT,Supplies & Services,Comp Hardware (Purch / Hire),CCS MEDIA LIMITED,15/03/2024,8572.4
"Communities, Customer & Commercial Services",ICT,Supplies & Services,Comp Hardware (Purch / Hire),CCS MEDIA LIMITED,15/03/2024,886.8
"Communities, Customer & Commercial Services",ICT,Premises-Related Expenditure,Hire Of Rooms,Coalbrookdale and Ironbridge Community Centre,19/03/2024,273
"Communities, Customer & Commercial Services",ICT,Supplies & Services,Telephones,Trustmarque Solutions Limited,01/03/2024,2901.03
"Communities, Customer & Commercial Services",ICT,Supplies & Services,Telephones,BRITISH TELECOMMUNICATIONS PLC ,13/03/2024,8592.33
"Communities, Customer & Commercial Services",ICT,Supplies & Services,Text Messages,KONICA MINOLTA BUSINESS SOLUTIONS UK LTD,12/03/2024,334.29
"Communities, Customer & Commercial Services",ICT,Supplies & Services,Telephones,Trustmarque Solutions Limited,27/03/2024,2852.81
"Communities, Customer & Commercial Services",ICT,Supplies & Services,Mobile Phones,EE LTD AIRTIME ,06/03/2024,13411.35
"Communities, Customer & Commercial Services",ICT,Premises-Related Expenditure,Intra Committee - Premises,Aqua Cooling Ltd,28/03/2024,552
"Communities, Customer & Commercial Services",ICT,Premises-Related Expenditure,Intra Committee - Premises,Aqua Cooling Ltd,28/03/2024,5531.19
"Communities, Customer & Commercial Services",ICT,Premises-Related Expenditure,Service Contracts,PP ELECTRICAL SERVICES (Shropshire) Ltd,01/03/2024,275
"Communities, Customer & Commercial Services",ICT,Premises-Related Expenditure,R&M -Buildings DLO Charge,COOL SERVICES LTD,05/03/2024,450
"Communities, Customer & Commercial Services",ICT,Premises-Related Expenditure,R&M -Buildings DLO Charge,COOL SERVICES LTD,08/03/2024,360
"Communities, Customer & Commercial Services",ICT,Premises-Related Expenditure,Service Contracts,PP ELECTRICAL SERVICES (Shropshire) Ltd,28/03/2024,2498
"Communities, Customer & Commercial Services",ICT,Premises-Related Expenditure,R&M -Buildings DLO Charge,AVK/SEG (UK) Ltd,27/03/2024,368.42
"Communities, Customer & Commercial Services",ICT,Premises-Related Expenditure,R&M -Building Other,Charlton Academy,27/03/2024,3174.14
"Communities, Customer & Commercial Services",ICT,Supplies & Services,Comp Software (Purch / Hire),ICS.Al Ltd,06/03/2024,8673.5
"Communities, Customer & Commercial Services",ICT,Supplies & Services,External Computer Use,ESTEEM SYSTEMS Ltd,05/03/2024,13555.37
"Communities, Customer & Commercial Services",ICT,Supplies & Services,Comp Software (Purch / Hire),NEC Software Solutions UK Ltd,08/03/2024,62103
"Communities, Customer & Commercial Services",ICT,Supplies & Services,Computer Hardware (Maint),NEC Software Solutions UK Ltd,19/03/2024,62346
"Communities, Customer & Commercial Services",ICT,Supplies & Services,Comp Software (Purch / Hire),IDOX SOFTWARE LTD,27/03/2024,32279.3
"Communities, Customer & Commercial Services",ICT,Supplies & Services,Comp Software (Purch / Hire),IDOX SOFTWARE LTD,28/03/2024,29129.1
"Communities, Customer & Commercial Services",ICT,Supplies & Services,Comp Software (Purch / Hire),Strive AV Ltd,28/03/2024,300
"Communities, Customer & Commercial Services",ICT,Supplies & Services,Stationery,PREMIER PAPER GROUP LTD,19/03/2024,263.63
"Communities, Customer & Commercial Services",ICT,Supplies & Services,Comp Software (Purch / Hire),ScholarPack,01/03/2024,712
"Communities, Customer & Commercial Services",ICT,Supplies & Services,Comp Software (Purch / Hire),ScholarPack,01/03/2024,1176
"Communities, Customer & Commercial Services",ICT,Supplies & Services,Comp Software (Purch / Hire),ScholarPack,01/03/2024,792
"Communities, Customer & Commercial Services",ICT,Supplies & Services,Comp Software (Purch / Hire),ScholarPack,01/03/2024,3360
"Communities, Customer & Commercial Services",ICT,Supplies & Services,Comp Hardware (Purch / Hire),Lenovo Global Technology UK Limited,12/03/2024,6383.42
"Communities, Customer & Commercial Services",ICT,Supplies & Services,Comp Hardware (Purch / Hire),ICTn Limited,21/03/2024,254.5
"Communities, Customer & Commercial Services",ICT,Supplies & Services,Equipment - Purchase,CCS MEDIA LIMITED,18/03/2024,2625
"Communities, Customer & Commercial Services",ICT,Supplies & Services,Equipment - Purchase,CCS MEDIA LIMITED,18/03/2024,3009
"Communities, Customer & Commercial Services",ICT,Supplies & Services,Comp Hardware (Purch / Hire),CCS MEDIA LIMITED,15/03/2024,118
"Communities, Customer & Commercial Services",ICT,Supplies & Services,Mobile Phones,EE LTD EQUIPMENT ,19/03/2024,375
"Communities, Customer & Commercial Services",ICT,Supplies & Services,Comp Hardware (Purch / Hire),CCS MEDIA LIMITED,21/03/2024,102
"Communities, Customer & Commercial Services",ICT,Supplies & Services,Stationery,PREMIER PAPER GROUP LTD,25/03/2024,294.3
"Communities, Customer & Commercial Services",Sport & Leisure,Premises-Related Expenditure,Clean Mats & Toilet Requisites,Border Janitorial Supplies Limited,14/03/2024,360
"Communities, Customer & Commercial Services",Sport & Leisure,Premises-Related Expenditure,Clean Mats & Toilet Requisites,Border Janitorial Supplies Limited,14/03/2024,289
"Communities, Customer & Commercial Services",Sport & Leisure,Premises-Related Expenditure,Clean Mats & Toilet Requisites,Border Janitorial Supplies Limited,14/03/2024,101.12
"Communities, Customer & Commercial Services",Sport & Leisure,Premises-Related Expenditure,Clean Mats & Toilet Requisites,Border Janitorial Supplies Limited,14/03/2024,179.45
"Communities, Customer & Commercial Services",Sport & Leisure,Employees,Agency Supply Costs,TOTAL CATERING SOLUTONS RECRUITMENT LTD,14/03/2024,325.28
"Communities, Customer & Commercial Services",Sport & Leisure,Premises-Related Expenditure,Clean Mats & Toilet Requisites,Border Janitorial Supplies Limited,14/03/2024,246.54
"Communities, Customer & Commercial Services",Sport & Leisure,Premises-Related Expenditure,Clean Mats & Toilet Requisites,Border Janitorial Supplies Limited,14/03/2024,198
"Communities, Customer & Commercial Services",Sport & Leisure,Premises-Related Expenditure,Clean Mats & Toilet Requisites,Border Janitorial Supplies Limited,14/03/2024,706.05
"Communities, Customer & Commercial Services",Sport & Leisure,Premises-Related Expenditure,Clean Mats & Toilet Requisites,Border Janitorial Supplies Limited,14/03/2024,326.16
"Communities, Customer & Commercial Services",Sport & Leisure,Employees,Agency Supply Costs,TOTAL CATERING SOLUTONS RECRUITMENT LTD,14/03/2024,256.8
"Communities, Customer & Commercial Services",Sport & Leisure,Employees,Agency Supply Costs,TOTAL CATERING SOLUTONS RECRUITMENT LTD,14/03/2024,291.04
"Communities, Customer & Commercial Services",Sport & Leisure,Premises-Related Expenditure,Clean Mats & Toilet Requisites,Border Janitorial Supplies Limited,22/03/2024,114.48
"Communities, Customer & Commercial Services",Sport & Leisure,Premises-Related Expenditure,Clean Mats & Toilet Requisites,Border Janitorial Supplies Limited,28/03/2024,148.34
"Communities, Customer & Commercial Services",Sport & Leisure,Premises-Related Expenditure,Clean Mats & Toilet Requisites,Border Janitorial Supplies Limited,14/03/2024,356.27
"Communities, Customer & Commercial Services",Sport & Leisure,Premises-Related Expenditure,Clean Mats & Toilet Requisites,Border Janitorial Supplies Limited,14/03/2024,125.24
"Communities, Customer & Commercial Services",Sport & Leisure,Premises-Related Expenditure,Clean Mats & Toilet Requisites,Border Janitorial Supplies Limited,14/03/2024,162.18
"Communities, Customer & Commercial Services",Sport & Leisure,Premises-Related Expenditure,Clean Mats & Toilet Requisites,Border Janitorial Supplies Limited,14/03/2024,196.42
"Communities, Customer & Commercial Services",Sport & Leisure,Employees,Agency Supply Costs,TOTAL CATERING SOLUTONS RECRUITMENT LTD,14/03/2024,359.52
"Communities, Customer & Commercial Services",Sport & Leisure,Premises-Related Expenditure,Clean Mats & Toilet Requisites,Border Janitorial Supplies Limited,14/03/2024,249.43
"Communities, Customer & Commercial Services",Sport & Leisure,Premises-Related Expenditure,Clean Mats & Toilet Requisites,Border Janitorial Supplies Limited,14/03/2024,100.71
"Communities, Customer & Commercial Services",Sport & Leisure,Premises-Related Expenditure,Clean Mats & Toilet Requisites,Border Janitorial Supplies Limited,14/03/2024,267.58
"Communities, Customer & Commercial Services",Sport & Leisure,Premises-Related Expenditure,Clean Mats & Toilet Requisites,Border Janitorial Supplies Limited,21/03/2024,114.55
"Communities, Customer & Commercial Services",Sport & Leisure,Premises-Related Expenditure,Clean Mats & Toilet Requisites,Border Janitorial Supplies Limited,21/03/2024,113.75
"Communities, Customer & Commercial Services",Sport & Leisure,Premises-Related Expenditure,Clean Mats & Toilet Requisites,Border Janitorial Supplies Limited,21/03/2024,182.56
"Communities, Customer & Commercial Services",Sport & Leisure,Premises-Related Expenditure,Clean Mats & Toilet Requisites,Border Janitorial Supplies Limited,28/03/2024,293.25
"Communities, Customer & Commercial Services",Sport & Leisure,Premises-Related Expenditure,Clean Mats & Toilet Requisites,Border Janitorial Supplies Limited,28/03/2024,112.08
"Communities, Customer & Commercial Services",Sport & Leisure,Premises-Related Expenditure,Clean Mats & Toilet Requisites,Border Janitorial Supplies Limited,28/03/2024,123.21
"Communities, Customer & Commercial Services",Sport & Leisure,Premises-Related Expenditure,Clean Mats & Toilet Requisites,Border Janitorial Supplies Limited,14/03/2024,120.23
"Communities, Customer & Commercial Services",Sport & Leisure,Premises-Related Expenditure,Clean Mats & Toilet Requisites,Border Janitorial Supplies Limited,20/03/2024,107.08
"Communities, Customer & Commercial Services",Sport & Leisure,Premises-Related Expenditure,Clean Mats & Toilet Requisites,Border Janitorial Supplies Limited,20/03/2024,152.64
"Communities, Customer & Commercial Services",Sport & Leisure,Premises-Related Expenditure,Clean Mats & Toilet Requisites,Border Janitorial Supplies Limited,20/03/2024,148.75
"Communities, Customer & Commercial Services",Sport & Leisure,Premises-Related Expenditure,Clean Mats & Toilet Requisites,Border Janitorial Supplies Limited,14/03/2024,114.48
"Communities, Customer & Commercial Services",Sport & Leisure,Employees,Agency Supply Costs,TOTAL CATERING SOLUTONS RECRUITMENT LTD,14/03/2024,102.72
"Communities, Customer & Commercial Services",Sport & Leisure,Employees,Agency Supply Costs,TOTAL CATERING SOLUTONS RECRUITMENT LTD,14/03/2024,119.84
"Communities, Customer & Commercial Services",Sport & Leisure,Employees,Agency Supply Costs,TOTAL CATERING SOLUTONS RECRUITMENT LTD,14/03/2024,171.2
"Communities, Customer & Commercial Services",Sport & Leisure,Employees,Agency Supply Costs,TOTAL CATERING SOLUTONS RECRUITMENT LTD,14/03/2024,239.68
"Communities, Customer & Commercial Services",Sport & Leisure,Premises-Related Expenditure,Clean Mats & Toilet Requisites,Border Janitorial Supplies Limited,14/03/2024,362.45
"Communities, Customer & Commercial Services",Sport & Leisure,Premises-Related Expenditure,Clean Mats & Toilet Requisites,Border Janitorial Supplies Limited,14/03/2024,175.09
"Communities, Customer & Commercial Services",Sport & Leisure,Premises-Related Expenditure,Clean Mats & Toilet Requisites,Border Janitorial Supplies Limited,14/03/2024,203.43
"Communities, Customer & Commercial Services",Sport & Leisure,Premises-Related Expenditure,Clean Mats & Toilet Requisites,Border Janitorial Supplies Limited,20/03/2024,274.95
"Communities, Customer & Commercial Services",Sport & Leisure,Premises-Related Expenditure,Clean Mats & Toilet Requisites,Border Janitorial Supplies Limited,20/03/2024,144.61
"Communities, Customer & Commercial Services",Sport & Leisure,Premises-Related Expenditure,Clean Mats & Toilet Requisites,Border Janitorial Supplies Limited,20/03/2024,109.95
"Communities, Customer & Commercial Services",Sport & Leisure,Premises-Related Expenditure,Clean Mats & Toilet Requisites,Border Janitorial Supplies Limited,21/03/2024,152.19
"Communities, Customer & Commercial Services",Sport & Leisure,Premises-Related Expenditure,Clean Mats & Toilet Requisites,Border Janitorial Supplies Limited,21/03/2024,328.18
"Communities, Customer & Commercial Services",Sport & Leisure,Premises-Related Expenditure,Clean Mats & Toilet Requisites,Border Janitorial Supplies Limited,21/03/2024,185.06
"Communities, Customer & Commercial Services",Sport & Leisure,Premises-Related Expenditure,Clean Mats & Toilet Requisites,Border Janitorial Supplies Limited,22/03/2024,119.25
"Communities, Customer & Commercial Services",Sport & Leisure,Premises-Related Expenditure,Clean Mats & Toilet Requisites,Border Janitorial Supplies Limited,28/03/2024,235.69
"Communities, Customer & Commercial Services",Sport & Leisure,Premises-Related Expenditure,Clean Mats & Toilet Requisites,Border Janitorial Supplies Limited,28/03/2024,289
"Communities, Customer & Commercial Services",Sport & Leisure,Premises-Related Expenditure,Clean Mats & Toilet Requisites,Border Janitorial Supplies Limited,28/03/2024,289
"Communities, Customer & Commercial Services",Sport & Leisure,Premises-Related Expenditure,Clean Mats & Toilet Requisites,Border Janitorial Supplies Limited,14/03/2024,152.67
"Communities, Customer & Commercial Services",Sport & Leisure,Employees,Agency Supply Costs,TOTAL CATERING SOLUTONS RECRUITMENT LTD,14/03/2024,154.08
"Communities, Customer & Commercial Services",Sport & Leisure,Premises-Related Expenditure,Clean Mats & Toilet Requisites,Border Janitorial Supplies Limited,14/03/2024,400.49
"Communities, Customer & Commercial Services",Sport & Leisure,Employees,Agency Supply Costs,TOTAL CATERING SOLUTONS RECRUITMENT LTD,14/03/2024,119.84
"Communities, Customer & Commercial Services",Sport & Leisure,Premises-Related Expenditure,Clean Mats & Toilet Requisites,Border Janitorial Supplies Limited,22/03/2024,144.95
"Communities, Customer & Commercial Services",Sport & Leisure,Premises-Related Expenditure,Electricity,EON next,11/03/2024,237.58
"Communities, Customer & Commercial Services",Sport & Leisure,Premises-Related Expenditure,Trade Refuse,FCC Recycling (UK) Ltd ,05/03/2024,612.04
"Communities, Customer & Commercial Services",Sport & Leisure,Supplies & Services,Crockery/Hardware/Light Equip,Harfield Components Ltd,07/03/2024,2250
"Communities, Customer & Commercial Services",Sport & Leisure,Supplies & Services,Crockery/Hardware/Light Equip,Charnwood Instrumentation Services Ltd,07/03/2024,1256
"Communities, Customer & Commercial Services",Sport & Leisure,Supplies & Services,Protective Clothing,IMAGE@WORK LTD,18/03/2024,564.11
"Communities, Customer & Commercial Services",Sport & Leisure,Supplies & Services,EEC Whole Milk,JOHAL DAIRIES,11/03/2024,796.25
"Communities, Customer & Commercial Services",Sport & Leisure,Supplies & Services,EEC Whole Milk,JOHAL DAIRIES,11/03/2024,1787.12
"Communities, Customer & Commercial Services",Sport & Leisure,Supplies & Services,EEC Whole Milk,JOHAL DAIRIES,05/03/2024,798.85
"Communities, Customer & Commercial Services",Sport & Leisure,Supplies & Services,EEC Whole Milk,JOHAL DAIRIES,05/03/2024,1761.84
"Communities, Customer & Commercial Services",Sport & Leisure,Supplies & Services,EEC Whole Milk,JOHAL DAIRIES,20/03/2024,796.25
"Communities, Customer & Commercial Services",Sport & Leisure,Supplies & Services,EEC Whole Milk,JOHAL DAIRIES,20/03/2024,1787.12
"Communities, Customer & Commercial Services",Sport & Leisure,Supplies & Services,EEC Whole Milk,JOHAL DAIRIES,26/03/2024,796.25
"Communities, Customer & Commercial Services",Sport & Leisure,Supplies & Services,EEC Whole Milk,JOHAL DAIRIES,26/03/2024,1706.72
"Communities, Customer & Commercial Services",Sport & Leisure,Supplies & Services,Provisions,BIKOLD,07/03/2024,148.21
"Communities, Customer & Commercial Services",Sport & Leisure,Supplies & Services,Provisions,BIKOLD,14/03/2024,105.87
"Communities, Customer & Commercial Services",Sport & Leisure,Supplies & Services,Provisions,BIKOLD,21/03/2024,171.47
"Communities, Customer & Commercial Services",Sport & Leisure,Employees,Agency Supply Costs,TOTAL CATERING SOLUTONS RECRUITMENT LTD,07/03/2024,205.44
"Communities, Customer & Commercial Services",Sport & Leisure,Employees,Agency Supply Costs,TOTAL CATERING SOLUTONS RECRUITMENT LTD,07/03/2024,342.4
"Communities, Customer & Commercial Services",Sport & Leisure,Employees,Agency Supply Costs,TOTAL CATERING SOLUTONS RECRUITMENT LTD,07/03/2024,325.28
"Communities, Customer & Commercial Services",Sport & Leisure,Employees,Agency Supply Costs,TOTAL CATERING SOLUTONS RECRUITMENT LTD,07/03/2024,342.4
"Communities, Customer & Commercial Services",Sport & Leisure,Employees,Agency Supply Costs,TOTAL CATERING SOLUTONS RECRUITMENT LTD,07/03/2024,136.96
"Communities, Customer & Commercial Services",Sport & Leisure,Employees,Agency Supply Costs,TOTAL CATERING SOLUTONS RECRUITMENT LTD,07/03/2024,338.12
"Communities, Customer & Commercial Services",Sport & Leisure,Employees,Agency Supply Costs,TOTAL CATERING SOLUTONS RECRUITMENT LTD,07/03/2024,342.4
"Communities, Customer & Commercial Services",Sport & Leisure,Employees,Agency Supply Costs,TOTAL CATERING SOLUTONS RECRUITMENT LTD,07/03/2024,342.4
"Communities, Customer & Commercial Services",Sport & Leisure,Employees,Agency Supply Costs,TOTAL CATERING SOLUTONS RECRUITMENT LTD,07/03/2024,342.4
"Communities, Customer & Commercial Services",Sport & Leisure,Employees,Agency Supply Costs,TOTAL CATERING SOLUTONS RECRUITMENT LTD,26/03/2024,333.84
"Communities, Customer & Commercial Services",Sport & Leisure,Employees,Agency Supply Costs,TOTAL CATERING SOLUTONS RECRUITMENT LTD,26/03/2024,335.38
"Communities, Customer & Commercial Services",Sport & Leisure,Employees,Agency Supply Costs,TOTAL CATERING SOLUTONS RECRUITMENT LTD,26/03/2024,342.4
"Communities, Customer & Commercial Services",Sport & Leisure,Employees,Agency Supply Costs,TOTAL CATERING SOLUTONS RECRUITMENT LTD,26/03/2024,342.4
"Communities, Customer & Commercial Services",Sport & Leisure,Employees,Agency Supply Costs,TOTAL CATERING SOLUTONS RECRUITMENT LTD,26/03/2024,342.4
"Communities, Customer & Commercial Services",Sport & Leisure,Employees,Agency Supply Costs,TOTAL CATERING SOLUTONS RECRUITMENT LTD,26/03/2024,342.4
"Communities, Customer & Commercial Services",Sport & Leisure,Employees,Agency Supply Costs,TOTAL CATERING SOLUTONS RECRUITMENT LTD,26/03/2024,342.4
"Communities, Customer & Commercial Services",Sport & Leisure,Employees,Agency Supply Costs,TOTAL CATERING SOLUTONS RECRUITMENT LTD,26/03/2024,342.4
"Communities, Customer & Commercial Services",Sport & Leisure,Employees,Agency Supply Costs,TOTAL CATERING SOLUTONS RECRUITMENT LTD,26/03/2024,342.4
"Communities, Customer & Commercial Services",Sport & Leisure,Employees,Agency Supply Costs,TOTAL CATERING SOLUTONS RECRUITMENT LTD,28/03/2024,342.4
"Communities, Customer & Commercial Services",Sport & Leisure,Employees,Agency Supply Costs,TOTAL CATERING SOLUTONS RECRUITMENT LTD,28/03/2024,342.4
"Communities, Customer & Commercial Services",Sport & Leisure,Employees,Agency Supply Costs,TOTAL CATERING SOLUTONS RECRUITMENT LTD,28/03/2024,342.4
"Communities, Customer & Commercial Services",Sport & Leisure,Employees,Agency Supply Costs,TOTAL CATERING SOLUTONS RECRUITMENT LTD,28/03/2024,346.68
"Communities, Customer & Commercial Services",Sport & Leisure,Employees,Agency Supply Costs,TOTAL CATERING SOLUTONS RECRUITMENT LTD,28/03/2024,342.4
"Communities, Customer & Commercial Services",Sport & Leisure,Employees,Agency Supply Costs,TOTAL CATERING SOLUTONS RECRUITMENT LTD,28/03/2024,342.4
"Communities, Customer & Commercial Services",Sport & Leisure,Employees,Agency Supply Costs,TOTAL CATERING SOLUTONS RECRUITMENT LTD,28/03/2024,342.4
"Communities, Customer & Commercial Services",Sport & Leisure,Employees,Agency Supply Costs,TOTAL CATERING SOLUTONS RECRUITMENT LTD,28/03/2024,342.4
"Communities, Customer & Commercial Services",Sport & Leisure,Premises-Related Expenditure,Clean Mats & Toilet Requisites,Border Janitorial Supplies Limited,01/03/2024,589.05
"Communities, Customer & Commercial Services",Sport & Leisure,Premises-Related Expenditure,Clean Mats & Toilet Requisites,Border Janitorial Supplies Limited,01/03/2024,121.17
"Communities, Customer & Commercial Services",Sport & Leisure,Supplies & Services,Crockery/Hardware/Light Equip,Border Janitorial Supplies Limited,01/03/2024,118.8
"Communities, Customer & Commercial Services",Sport & Leisure,Premises-Related Expenditure,Clean Mats & Toilet Requisites,Border Janitorial Supplies Limited,07/03/2024,221.54
"Communities, Customer & Commercial Services",Sport & Leisure,Premises-Related Expenditure,Clean Mats & Toilet Requisites,Border Janitorial Supplies Limited,05/03/2024,211.19
"Communities, Customer & Commercial Services",Sport & Leisure,Premises-Related Expenditure,Clean Mats & Toilet Requisites,Border Janitorial Supplies Limited,12/03/2024,194.2
"Communities, Customer & Commercial Services",Sport & Leisure,Premises-Related Expenditure,Clean Mats & Toilet Requisites,Border Janitorial Supplies Limited,15/03/2024,132.48
"Communities, Customer & Commercial Services",Sport & Leisure,Premises-Related Expenditure,Clean Mats & Toilet Requisites,Border Janitorial Supplies Limited,15/03/2024,164.16
"Communities, Customer & Commercial Services",Sport & Leisure,Supplies & Services,Crockery/Hardware/Light Equip,CALTEL CATERING & LAUNDRY EQUIPMENT LLP,18/03/2024,108
"Communities, Customer & Commercial Services",Sport & Leisure,Premises-Related Expenditure,Clean Mats & Toilet Requisites,Border Janitorial Supplies Limited,20/03/2024,116.1
"Communities, Customer & Commercial Services",Sport & Leisure,Premises-Related Expenditure,Clean Mats & Toilet Requisites,Border Janitorial Supplies Limited,20/03/2024,316.77
"Communities, Customer & Commercial Services",Sport & Leisure,Premises-Related Expenditure,Clean Mats & Toilet Requisites,Border Janitorial Supplies Limited,26/03/2024,173.7
"Communities, Customer & Commercial Services",Sport & Leisure,Premises-Related Expenditure,Clean Mats & Toilet Requisites,ERIC NEVILLE CATERING EQUIPMENT AND SERVICES  LTD,28/03/2024,173.35
"Communities, Customer & Commercial Services",Sport & Leisure,Supplies & Services,Provisions,ROWLANDS & COMPANY,08/03/2024,196.38
"Communities, Customer & Commercial Services",Sport & Leisure,Supplies & Services,Provisions,ROWLANDS & COMPANY,08/03/2024,127.69
"Communities, Customer & Commercial Services",Sport & Leisure,Supplies & Services,Provisions,ROWLANDS & COMPANY,08/03/2024,150.71
"Communities, Customer & Commercial Services",Sport & Leisure,Supplies & Services,Provisions,ROWLANDS & COMPANY,08/03/2024,169.33
"Communities, Customer & Commercial Services",Sport & Leisure,Supplies & Services,Provisions,ROWLANDS & COMPANY,08/03/2024,148.23
"Communities, Customer & Commercial Services",Sport & Leisure,Supplies & Services,Provisions,ROWLANDS & COMPANY,08/03/2024,108.4
"Communities, Customer & Commercial Services",Sport & Leisure,Supplies & Services,Provisions,ROWLANDS & COMPANY,08/03/2024,181.16
"Communities, Customer & Commercial Services",Sport & Leisure,Supplies & Services,Provisions,ROWLANDS & COMPANY,08/03/2024,101.09
"Communities, Customer & Commercial Services",Sport & Leisure,Supplies & Services,Provisions,ROWLANDS & COMPANY,08/03/2024,116.37
"Communities, Customer & Commercial Services",Sport & Leisure,Supplies & Services,Provisions,ROWLANDS & COMPANY,08/03/2024,183.05
"Communities, Customer & Commercial Services",Sport & Leisure,Supplies & Services,Provisions,ROWLANDS & COMPANY,08/03/2024,205.67
"Communities, Customer & Commercial Services",Sport & Leisure,Supplies & Services,Provisions,ROWLANDS & COMPANY,08/03/2024,146.64
"Communities, Customer & Commercial Services",Sport & Leisure,Supplies & Services,Provisions,ROWLANDS & COMPANY,08/03/2024,208.81
"Communities, Customer & Commercial Services",Sport & Leisure,Supplies & Services,Provisions,ROWLANDS & COMPANY,08/03/2024,249.06
"Communities, Customer & Commercial Services",Sport & Leisure,Supplies & Services,Provisions,ROWLANDS & COMPANY,08/03/2024,214.32
"Communities, Customer & Commercial Services",Sport & Leisure,Supplies & Services,Provisions,ROWLANDS & COMPANY,08/03/2024,103.49
"Communities, Customer & Commercial Services",Sport & Leisure,Supplies & Services,Provisions,ROWLANDS & COMPANY,08/03/2024,127.01
"Communities, Customer & Commercial Services",Sport & Leisure,Supplies & Services,Provisions,ROWLANDS & COMPANY,08/03/2024,164.07
"Communities, Customer & Commercial Services",Sport & Leisure,Supplies & Services,Provisions,ROWLANDS & COMPANY,08/03/2024,121.03
"Communities, Customer & Commercial Services",Sport & Leisure,Supplies & Services,Provisions,ROWLANDS & COMPANY,08/03/2024,139.31
"Communities, Customer & Commercial Services",Sport & Leisure,Supplies & Services,Provisions,ROWLANDS & COMPANY,08/03/2024,131.1
"Communities, Customer & Commercial Services",Sport & Leisure,Supplies & Services,Provisions,ROWLANDS & COMPANY,08/03/2024,155.81
"Communities, Customer & Commercial Services",Sport & Leisure,Supplies & Services,Provisions,ROWLANDS & COMPANY,08/03/2024,154.2
"Communities, Customer & Commercial Services",Sport & Leisure,Supplies & Services,Provisions,ROWLANDS & COMPANY,08/03/2024,139.99
"Communities, Customer & Commercial Services",Sport & Leisure,Supplies & Services,Provisions,ROWLANDS & COMPANY,08/03/2024,108.74
"Communities, Customer & Commercial Services",Sport & Leisure,Supplies & Services,Provisions,ROWLANDS & COMPANY,08/03/2024,150.25
"Communities, Customer & Commercial Services",Sport & Leisure,Supplies & Services,Provisions,ROWLANDS & COMPANY,08/03/2024,126.19
"Communities, Customer & Commercial Services",Sport & Leisure,Supplies & Services,Provisions,On A Roll,01/03/2024,238.55
"Communities, Customer & Commercial Services",Sport & Leisure,Supplies & Services,Provisions,John Sheppard Catering Butchers,04/03/2024,181.7
"Communities, Customer & Commercial Services",Sport & Leisure,Supplies & Services,Provisions,John Sheppard Catering Butchers,04/03/2024,180.63
"Communities, Customer & Commercial Services",Sport & Leisure,Supplies & Services,Provisions,John Sheppard Catering Butchers,04/03/2024,101.48
"Communities, Customer & Commercial Services",Sport & Leisure,Supplies & Services,Provisions,John Sheppard Catering Butchers,04/03/2024,133
"Communities, Customer & Commercial Services",Sport & Leisure,Supplies & Services,Provisions,John Sheppard Catering Butchers,04/03/2024,117.6
"Communities, Customer & Commercial Services",Sport & Leisure,Supplies & Services,Provisions,John Sheppard Catering Butchers,04/03/2024,144.77
"Communities, Customer & Commercial Services",Sport & Leisure,Supplies & Services,Provisions,ROWLANDS & COMPANY,01/03/2024,141.98
"Communities, Customer & Commercial Services",Sport & Leisure,Supplies & Services,Provisions,ROWLANDS & COMPANY,01/03/2024,117.13
"Communities, Customer & Commercial Services",Sport & Leisure,Supplies & Services,Provisions,ROWLANDS & COMPANY,01/03/2024,120.08
"Communities, Customer & Commercial Services",Sport & Leisure,Supplies & Services,Provisions,ROWLANDS & COMPANY,01/03/2024,142.73
"Communities, Customer & Commercial Services",Sport & Leisure,Supplies & Services,Provisions,ROWLANDS & COMPANY,01/03/2024,170.19
"Communities, Customer & Commercial Services",Sport & Leisure,Supplies & Services,Provisions,ROWLANDS & COMPANY,01/03/2024,156.25
"Communities, Customer & Commercial Services",Sport & Leisure,Supplies & Services,Provisions,ROWLANDS & COMPANY,01/03/2024,171.59
"Communities, Customer & Commercial Services",Sport & Leisure,Supplies & Services,Provisions,ROWLANDS & COMPANY,01/03/2024,157.36
"Communities, Customer & Commercial Services",Sport & Leisure,Supplies & Services,Provisions,ROWLANDS & COMPANY,01/03/2024,105.35
"Communities, Customer & Commercial Services",Sport & Leisure,Supplies & Services,Provisions,ROWLANDS & COMPANY,01/03/2024,108.43
"Communities, Customer & Commercial Services",Sport & Leisure,Supplies & Services,Provisions,ROWLANDS & COMPANY,01/03/2024,123.42
"Communities, Customer & Commercial Services",Sport & Leisure,Supplies & Services,Provisions,ROWLANDS & COMPANY,01/03/2024,196.62
"Communities, Customer & Commercial Services",Sport & Leisure,Supplies & Services,Provisions,ROWLANDS & COMPANY,01/03/2024,118.89
"Communities, Customer & Commercial Services",Sport & Leisure,Supplies & Services,Provisions,ROWLANDS & COMPANY,01/03/2024,112.51
"Communities, Customer & Commercial Services",Sport & Leisure,Supplies & Services,Provisions,ROWLANDS & COMPANY,01/03/2024,163.71
"Communities, Customer & Commercial Services",Sport & Leisure,Supplies & Services,Provisions,ROWLANDS & COMPANY,01/03/2024,136.25
"Communities, Customer & Commercial Services",Sport & Leisure,Supplies & Services,Provisions,ROWLANDS & COMPANY,01/03/2024,241.34
"Communities, Customer & Commercial Services",Sport & Leisure,Supplies & Services,Provisions,ROWLANDS & COMPANY,01/03/2024,112.18
"Communities, Customer & Commercial Services",Sport & Leisure,Supplies & Services,Provisions,ROWLANDS & COMPANY,01/03/2024,219.09
"Communities, Customer & Commercial Services",Sport & Leisure,Supplies & Services,Provisions,ROWLANDS & COMPANY,01/03/2024,119.62
"Communities, Customer & Commercial Services",Sport & Leisure,Supplies & Services,Provisions,ROWLANDS & COMPANY,01/03/2024,123.15
"Communities, Customer & Commercial Services",Sport & Leisure,Supplies & Services,Provisions,ROWLANDS & COMPANY,01/03/2024,126.43
"Communities, Customer & Commercial Services",Sport & Leisure,Supplies & Services,Provisions,ROWLANDS & COMPANY,01/03/2024,122.74
"Communities, Customer & Commercial Services",Sport & Leisure,Supplies & Services,Provisions,ROWLANDS & COMPANY,01/03/2024,139.89
"Communities, Customer & Commercial Services",Sport & Leisure,Supplies & Services,Provisions,ROWLANDS & COMPANY,01/03/2024,200.68
"Communities, Customer & Commercial Services",Sport & Leisure,Supplies & Services,Provisions,ROWLANDS & COMPANY,01/03/2024,146.07
"Communities, Customer & Commercial Services",Sport & Leisure,Supplies & Services,Provisions,On A Roll,07/03/2024,232.5
"Communities, Customer & Commercial Services",Sport & Leisure,Supplies & Services,Provisions,BIKOLD,07/03/2024,132.46
"Communities, Customer & Commercial Services",Sport & Leisure,Supplies & Services,Provisions,BIKOLD,07/03/2024,137.84
"Communities, Customer & Commercial Services",Sport & Leisure,Supplies & Services,Provisions,BIKOLD,07/03/2024,227.99
"Communities, Customer & Commercial Services",Sport & Leisure,Supplies & Services,Provisions,BIKOLD,07/03/2024,221.23
"Communities, Customer & Commercial Services",Sport & Leisure,Supplies & Services,Provisions,BIKOLD,07/03/2024,234.13
"Communities, Customer & Commercial Services",Sport & Leisure,Supplies & Services,Provisions,BIKOLD,07/03/2024,377.26
"Communities, Customer & Commercial Services",Sport & Leisure,Supplies & Services,Provisions,BIKOLD,07/03/2024,444.66
"Communities, Customer & Commercial Services",Sport & Leisure,Supplies & Services,Provisions,BIKOLD,07/03/2024,122.03
"Communities, Customer & Commercial Services",Sport & Leisure,Supplies & Services,Provisions,BIKOLD,07/03/2024,202.79
"Communities, Customer & Commercial Services",Sport & Leisure,Supplies & Services,Provisions,BIKOLD,07/03/2024,259.33
"Communities, Customer & Commercial Services",Sport & Leisure,Supplies & Services,Provisions,BIKOLD,07/03/2024,138.28
"Communities, Customer & Commercial Services",Sport & Leisure,Supplies & Services,Provisions,BIKOLD,07/03/2024,171.99
"Communities, Customer & Commercial Services",Sport & Leisure,Supplies & Services,Provisions,BIKOLD,07/03/2024,100.1
"Communities, Customer & Commercial Services",Sport & Leisure,Supplies & Services,Provisions,BIKOLD,07/03/2024,139.31
"Communities, Customer & Commercial Services",Sport & Leisure,Supplies & Services,Provisions,BIKOLD,07/03/2024,113.39
"Communities, Customer & Commercial Services",Sport & Leisure,Supplies & Services,Provisions,BIKOLD,07/03/2024,176.38
"Communities, Customer & Commercial Services",Sport & Leisure,Supplies & Services,Provisions,BIKOLD,07/03/2024,208.2
"Communities, Customer & Commercial Services",Sport & Leisure,Supplies & Services,Provisions,BIKOLD,07/03/2024,576.59
"Communities, Customer & Commercial Services",Sport & Leisure,Supplies & Services,Provisions,BIKOLD,07/03/2024,345.53
"Communities, Customer & Commercial Services",Sport & Leisure,Supplies & Services,Provisions,BIKOLD,07/03/2024,148.23
"Communities, Customer & Commercial Services",Sport & Leisure,Supplies & Services,Provisions,BIKOLD,07/03/2024,653.96
"Communities, Customer & Commercial Services",Sport & Leisure,Supplies & Services,Provisions,BIKOLD,07/03/2024,300.62
"Communities, Customer & Commercial Services",Sport & Leisure,Supplies & Services,Provisions,BIKOLD,07/03/2024,387.1
"Communities, Customer & Commercial Services",Sport & Leisure,Supplies & Services,Provisions,BIKOLD,07/03/2024,366.24
"Communities, Customer & Commercial Services",Sport & Leisure,Supplies & Services,Provisions,BIKOLD,07/03/2024,425.03
"Communities, Customer & Commercial Services",Sport & Leisure,Supplies & Services,Provisions,BIKOLD,07/03/2024,198.98
"Communities, Customer & Commercial Services",Sport & Leisure,Supplies & Services,Provisions,BIKOLD,07/03/2024,179.87
"Communities, Customer & Commercial Services",Sport & Leisure,Supplies & Services,Provisions,BIKOLD,07/03/2024,104.38
"Communities, Customer & Commercial Services",Sport & Leisure,Supplies & Services,Provisions,BIKOLD,07/03/2024,652.59
"Communities, Customer & Commercial Services",Sport & Leisure,Supplies & Services,Provisions,BIKOLD,07/03/2024,213.5
"Communities, Customer & Commercial Services",Sport & Leisure,Supplies & Services,Provisions,BIKOLD,07/03/2024,228.46
"Communities, Customer & Commercial Services",Sport & Leisure,Supplies & Services,Provisions,BIKOLD,07/03/2024,288.18
"Communities, Customer & Commercial Services",Sport & Leisure,Supplies & Services,Provisions,BIKOLD,07/03/2024,104.96
"Communities, Customer & Commercial Services",Sport & Leisure,Supplies & Services,Provisions,BIKOLD,07/03/2024,164.88
"Communities, Customer & Commercial Services",Sport & Leisure,Supplies & Services,Provisions,BIKOLD,07/03/2024,163.65
"Communities, Customer & Commercial Services",Sport & Leisure,Supplies & Services,Provisions,BIKOLD,07/03/2024,247.2
"Communities, Customer & Commercial Services",Sport & Leisure,Supplies & Services,Provisions,BIKOLD,07/03/2024,130.13
"Communities, Customer & Commercial Services",Sport & Leisure,Supplies & Services,Provisions,BIKOLD,07/03/2024,241.14
"Communities, Customer & Commercial Services",Sport & Leisure,Supplies & Services,Provisions,BIKOLD,07/03/2024,126.12
"Communities, Customer & Commercial Services",Sport & Leisure,Supplies & Services,Provisions,BIKOLD,07/03/2024,371.76
"Communities, Customer & Commercial Services",Sport & Leisure,Supplies & Services,Provisions,BIKOLD,07/03/2024,101.61
"Communities, Customer & Commercial Services",Sport & Leisure,Supplies & Services,Provisions,BIKOLD,07/03/2024,105.71
"Communities, Customer & Commercial Services",Sport & Leisure,Supplies & Services,Provisions,BIKOLD,07/03/2024,347.24
"Communities, Customer & Commercial Services",Sport & Leisure,Supplies & Services,Provisions,BIKOLD,07/03/2024,110.31
"Communities, Customer & Commercial Services",Sport & Leisure,Supplies & Services,Provisions,BIKOLD,07/03/2024,254.22
"Communities, Customer & Commercial Services",Sport & Leisure,Supplies & Services,Provisions,BIKOLD,07/03/2024,203.15
"Communities, Customer & Commercial Services",Sport & Leisure,Supplies & Services,Provisions,BIKOLD,07/03/2024,369.36
"Communities, Customer & Commercial Services",Sport & Leisure,Supplies & Services,Provisions,BIKOLD,07/03/2024,197.47
"Communities, Customer & Commercial Services",Sport & Leisure,Supplies & Services,Provisions,BIKOLD,07/03/2024,108.13
"Communities, Customer & Commercial Services",Sport & Leisure,Supplies & Services,Provisions,BIKOLD,07/03/2024,107.48
"Communities, Customer & Commercial Services",Sport & Leisure,Supplies & Services,Provisions,BIKOLD,07/03/2024,316.42
"Communities, Customer & Commercial Services",Sport & Leisure,Supplies & Services,Provisions,BIKOLD,07/03/2024,169.38
"Communities, Customer & Commercial Services",Sport & Leisure,Supplies & Services,Provisions,BIKOLD,07/03/2024,166.86
"Communities, Customer & Commercial Services",Sport & Leisure,Supplies & Services,Provisions,BIKOLD,07/03/2024,205.89
"Communities, Customer & Commercial Services",Sport & Leisure,Supplies & Services,Provisions,BIKOLD,07/03/2024,172
"Communities, Customer & Commercial Services",Sport & Leisure,Supplies & Services,Provisions,BIKOLD,07/03/2024,183.19
"Communities, Customer & Commercial Services",Sport & Leisure,Supplies & Services,Provisions,BIKOLD,07/03/2024,203.44
"Communities, Customer & Commercial Services",Sport & Leisure,Supplies & Services,Provisions,BIKOLD,07/03/2024,560.87
"Communities, Customer & Commercial Services",Sport & Leisure,Supplies & Services,Provisions,BIKOLD,07/03/2024,262.7
"Communities, Customer & Commercial Services",Sport & Leisure,Supplies & Services,Provisions,BIKOLD,07/03/2024,105.18
"Communities, Customer & Commercial Services",Sport & Leisure,Supplies & Services,Provisions,BIKOLD,07/03/2024,403.35
"Communities, Customer & Commercial Services",Sport & Leisure,Supplies & Services,Provisions,BIKOLD,07/03/2024,112.63
"Communities, Customer & Commercial Services",Sport & Leisure,Supplies & Services,Provisions,BIKOLD,07/03/2024,132.98
"Communities, Customer & Commercial Services",Sport & Leisure,Supplies & Services,Provisions,BIKOLD,07/03/2024,223.3
"Communities, Customer & Commercial Services",Sport & Leisure,Supplies & Services,Provisions,BIKOLD,07/03/2024,506.43
"Communities, Customer & Commercial Services",Sport & Leisure,Supplies & Services,Provisions,BIKOLD,07/03/2024,400.13
"Communities, Customer & Commercial Services",Sport & Leisure,Supplies & Services,Provisions,BIKOLD,07/03/2024,209.2
"Communities, Customer & Commercial Services",Sport & Leisure,Supplies & Services,Provisions,BIKOLD,07/03/2024,451.41
"Communities, Customer & Commercial Services",Sport & Leisure,Supplies & Services,Provisions,BIKOLD,07/03/2024,582.19
"Communities, Customer & Commercial Services",Sport & Leisure,Supplies & Services,Provisions,BIKOLD,07/03/2024,165.48
"Communities, Customer & Commercial Services",Sport & Leisure,Supplies & Services,Provisions,BIKOLD,07/03/2024,191.36
"Communities, Customer & Commercial Services",Sport & Leisure,Supplies & Services,Provisions,BIKOLD,07/03/2024,155.94
"Communities, Customer & Commercial Services",Sport & Leisure,Supplies & Services,Provisions,BIKOLD,07/03/2024,408.22
"Communities, Customer & Commercial Services",Sport & Leisure,Supplies & Services,Provisions,BIKOLD,07/03/2024,246.95
"Communities, Customer & Commercial Services",Sport & Leisure,Supplies & Services,Provisions,BIKOLD,07/03/2024,132.79
"Communities, Customer & Commercial Services",Sport & Leisure,Supplies & Services,Provisions,BIKOLD,07/03/2024,201.79
"Communities, Customer & Commercial Services",Sport & Leisure,Supplies & Services,Provisions,BIKOLD,07/03/2024,106.43
"Communities, Customer & Commercial Services",Sport & Leisure,Supplies & Services,Provisions,BIKOLD,07/03/2024,534.2
"Communities, Customer & Commercial Services",Sport & Leisure,Supplies & Services,Provisions,BIKOLD,07/03/2024,143.31
"Communities, Customer & Commercial Services",Sport & Leisure,Supplies & Services,Provisions,BIKOLD,07/03/2024,109.75
"Communities, Customer & Commercial Services",Sport & Leisure,Supplies & Services,Provisions,BIKOLD,07/03/2024,518.76
"Communities, Customer & Commercial Services",Sport & Leisure,Supplies & Services,Provisions,BIKOLD,07/03/2024,127.84
"Communities, Customer & Commercial Services",Sport & Leisure,Supplies & Services,Provisions,BIKOLD,07/03/2024,298.26
"Communities, Customer & Commercial Services",Sport & Leisure,Supplies & Services,Provisions,BIKOLD,07/03/2024,440.06
"Communities, Customer & Commercial Services",Sport & Leisure,Supplies & Services,Provisions,BIKOLD,07/03/2024,241.66
"Communities, Customer & Commercial Services",Sport & Leisure,Supplies & Services,Provisions,BIKOLD,07/03/2024,168.29
"Communities, Customer & Commercial Services",Sport & Leisure,Supplies & Services,Provisions,BIKOLD,07/03/2024,660.36
"Communities, Customer & Commercial Services",Sport & Leisure,Supplies & Services,Provisions,BIKOLD,07/03/2024,244.05
"Communities, Customer & Commercial Services",Sport & Leisure,Supplies & Services,Provisions,BIKOLD,07/03/2024,155.84
"Communities, Customer & Commercial Services",Sport & Leisure,Supplies & Services,Provisions,BIKOLD,07/03/2024,164.75
"Communities, Customer & Commercial Services",Sport & Leisure,Supplies & Services,Provisions,BIKOLD,07/03/2024,156.2
"Communities, Customer & Commercial Services",Sport & Leisure,Supplies & Services,Provisions,BIKOLD,07/03/2024,289.43
"Communities, Customer & Commercial Services",Sport & Leisure,Supplies & Services,Provisions,BIKOLD,07/03/2024,259.59
"Communities, Customer & Commercial Services",Sport & Leisure,Supplies & Services,Provisions,BIKOLD,07/03/2024,375.26
"Communities, Customer & Commercial Services",Sport & Leisure,Supplies & Services,Provisions,BIKOLD,07/03/2024,211.85
"Communities, Customer & Commercial Services",Sport & Leisure,Supplies & Services,Provisions,BIKOLD,07/03/2024,482.97
"Communities, Customer & Commercial Services",Sport & Leisure,Supplies & Services,Provisions,BIKOLD,07/03/2024,360.14
"Communities, Customer & Commercial Services",Sport & Leisure,Supplies & Services,Provisions,BIKOLD,07/03/2024,246.32
"Communities, Customer & Commercial Services",Sport & Leisure,Supplies & Services,Provisions,BIKOLD,07/03/2024,302.21
"Communities, Customer & Commercial Services",Sport & Leisure,Supplies & Services,Provisions,BIKOLD,07/03/2024,256.82
"Communities, Customer & Commercial Services",Sport & Leisure,Supplies & Services,Provisions,BIKOLD,07/03/2024,194.32
"Communities, Customer & Commercial Services",Sport & Leisure,Supplies & Services,Provisions,BIKOLD,07/03/2024,311.83
"Communities, Customer & Commercial Services",Sport & Leisure,Supplies & Services,Provisions,BIKOLD,07/03/2024,136.37
"Communities, Customer & Commercial Services",Sport & Leisure,Supplies & Services,Provisions,BIKOLD,07/03/2024,133.52
"Communities, Customer & Commercial Services",Sport & Leisure,Supplies & Services,Provisions,BIKOLD,07/03/2024,192.66
"Communities, Customer & Commercial Services",Sport & Leisure,Supplies & Services,Provisions,BIKOLD,07/03/2024,280.08
"Communities, Customer & Commercial Services",Sport & Leisure,Supplies & Services,Provisions,BIKOLD,07/03/2024,194.24
"Communities, Customer & Commercial Services",Sport & Leisure,Supplies & Services,Provisions,BIKOLD,07/03/2024,402.49
"Communities, Customer & Commercial Services",Sport & Leisure,Supplies & Services,Provisions,BIKOLD,07/03/2024,361.76
"Communities, Customer & Commercial Services",Sport & Leisure,Supplies & Services,Provisions,BIKOLD,07/03/2024,365.49
"Communities, Customer & Commercial Services",Sport & Leisure,Supplies & Services,Provisions,BIKOLD,07/03/2024,241.21
"Communities, Customer & Commercial Services",Sport & Leisure,Supplies & Services,Provisions,BIKOLD,07/03/2024,432.95
"Communities, Customer & Commercial Services",Sport & Leisure,Supplies & Services,Provisions,BIKOLD,07/03/2024,179.57
"Communities, Customer & Commercial Services",Sport & Leisure,Supplies & Services,Provisions,BIKOLD,07/03/2024,185.48
"Communities, Customer & Commercial Services",Sport & Leisure,Supplies & Services,Provisions,BIKOLD,07/03/2024,197.11
"Communities, Customer & Commercial Services",Sport & Leisure,Supplies & Services,Provisions,BIKOLD,07/03/2024,474.97
"Communities, Customer & Commercial Services",Sport & Leisure,Supplies & Services,Provisions,SPICE TIME,12/03/2024,100.95
"Communities, Customer & Commercial Services",Sport & Leisure,Supplies & Services,Provisions,SPICE TIME,12/03/2024,123.8
"Communities, Customer & Commercial Services",Sport & Leisure,Supplies & Services,Provisions,SPICE TIME,12/03/2024,230.2
"Communities, Customer & Commercial Services",Sport & Leisure,Supplies & Services,Provisions,SPICE TIME,12/03/2024,228
"Communities, Customer & Commercial Services",Sport & Leisure,Supplies & Services,Provisions,SPICE TIME,12/03/2024,190.5
"Communities, Customer & Commercial Services",Sport & Leisure,Supplies & Services,Provisions,SPICE TIME,12/03/2024,160.5
"Communities, Customer & Commercial Services",Sport & Leisure,Supplies & Services,Provisions,SPICE TIME,12/03/2024,122.95
"Communities, Customer & Commercial Services",Sport & Leisure,Supplies & Services,Provisions,SPICE TIME,12/03/2024,213.5
"Communities, Customer & Commercial Services",Sport & Leisure,Supplies & Services,Provisions,SPICE TIME,12/03/2024,120.5
"Communities, Customer & Commercial Services",Sport & Leisure,Supplies & Services,Provisions,SPICE TIME,12/03/2024,118.8
"Communities, Customer & Commercial Services",Sport & Leisure,Supplies & Services,Provisions,SPICE TIME,12/03/2024,177
"Communities, Customer & Commercial Services",Sport & Leisure,Supplies & Services,Provisions,SPICE TIME,12/03/2024,234.9
"Communities, Customer & Commercial Services",Sport & Leisure,Supplies & Services,Provisions,SPICE TIME,12/03/2024,182.55
"Communities, Customer & Commercial Services",Sport & Leisure,Supplies & Services,Provisions,SPICE TIME,12/03/2024,248.05
"Communities, Customer & Commercial Services",Sport & Leisure,Supplies & Services,Provisions,On A Roll,15/03/2024,203.25
"Communities, Customer & Commercial Services",Sport & Leisure,Supplies & Services,Provisions,BIKOLD,14/03/2024,178.25
"Communities, Customer & Commercial Services",Sport & Leisure,Supplies & Services,Provisions,BIKOLD,14/03/2024,108.1
"Communities, Customer & Commercial Services",Sport & Leisure,Supplies & Services,Provisions,BIKOLD,14/03/2024,607.35
"Communities, Customer & Commercial Services",Sport & Leisure,Supplies & Services,Provisions,BIKOLD,14/03/2024,200.48
"Communities, Customer & Commercial Services",Sport & Leisure,Supplies & Services,Provisions,BIKOLD,14/03/2024,517.94
"Communities, Customer & Commercial Services",Sport & Leisure,Supplies & Services,Provisions,BIKOLD,14/03/2024,402.33
"Communities, Customer & Commercial Services",Sport & Leisure,Supplies & Services,Provisions,BIKOLD,14/03/2024,399.5
"Communities, Customer & Commercial Services",Sport & Leisure,Supplies & Services,Provisions,BIKOLD,14/03/2024,241.54
"Communities, Customer & Commercial Services",Sport & Leisure,Supplies & Services,Provisions,BIKOLD,14/03/2024,140.14
"Communities, Customer & Commercial Services",Sport & Leisure,Supplies & Services,Provisions,BIKOLD,14/03/2024,102.22
"Communities, Customer & Commercial Services",Sport & Leisure,Supplies & Services,Provisions,BIKOLD,14/03/2024,137.1
"Communities, Customer & Commercial Services",Sport & Leisure,Supplies & Services,Provisions,BIKOLD,14/03/2024,132.32
"Communities, Customer & Commercial Services",Sport & Leisure,Supplies & Services,Provisions,BIKOLD,14/03/2024,136.9
"Communities, Customer & Commercial Services",Sport & Leisure,Supplies & Services,Provisions,BIKOLD,14/03/2024,118.44
"Communities, Customer & Commercial Services",Sport & Leisure,Supplies & Services,Provisions,BIKOLD,14/03/2024,179.03
"Communities, Customer & Commercial Services",Sport & Leisure,Supplies & Services,Provisions,BIKOLD,14/03/2024,129.17
"Communities, Customer & Commercial Services",Sport & Leisure,Supplies & Services,Provisions,BIKOLD,14/03/2024,267.46
"Communities, Customer & Commercial Services",Sport & Leisure,Supplies & Services,Provisions,BIKOLD,14/03/2024,284.31
"Communities, Customer & Commercial Services",Sport & Leisure,Supplies & Services,Provisions,BIKOLD,14/03/2024,338.84
"Communities, Customer & Commercial Services",Sport & Leisure,Supplies & Services,Provisions,BIKOLD,14/03/2024,115.15
"Communities, Customer & Commercial Services",Sport & Leisure,Supplies & Services,Provisions,BIKOLD,14/03/2024,118.5
"Communities, Customer & Commercial Services",Sport & Leisure,Supplies & Services,Provisions,BIKOLD,14/03/2024,430.21
"Communities, Customer & Commercial Services",Sport & Leisure,Supplies & Services,Provisions,BIKOLD,14/03/2024,254.32
"Communities, Customer & Commercial Services",Sport & Leisure,Supplies & Services,Provisions,BIKOLD,14/03/2024,271.41
"Communities, Customer & Commercial Services",Sport & Leisure,Supplies & Services,Provisions,BIKOLD,14/03/2024,101.42
"Communities, Customer & Commercial Services",Sport & Leisure,Supplies & Services,Provisions,BIKOLD,14/03/2024,201.56
"Communities, Customer & Commercial Services",Sport & Leisure,Supplies & Services,Provisions,BIKOLD,14/03/2024,213.15
"Communities, Customer & Commercial Services",Sport & Leisure,Supplies & Services,Provisions,BIKOLD,14/03/2024,283.38
"Communities, Customer & Commercial Services",Sport & Leisure,Supplies & Services,Provisions,BIKOLD,14/03/2024,297.65
"Communities, Customer & Commercial Services",Sport & Leisure,Supplies & Services,Provisions,BIKOLD,14/03/2024,423.98
"Communities, Customer & Commercial Services",Sport & Leisure,Supplies & Services,Provisions,BIKOLD,14/03/2024,247.93
"Communities, Customer & Commercial Services",Sport & Leisure,Supplies & Services,Provisions,BIKOLD,14/03/2024,155.51
"Communities, Customer & Commercial Services",Sport & Leisure,Supplies & Services,Provisions,BIKOLD,14/03/2024,446.32
"Communities, Customer & Commercial Services",Sport & Leisure,Supplies & Services,Provisions,BIKOLD,14/03/2024,327.55
"Communities, Customer & Commercial Services",Sport & Leisure,Supplies & Services,Provisions,BIKOLD,14/03/2024,301.79
"Communities, Customer & Commercial Services",Sport & Leisure,Supplies & Services,Provisions,BIKOLD,14/03/2024,181.59
"Communities, Customer & Commercial Services",Sport & Leisure,Supplies & Services,Provisions,BIKOLD,14/03/2024,168.3
"Communities, Customer & Commercial Services",Sport & Leisure,Supplies & Services,Provisions,BIKOLD,14/03/2024,172.56
"Communities, Customer & Commercial Services",Sport & Leisure,Supplies & Services,Provisions,BIKOLD,14/03/2024,107.53
"Communities, Customer & Commercial Services",Sport & Leisure,Supplies & Services,Provisions,BIKOLD,14/03/2024,131.27
"Communities, Customer & Commercial Services",Sport & Leisure,Supplies & Services,Provisions,BIKOLD,14/03/2024,465.79
"Communities, Customer & Commercial Services",Sport & Leisure,Supplies & Services,Provisions,BIKOLD,14/03/2024,378.36
"Communities, Customer & Commercial Services",Sport & Leisure,Supplies & Services,Provisions,BIKOLD,14/03/2024,143.86
"Communities, Customer & Commercial Services",Sport & Leisure,Supplies & Services,Provisions,BIKOLD,14/03/2024,197.13
"Communities, Customer & Commercial Services",Sport & Leisure,Supplies & Services,Provisions,BIKOLD,14/03/2024,119.76
"Communities, Customer & Commercial Services",Sport & Leisure,Supplies & Services,Provisions,BIKOLD,14/03/2024,130.18
"Communities, Customer & Commercial Services",Sport & Leisure,Supplies & Services,Provisions,BIKOLD,14/03/2024,249.55
"Communities, Customer & Commercial Services",Sport & Leisure,Supplies & Services,Provisions,BIKOLD,14/03/2024,786.15
"Communities, Customer & Commercial Services",Sport & Leisure,Supplies & Services,Provisions,BIKOLD,14/03/2024,193.44
"Communities, Customer & Commercial Services",Sport & Leisure,Supplies & Services,Provisions,BIKOLD,14/03/2024,141.89
"Communities, Customer & Commercial Services",Sport & Leisure,Supplies & Services,Provisions,BIKOLD,14/03/2024,100.31
"Communities, Customer & Commercial Services",Sport & Leisure,Supplies & Services,Provisions,BIKOLD,14/03/2024,581.05
"Communities, Customer & Commercial Services",Sport & Leisure,Supplies & Services,Provisions,BIKOLD,14/03/2024,110.16
"Communities, Customer & Commercial Services",Sport & Leisure,Supplies & Services,Provisions,BIKOLD,14/03/2024,538.97
"Communities, Customer & Commercial Services",Sport & Leisure,Supplies & Services,Provisions,BIKOLD,14/03/2024,266.9
"Communities, Customer & Commercial Services",Sport & Leisure,Supplies & Services,Provisions,BIKOLD,14/03/2024,197.01
"Communities, Customer & Commercial Services",Sport & Leisure,Supplies & Services,Provisions,BIKOLD,14/03/2024,646.83
"Communities, Customer & Commercial Services",Sport & Leisure,Supplies & Services,Provisions,BIKOLD,14/03/2024,338.07
"Communities, Customer & Commercial Services",Sport & Leisure,Supplies & Services,Provisions,BIKOLD,14/03/2024,272.1
"Communities, Customer & Commercial Services",Sport & Leisure,Supplies & Services,Provisions,BIKOLD,14/03/2024,370.6
"Communities, Customer & Commercial Services",Sport & Leisure,Supplies & Services,Provisions,BIKOLD,14/03/2024,144.46
"Communities, Customer & Commercial Services",Sport & Leisure,Supplies & Services,Provisions,BIKOLD,14/03/2024,337.97
"Communities, Customer & Commercial Services",Sport & Leisure,Supplies & Services,Provisions,BIKOLD,14/03/2024,236.45
"Communities, Customer & Commercial Services",Sport & Leisure,Supplies & Services,Provisions,BIKOLD,14/03/2024,416.97
"Communities, Customer & Commercial Services",Sport & Leisure,Supplies & Services,Provisions,BIKOLD,14/03/2024,144.41
"Communities, Customer & Commercial Services",Sport & Leisure,Supplies & Services,Provisions,BIKOLD,14/03/2024,169.66
"Communities, Customer & Commercial Services",Sport & Leisure,Supplies & Services,Provisions,BIKOLD,14/03/2024,156.61
"Communities, Customer & Commercial Services",Sport & Leisure,Supplies & Services,Provisions,BIKOLD,14/03/2024,381.36
"Communities, Customer & Commercial Services",Sport & Leisure,Supplies & Services,Provisions,BIKOLD,14/03/2024,200.15
"Communities, Customer & Commercial Services",Sport & Leisure,Supplies & Services,Provisions,BIKOLD,14/03/2024,339.96
"Communities, Customer & Commercial Services",Sport & Leisure,Supplies & Services,Provisions,BIKOLD,14/03/2024,179.87
"Communities, Customer & Commercial Services",Sport & Leisure,Supplies & Services,Provisions,BIKOLD,14/03/2024,655.33
"Communities, Customer & Commercial Services",Sport & Leisure,Supplies & Services,Provisions,BIKOLD,14/03/2024,412.1
"Communities, Customer & Commercial Services",Sport & Leisure,Supplies & Services,Provisions,BIKOLD,14/03/2024,396.59
"Communities, Customer & Commercial Services",Sport & Leisure,Supplies & Services,Provisions,BIKOLD,14/03/2024,394.9
"Communities, Customer & Commercial Services",Sport & Leisure,Supplies & Services,Provisions,BIKOLD,14/03/2024,571.49
"Communities, Customer & Commercial Services",Sport & Leisure,Supplies & Services,Provisions,BIKOLD,14/03/2024,110.6
"Communities, Customer & Commercial Services",Sport & Leisure,Supplies & Services,Provisions,BIKOLD,14/03/2024,522.05
"Communities, Customer & Commercial Services",Sport & Leisure,Supplies & Services,Provisions,BIKOLD,14/03/2024,279.37
"Communities, Customer & Commercial Services",Sport & Leisure,Supplies & Services,Provisions,BIKOLD,14/03/2024,129.96
"Communities, Customer & Commercial Services",Sport & Leisure,Supplies & Services,Provisions,BIKOLD,14/03/2024,560.8
"Communities, Customer & Commercial Services",Sport & Leisure,Supplies & Services,Provisions,BIKOLD,14/03/2024,216.77
"Communities, Customer & Commercial Services",Sport & Leisure,Supplies & Services,Provisions,BIKOLD,14/03/2024,120.03
"Communities, Customer & Commercial Services",Sport & Leisure,Supplies & Services,Provisions,BIKOLD,14/03/2024,202
"Communities, Customer & Commercial Services",Sport & Leisure,Supplies & Services,Provisions,BIKOLD,14/03/2024,334.81
"Communities, Customer & Commercial Services",Sport & Leisure,Supplies & Services,Provisions,BIKOLD,14/03/2024,130.84
"Communities, Customer & Commercial Services",Sport & Leisure,Supplies & Services,Provisions,BIKOLD,14/03/2024,101.65
"Communities, Customer & Commercial Services",Sport & Leisure,Supplies & Services,Provisions,BIKOLD,14/03/2024,317.81
"Communities, Customer & Commercial Services",Sport & Leisure,Supplies & Services,Provisions,BIKOLD,14/03/2024,415.14
"Communities, Customer & Commercial Services",Sport & Leisure,Supplies & Services,Provisions,BIKOLD,14/03/2024,385.33
"Communities, Customer & Commercial Services",Sport & Leisure,Supplies & Services,Provisions,BIKOLD,14/03/2024,232.58
"Communities, Customer & Commercial Services",Sport & Leisure,Supplies & Services,Provisions,BIKOLD,14/03/2024,236.02
"Communities, Customer & Commercial Services",Sport & Leisure,Supplies & Services,Provisions,BIKOLD,14/03/2024,117.3
"Communities, Customer & Commercial Services",Sport & Leisure,Supplies & Services,Provisions,BIKOLD,14/03/2024,255.93
"Communities, Customer & Commercial Services",Sport & Leisure,Supplies & Services,Provisions,BIKOLD,14/03/2024,105.23
"Communities, Customer & Commercial Services",Sport & Leisure,Supplies & Services,Provisions,BIKOLD,14/03/2024,401.37
"Communities, Customer & Commercial Services",Sport & Leisure,Supplies & Services,Provisions,BIKOLD,14/03/2024,284.22
"Communities, Customer & Commercial Services",Sport & Leisure,Supplies & Services,Provisions,BIKOLD,14/03/2024,183.61
"Communities, Customer & Commercial Services",Sport & Leisure,Supplies & Services,Provisions,BIKOLD,14/03/2024,471.44
"Communities, Customer & Commercial Services",Sport & Leisure,Supplies & Services,Provisions,BIKOLD,14/03/2024,126.56
"Communities, Customer & Commercial Services",Sport & Leisure,Supplies & Services,Provisions,BIKOLD,14/03/2024,154.6
"Communities, Customer & Commercial Services",Sport & Leisure,Supplies & Services,Provisions,BIKOLD,14/03/2024,287.17
"Communities, Customer & Commercial Services",Sport & Leisure,Supplies & Services,Provisions,BIKOLD,14/03/2024,398.05
"Communities, Customer & Commercial Services",Sport & Leisure,Supplies & Services,Provisions,BIKOLD,14/03/2024,161.07
"Communities, Customer & Commercial Services",Sport & Leisure,Supplies & Services,Provisions,BIKOLD,14/03/2024,112.05
"Communities, Customer & Commercial Services",Sport & Leisure,Supplies & Services,Provisions,BIKOLD,14/03/2024,380.95
"Communities, Customer & Commercial Services",Sport & Leisure,Supplies & Services,Provisions,BIKOLD,14/03/2024,484.91
"Communities, Customer & Commercial Services",Sport & Leisure,Supplies & Services,Provisions,BIKOLD,14/03/2024,107.51
"Communities, Customer & Commercial Services",Sport & Leisure,Supplies & Services,Provisions,BIKOLD,14/03/2024,118.71
"Communities, Customer & Commercial Services",Sport & Leisure,Supplies & Services,Provisions,BIKOLD,14/03/2024,234.58
"Communities, Customer & Commercial Services",Sport & Leisure,Supplies & Services,Provisions,BIKOLD,14/03/2024,102.04
"Communities, Customer & Commercial Services",Sport & Leisure,Supplies & Services,Provisions,BIKOLD,14/03/2024,248.35
"Communities, Customer & Commercial Services",Sport & Leisure,Supplies & Services,Provisions,BIKOLD,14/03/2024,133.44
"Communities, Customer & Commercial Services",Sport & Leisure,Supplies & Services,Provisions,John Sheppard Catering Butchers,15/03/2024,211.01
"Communities, Customer & Commercial Services",Sport & Leisure,Supplies & Services,Provisions,John Sheppard Catering Butchers,15/03/2024,103.15
"Communities, Customer & Commercial Services",Sport & Leisure,Supplies & Services,Provisions,John Sheppard Catering Butchers,15/03/2024,104.93
"Communities, Customer & Commercial Services",Sport & Leisure,Supplies & Services,Provisions,John Sheppard Catering Butchers,15/03/2024,177.33
"Communities, Customer & Commercial Services",Sport & Leisure,Supplies & Services,Provisions,John Sheppard Catering Butchers,15/03/2024,100.43
"Communities, Customer & Commercial Services",Sport & Leisure,Supplies & Services,Provisions,John Sheppard Catering Butchers,15/03/2024,110.4
"Communities, Customer & Commercial Services",Sport & Leisure,Supplies & Services,Provisions,John Sheppard Catering Butchers,15/03/2024,346.82
"Communities, Customer & Commercial Services",Sport & Leisure,Supplies & Services,Provisions,John Sheppard Catering Butchers,15/03/2024,100.43
"Communities, Customer & Commercial Services",Sport & Leisure,Supplies & Services,Provisions,John Sheppard Catering Butchers,15/03/2024,110.83
"Communities, Customer & Commercial Services",Sport & Leisure,Supplies & Services,Provisions,John Sheppard Catering Butchers,15/03/2024,246.05
"Communities, Customer & Commercial Services",Sport & Leisure,Supplies & Services,Provisions,ROWLANDS & COMPANY,15/03/2024,154.74
"Communities, Customer & Commercial Services",Sport & Leisure,Supplies & Services,Provisions,ROWLANDS & COMPANY,15/03/2024,158.64
"Communities, Customer & Commercial Services",Sport & Leisure,Supplies & Services,Provisions,ROWLANDS & COMPANY,15/03/2024,132.73
"Communities, Customer & Commercial Services",Sport & Leisure,Supplies & Services,Provisions,ROWLANDS & COMPANY,15/03/2024,191.76
"Communities, Customer & Commercial Services",Sport & Leisure,Supplies & Services,Provisions,ROWLANDS & COMPANY,15/03/2024,151.43
"Communities, Customer & Commercial Services",Sport & Leisure,Supplies & Services,Provisions,ROWLANDS & COMPANY,15/03/2024,109.23
"Communities, Customer & Commercial Services",Sport & Leisure,Supplies & Services,Provisions,ROWLANDS & COMPANY,15/03/2024,117.44
"Communities, Customer & Commercial Services",Sport & Leisure,Supplies & Services,Provisions,ROWLANDS & COMPANY,15/03/2024,118.94
"Communities, Customer & Commercial Services",Sport & Leisure,Supplies & Services,Provisions,ROWLANDS & COMPANY,15/03/2024,143.09
"Communities, Customer & Commercial Services",Sport & Leisure,Supplies & Services,Provisions,ROWLANDS & COMPANY,15/03/2024,129.53
"Communities, Customer & Commercial Services",Sport & Leisure,Supplies & Services,Provisions,ROWLANDS & COMPANY,15/03/2024,180.19
"Communities, Customer & Commercial Services",Sport & Leisure,Supplies & Services,Provisions,ROWLANDS & COMPANY,15/03/2024,112.6
"Communities, Customer & Commercial Services",Sport & Leisure,Supplies & Services,Provisions,ROWLANDS & COMPANY,15/03/2024,209.78
"Communities, Customer & Commercial Services",Sport & Leisure,Supplies & Services,Provisions,ROWLANDS & COMPANY,15/03/2024,116.78
"Communities, Customer & Commercial Services",Sport & Leisure,Supplies & Services,Provisions,ROWLANDS & COMPANY,15/03/2024,163.72
"Communities, Customer & Commercial Services",Sport & Leisure,Supplies & Services,Provisions,ROWLANDS & COMPANY,15/03/2024,123.18
"Communities, Customer & Commercial Services",Sport & Leisure,Supplies & Services,Provisions,ROWLANDS & COMPANY,15/03/2024,157.23
"Communities, Customer & Commercial Services",Sport & Leisure,Supplies & Services,Provisions,ROWLANDS & COMPANY,15/03/2024,136.09
"Communities, Customer & Commercial Services",Sport & Leisure,Supplies & Services,Provisions,ROWLANDS & COMPANY,15/03/2024,297.4
"Communities, Customer & Commercial Services",Sport & Leisure,Supplies & Services,Provisions,ROWLANDS & COMPANY,15/03/2024,120.38
"Communities, Customer & Commercial Services",Sport & Leisure,Supplies & Services,Provisions,ROWLANDS & COMPANY,15/03/2024,118.71
"Communities, Customer & Commercial Services",Sport & Leisure,Supplies & Services,Provisions,ROWLANDS & COMPANY,15/03/2024,146.39
"Communities, Customer & Commercial Services",Sport & Leisure,Supplies & Services,Provisions,ROWLANDS & COMPANY,15/03/2024,112.55
"Communities, Customer & Commercial Services",Sport & Leisure,Supplies & Services,Provisions,ROWLANDS & COMPANY,15/03/2024,147.96
"Communities, Customer & Commercial Services",Sport & Leisure,Supplies & Services,Provisions,ROWLANDS & COMPANY,15/03/2024,103.84
"Communities, Customer & Commercial Services",Sport & Leisure,Supplies & Services,Provisions,ROWLANDS & COMPANY,15/03/2024,134.03
"Communities, Customer & Commercial Services",Sport & Leisure,Supplies & Services,Provisions,On A Roll,21/03/2024,232.5
"Communities, Customer & Commercial Services",Sport & Leisure,Supplies & Services,Provisions,BIKOLD,21/03/2024,282.6
"Communities, Customer & Commercial Services",Sport & Leisure,Supplies & Services,Provisions,BIKOLD,21/03/2024,139.56
"Communities, Customer & Commercial Services",Sport & Leisure,Supplies & Services,Provisions,BIKOLD,21/03/2024,107.39
"Communities, Customer & Commercial Services",Sport & Leisure,Supplies & Services,Provisions,BIKOLD,21/03/2024,172.15
"Communities, Customer & Commercial Services",Sport & Leisure,Supplies & Services,Provisions,BIKOLD,21/03/2024,314.24
"Communities, Customer & Commercial Services",Sport & Leisure,Supplies & Services,Provisions,BIKOLD,21/03/2024,147.18
"Communities, Customer & Commercial Services",Sport & Leisure,Supplies & Services,Provisions,BIKOLD,21/03/2024,117.85
"Communities, Customer & Commercial Services",Sport & Leisure,Supplies & Services,Provisions,BIKOLD,21/03/2024,120.36
"Communities, Customer & Commercial Services",Sport & Leisure,Supplies & Services,Provisions,BIKOLD,21/03/2024,265.05
"Communities, Customer & Commercial Services",Sport & Leisure,Supplies & Services,Provisions,BIKOLD,21/03/2024,418.25
"Communities, Customer & Commercial Services",Sport & Leisure,Supplies & Services,Provisions,BIKOLD,21/03/2024,129.97
"Communities, Customer & Commercial Services",Sport & Leisure,Supplies & Services,Provisions,BIKOLD,21/03/2024,179.87
"Communities, Customer & Commercial Services",Sport & Leisure,Supplies & Services,Provisions,BIKOLD,21/03/2024,105.72
"Communities, Customer & Commercial Services",Sport & Leisure,Supplies & Services,Provisions,BIKOLD,21/03/2024,414.5
"Communities, Customer & Commercial Services",Sport & Leisure,Supplies & Services,Provisions,BIKOLD,21/03/2024,317.38
"Communities, Customer & Commercial Services",Sport & Leisure,Supplies & Services,Provisions,BIKOLD,21/03/2024,163.55
"Communities, Customer & Commercial Services",Sport & Leisure,Supplies & Services,Provisions,BIKOLD,21/03/2024,242.11
"Communities, Customer & Commercial Services",Sport & Leisure,Supplies & Services,Provisions,BIKOLD,21/03/2024,478.11
"Communities, Customer & Commercial Services",Sport & Leisure,Supplies & Services,Provisions,BIKOLD,21/03/2024,587.57
"Communities, Customer & Commercial Services",Sport & Leisure,Supplies & Services,Provisions,BIKOLD,21/03/2024,216.94
"Communities, Customer & Commercial Services",Sport & Leisure,Supplies & Services,Provisions,BIKOLD,21/03/2024,255.26
"Communities, Customer & Commercial Services",Sport & Leisure,Supplies & Services,Provisions,BIKOLD,21/03/2024,211.01
"Communities, Customer & Commercial Services",Sport & Leisure,Supplies & Services,Provisions,BIKOLD,21/03/2024,471.07
"Communities, Customer & Commercial Services",Sport & Leisure,Supplies & Services,Provisions,BIKOLD,21/03/2024,289.03
"Communities, Customer & Commercial Services",Sport & Leisure,Supplies & Services,Provisions,BIKOLD,21/03/2024,395.51
"Communities, Customer & Commercial Services",Sport & Leisure,Supplies & Services,Provisions,BIKOLD,21/03/2024,181.71
"Communities, Customer & Commercial Services",Sport & Leisure,Supplies & Services,Provisions,BIKOLD,21/03/2024,122.6
"Communities, Customer & Commercial Services",Sport & Leisure,Supplies & Services,Provisions,BIKOLD,21/03/2024,163.89
"Communities, Customer & Commercial Services",Sport & Leisure,Supplies & Services,Provisions,BIKOLD,21/03/2024,351.04
"Communities, Customer & Commercial Services",Sport & Leisure,Supplies & Services,Provisions,BIKOLD,21/03/2024,132.84
"Communities, Customer & Commercial Services",Sport & Leisure,Supplies & Services,Provisions,BIKOLD,21/03/2024,376.95
"Communities, Customer & Commercial Services",Sport & Leisure,Supplies & Services,Provisions,BIKOLD,21/03/2024,286.7
"Communities, Customer & Commercial Services",Sport & Leisure,Supplies & Services,Provisions,BIKOLD,21/03/2024,421.57
"Communities, Customer & Commercial Services",Sport & Leisure,Supplies & Services,Provisions,BIKOLD,21/03/2024,200.59
"Communities, Customer & Commercial Services",Sport & Leisure,Supplies & Services,Provisions,BIKOLD,21/03/2024,405.24
"Communities, Customer & Commercial Services",Sport & Leisure,Supplies & Services,Provisions,BIKOLD,21/03/2024,168.75
"Communities, Customer & Commercial Services",Sport & Leisure,Supplies & Services,Provisions,BIKOLD,21/03/2024,178.45
"Communities, Customer & Commercial Services",Sport & Leisure,Supplies & Services,Provisions,BIKOLD,21/03/2024,328.48
"Communities, Customer & Commercial Services",Sport & Leisure,Supplies & Services,Provisions,BIKOLD,21/03/2024,250.66
"Communities, Customer & Commercial Services",Sport & Leisure,Supplies & Services,Provisions,BIKOLD,21/03/2024,111.44
"Communities, Customer & Commercial Services",Sport & Leisure,Supplies & Services,Provisions,BIKOLD,21/03/2024,354.77
"Communities, Customer & Commercial Services",Sport & Leisure,Supplies & Services,Provisions,BIKOLD,21/03/2024,634.39
"Communities, Customer & Commercial Services",Sport & Leisure,Supplies & Services,Provisions,BIKOLD,21/03/2024,108.95
"Communities, Customer & Commercial Services",Sport & Leisure,Supplies & Services,Provisions,BIKOLD,21/03/2024,124.94
"Communities, Customer & Commercial Services",Sport & Leisure,Supplies & Services,Provisions,BIKOLD,21/03/2024,216.63
"Communities, Customer & Commercial Services",Sport & Leisure,Supplies & Services,Provisions,BIKOLD,21/03/2024,112.73
"Communities, Customer & Commercial Services",Sport & Leisure,Supplies & Services,Provisions,BIKOLD,21/03/2024,991.7
"Communities, Customer & Commercial Services",Sport & Leisure,Supplies & Services,Provisions,BIKOLD,21/03/2024,250.85
"Communities, Customer & Commercial Services",Sport & Leisure,Supplies & Services,Provisions,BIKOLD,21/03/2024,257.85
"Communities, Customer & Commercial Services",Sport & Leisure,Supplies & Services,Provisions,BIKOLD,21/03/2024,326.34
"Communities, Customer & Commercial Services",Sport & Leisure,Supplies & Services,Provisions,BIKOLD,21/03/2024,139.9
"Communities, Customer & Commercial Services",Sport & Leisure,Supplies & Services,Provisions,BIKOLD,21/03/2024,119.08
"Communities, Customer & Commercial Services",Sport & Leisure,Supplies & Services,Provisions,BIKOLD,21/03/2024,337
"Communities, Customer & Commercial Services",Sport & Leisure,Supplies & Services,Provisions,BIKOLD,21/03/2024,116.94
"Communities, Customer & Commercial Services",Sport & Leisure,Supplies & Services,Provisions,BIKOLD,21/03/2024,104.18
"Communities, Customer & Commercial Services",Sport & Leisure,Supplies & Services,Provisions,BIKOLD,21/03/2024,118.31
"Communities, Customer & Commercial Services",Sport & Leisure,Supplies & Services,Provisions,BIKOLD,21/03/2024,154.12
"Communities, Customer & Commercial Services",Sport & Leisure,Supplies & Services,Provisions,BIKOLD,21/03/2024,239.24
"Communities, Customer & Commercial Services",Sport & Leisure,Supplies & Services,Provisions,BIKOLD,21/03/2024,516.22
"Communities, Customer & Commercial Services",Sport & Leisure,Supplies & Services,Provisions,BIKOLD,21/03/2024,146.49
"Communities, Customer & Commercial Services",Sport & Leisure,Supplies & Services,Provisions,BIKOLD,21/03/2024,127.24
"Communities, Customer & Commercial Services",Sport & Leisure,Supplies & Services,Provisions,BIKOLD,21/03/2024,297.06
"Communities, Customer & Commercial Services",Sport & Leisure,Supplies & Services,Provisions,BIKOLD,21/03/2024,253.55
"Communities, Customer & Commercial Services",Sport & Leisure,Supplies & Services,Provisions,BIKOLD,21/03/2024,115.83
"Communities, Customer & Commercial Services",Sport & Leisure,Supplies & Services,Provisions,BIKOLD,21/03/2024,165.5
"Communities, Customer & Commercial Services",Sport & Leisure,Supplies & Services,Provisions,BIKOLD,21/03/2024,174.78
"Communities, Customer & Commercial Services",Sport & Leisure,Supplies & Services,Provisions,BIKOLD,21/03/2024,339.28
"Communities, Customer & Commercial Services",Sport & Leisure,Supplies & Services,Provisions,BIKOLD,21/03/2024,233.83
"Communities, Customer & Commercial Services",Sport & Leisure,Supplies & Services,Provisions,BIKOLD,21/03/2024,475.92
"Communities, Customer & Commercial Services",Sport & Leisure,Supplies & Services,Provisions,BIKOLD,21/03/2024,462.82
"Communities, Customer & Commercial Services",Sport & Leisure,Supplies & Services,Provisions,BIKOLD,21/03/2024,174.26
"Communities, Customer & Commercial Services",Sport & Leisure,Supplies & Services,Provisions,BIKOLD,21/03/2024,209.94
"Communities, Customer & Commercial Services",Sport & Leisure,Supplies & Services,Provisions,BIKOLD,21/03/2024,246.41
"Communities, Customer & Commercial Services",Sport & Leisure,Supplies & Services,Provisions,BIKOLD,21/03/2024,251.18
"Communities, Customer & Commercial Services",Sport & Leisure,Supplies & Services,Provisions,BIKOLD,21/03/2024,317.52
"Communities, Customer & Commercial Services",Sport & Leisure,Supplies & Services,Provisions,BIKOLD,21/03/2024,578.17
"Communities, Customer & Commercial Services",Sport & Leisure,Supplies & Services,Provisions,BIKOLD,21/03/2024,289.08
"Communities, Customer & Commercial Services",Sport & Leisure,Supplies & Services,Provisions,BIKOLD,21/03/2024,265.31
"Communities, Customer & Commercial Services",Sport & Leisure,Supplies & Services,Provisions,BIKOLD,21/03/2024,367.03
"Communities, Customer & Commercial Services",Sport & Leisure,Supplies & Services,Provisions,BIKOLD,21/03/2024,158.68
"Communities, Customer & Commercial Services",Sport & Leisure,Supplies & Services,Provisions,BIKOLD,21/03/2024,186.01
"Communities, Customer & Commercial Services",Sport & Leisure,Supplies & Services,Provisions,BIKOLD,21/03/2024,674.56
"Communities, Customer & Commercial Services",Sport & Leisure,Supplies & Services,Provisions,BIKOLD,21/03/2024,128.48
"Communities, Customer & Commercial Services",Sport & Leisure,Supplies & Services,Provisions,BIKOLD,21/03/2024,640.63
"Communities, Customer & Commercial Services",Sport & Leisure,Supplies & Services,Provisions,BIKOLD,21/03/2024,141.65
"Communities, Customer & Commercial Services",Sport & Leisure,Supplies & Services,Provisions,BIKOLD,21/03/2024,163.95
"Communities, Customer & Commercial Services",Sport & Leisure,Supplies & Services,Provisions,BIKOLD,21/03/2024,201.13
"Communities, Customer & Commercial Services",Sport & Leisure,Supplies & Services,Provisions,BIKOLD,21/03/2024,108.07
"Communities, Customer & Commercial Services",Sport & Leisure,Supplies & Services,Provisions,BIKOLD,21/03/2024,332.96
"Communities, Customer & Commercial Services",Sport & Leisure,Supplies & Services,Provisions,BIKOLD,21/03/2024,255.02
"Communities, Customer & Commercial Services",Sport & Leisure,Supplies & Services,Provisions,BIKOLD,21/03/2024,435.16
"Communities, Customer & Commercial Services",Sport & Leisure,Supplies & Services,Provisions,BIKOLD,21/03/2024,124.29
"Communities, Customer & Commercial Services",Sport & Leisure,Supplies & Services,Provisions,BIKOLD,21/03/2024,525.62
"Communities, Customer & Commercial Services",Sport & Leisure,Supplies & Services,Provisions,BIKOLD,21/03/2024,107.65
"Communities, Customer & Commercial Services",Sport & Leisure,Supplies & Services,Provisions,BIKOLD,21/03/2024,179.87
"Communities, Customer & Commercial Services",Sport & Leisure,Supplies & Services,Provisions,BIKOLD,21/03/2024,555.46
"Communities, Customer & Commercial Services",Sport & Leisure,Supplies & Services,Provisions,BIKOLD,21/03/2024,291.7
"Communities, Customer & Commercial Services",Sport & Leisure,Supplies & Services,Provisions,BIKOLD,21/03/2024,369.73
"Communities, Customer & Commercial Services",Sport & Leisure,Supplies & Services,Provisions,BIKOLD,21/03/2024,318.93
"Communities, Customer & Commercial Services",Sport & Leisure,Supplies & Services,Provisions,BIKOLD,21/03/2024,285.36
"Communities, Customer & Commercial Services",Sport & Leisure,Supplies & Services,Provisions,BIKOLD,21/03/2024,130.9
"Communities, Customer & Commercial Services",Sport & Leisure,Supplies & Services,Provisions,BIKOLD,21/03/2024,119.99
"Communities, Customer & Commercial Services",Sport & Leisure,Supplies & Services,Provisions,BIKOLD,21/03/2024,602.93
"Communities, Customer & Commercial Services",Sport & Leisure,Supplies & Services,Provisions,BIKOLD,21/03/2024,537.87
"Communities, Customer & Commercial Services",Sport & Leisure,Supplies & Services,Provisions,BIKOLD,21/03/2024,195.71
"Communities, Customer & Commercial Services",Sport & Leisure,Supplies & Services,Provisions,BIKOLD,21/03/2024,196.2
"Communities, Customer & Commercial Services",Sport & Leisure,Supplies & Services,Provisions,John Sheppard Catering Butchers,22/03/2024,184.25
"Communities, Customer & Commercial Services",Sport & Leisure,Supplies & Services,Provisions,John Sheppard Catering Butchers,22/03/2024,252.15
"Communities, Customer & Commercial Services",Sport & Leisure,Supplies & Services,Provisions,John Sheppard Catering Butchers,22/03/2024,138.54
"Communities, Customer & Commercial Services",Sport & Leisure,Supplies & Services,Provisions,John Sheppard Catering Butchers,22/03/2024,110.88
"Communities, Customer & Commercial Services",Sport & Leisure,Supplies & Services,Provisions,ROWLANDS & COMPANY,22/03/2024,144.84
"Communities, Customer & Commercial Services",Sport & Leisure,Supplies & Services,Provisions,ROWLANDS & COMPANY,22/03/2024,100.51
"Communities, Customer & Commercial Services",Sport & Leisure,Supplies & Services,Provisions,ROWLANDS & COMPANY,22/03/2024,104.31
"Communities, Customer & Commercial Services",Sport & Leisure,Supplies & Services,Provisions,ROWLANDS & COMPANY,22/03/2024,120.51
"Communities, Customer & Commercial Services",Sport & Leisure,Supplies & Services,Provisions,ROWLANDS & COMPANY,22/03/2024,107.01
"Communities, Customer & Commercial Services",Sport & Leisure,Supplies & Services,Provisions,ROWLANDS & COMPANY,22/03/2024,189.69
"Communities, Customer & Commercial Services",Sport & Leisure,Supplies & Services,Provisions,ROWLANDS & COMPANY,22/03/2024,145.79
"Communities, Customer & Commercial Services",Sport & Leisure,Supplies & Services,Provisions,ROWLANDS & COMPANY,22/03/2024,232.8
"Communities, Customer & Commercial Services",Sport & Leisure,Supplies & Services,Provisions,ROWLANDS & COMPANY,22/03/2024,250.08
"Communities, Customer & Commercial Services",Sport & Leisure,Supplies & Services,Provisions,ROWLANDS & COMPANY,22/03/2024,111.27
"Communities, Customer & Commercial Services",Sport & Leisure,Supplies & Services,Provisions,ROWLANDS & COMPANY,22/03/2024,107.91
"Communities, Customer & Commercial Services",Sport & Leisure,Supplies & Services,Provisions,ROWLANDS & COMPANY,22/03/2024,146.51
"Communities, Customer & Commercial Services",Sport & Leisure,Supplies & Services,Provisions,ROWLANDS & COMPANY,22/03/2024,170.49
"Communities, Customer & Commercial Services",Sport & Leisure,Supplies & Services,Provisions,ROWLANDS & COMPANY,22/03/2024,107.57
"Communities, Customer & Commercial Services",Sport & Leisure,Supplies & Services,Provisions,ROWLANDS & COMPANY,22/03/2024,140.1
"Communities, Customer & Commercial Services",Sport & Leisure,Supplies & Services,Provisions,ROWLANDS & COMPANY,22/03/2024,125.88
"Communities, Customer & Commercial Services",Sport & Leisure,Supplies & Services,Provisions,ROWLANDS & COMPANY,22/03/2024,103.46
"Communities, Customer & Commercial Services",Sport & Leisure,Supplies & Services,Provisions,ROWLANDS & COMPANY,22/03/2024,114.32
"Communities, Customer & Commercial Services",Sport & Leisure,Supplies & Services,Provisions,ROWLANDS & COMPANY,22/03/2024,135.72
"Communities, Customer & Commercial Services",Sport & Leisure,Supplies & Services,Provisions,ROWLANDS & COMPANY,22/03/2024,152.52
"Communities, Customer & Commercial Services",Sport & Leisure,Supplies & Services,Provisions,ROWLANDS & COMPANY,22/03/2024,143.84
"Communities, Customer & Commercial Services",Sport & Leisure,Supplies & Services,Provisions,ROWLANDS & COMPANY,22/03/2024,120.01
"Communities, Customer & Commercial Services",Sport & Leisure,Supplies & Services,Provisions,ROWLANDS & COMPANY,22/03/2024,120
"Communities, Customer & Commercial Services",Sport & Leisure,Supplies & Services,Provisions,ROWLANDS & COMPANY,22/03/2024,109.5
"Communities, Customer & Commercial Services",Sport & Leisure,Supplies & Services,Provisions,PASTA KING (UK) LIMITED,28/03/2024,187.8
"Communities, Customer & Commercial Services",Sport & Leisure,Supplies & Services,Provisions,On A Roll,28/03/2024,215.35
"Communities, Customer & Commercial Services",Sport & Leisure,Premises-Related Expenditure,Clean Mats & Toilet Requisites,Border Janitorial Supplies Limited,05/03/2024,131.26
"Communities, Customer & Commercial Services",Sport & Leisure,Supplies & Services,Crockery/Hardware/Light Equip,TROPICAL ICE,11/03/2024,759
"Communities, Customer & Commercial Services",Sport & Leisure,Supplies & Services,Crockery/Hardware/Light Equip,Vegware,01/03/2024,121.05
"Communities, Customer & Commercial Services",Sport & Leisure,Supplies & Services,Crockery/Hardware/Light Equip,PLANGLOW LTD,15/03/2024,506.22
"Communities, Customer & Commercial Services",Sport & Leisure,Supplies & Services,Crockery/Hardware/Light Equip,PLANGLOW LTD,15/03/2024,379.67
"Communities, Customer & Commercial Services",Sport & Leisure,Supplies & Services,Crockery/Hardware/Light Equip,PLANGLOW LTD,26/03/2024,129.8
"Communities, Customer & Commercial Services",Sport & Leisure,Supplies & Services,Provisions,PASTA KING (UK) LIMITED,11/03/2024,174.96
"Communities, Customer & Commercial Services",Sport & Leisure,Supplies & Services,Provisions,PASTA KING (UK) LIMITED,11/03/2024,425.64
"Communities, Customer & Commercial Services",Sport & Leisure,Supplies & Services,Provisions,THEOS FOOD SERVICE LTD,11/03/2024,120.24
"Communities, Customer & Commercial Services",Sport & Leisure,Supplies & Services,Provisions,ROWLANDS & COMPANY,08/03/2024,318.91
"Communities, Customer & Commercial Services",Sport & Leisure,Supplies & Services,Provisions,ROWLANDS & COMPANY,08/03/2024,158.99
"Communities, Customer & Commercial Services",Sport & Leisure,Supplies & Services,Provisions,Delice de France,01/03/2024,276.75
"Communities, Customer & Commercial Services",Sport & Leisure,Supplies & Services,Provisions,PASTA KING (UK) LIMITED,01/03/2024,1014.12
"Communities, Customer & Commercial Services",Sport & Leisure,Supplies & Services,Provisions,On A Roll,01/03/2024,187.6
"Communities, Customer & Commercial Services",Sport & Leisure,Supplies & Services,Provisions,On A Roll,01/03/2024,125.16
"Communities, Customer & Commercial Services",Sport & Leisure,Supplies & Services,Provisions,John Sheppard Catering Butchers,04/03/2024,143.1
"Communities, Customer & Commercial Services",Sport & Leisure,Supplies & Services,Provisions,John Sheppard Catering Butchers,04/03/2024,204.9
"Communities, Customer & Commercial Services",Sport & Leisure,Supplies & Services,Provisions,ROWLANDS & COMPANY,01/03/2024,135.04
"Communities, Customer & Commercial Services",Sport & Leisure,Supplies & Services,Provisions,ROWLANDS & COMPANY,01/03/2024,151.41
"Communities, Customer & Commercial Services",Sport & Leisure,Supplies & Services,Provisions,ROWLANDS & COMPANY,01/03/2024,113.09
"Communities, Customer & Commercial Services",Sport & Leisure,Supplies & Services,Provisions,On A Roll,07/03/2024,125.16
"Communities, Customer & Commercial Services",Sport & Leisure,Supplies & Services,Provisions,On A Roll,07/03/2024,175.08
"Communities, Customer & Commercial Services",Sport & Leisure,Supplies & Services,Provisions,BIKOLD,07/03/2024,118.8
"Communities, Customer & Commercial Services",Sport & Leisure,Supplies & Services,Provisions,BIKOLD,07/03/2024,821.74
"Communities, Customer & Commercial Services",Sport & Leisure,Supplies & Services,Provisions,BIKOLD,07/03/2024,674.04
"Communities, Customer & Commercial Services",Sport & Leisure,Supplies & Services,Provisions,BIKOLD,07/03/2024,465.98
"Communities, Customer & Commercial Services",Sport & Leisure,Supplies & Services,Provisions,BIKOLD,07/03/2024,137.71
"Communities, Customer & Commercial Services",Sport & Leisure,Supplies & Services,Provisions,BIKOLD,07/03/2024,1191.96
"Communities, Customer & Commercial Services",Sport & Leisure,Supplies & Services,Provisions,BIKOLD,07/03/2024,165.35
"Communities, Customer & Commercial Services",Sport & Leisure,Supplies & Services,Provisions,BIKOLD,07/03/2024,139.44
"Communities, Customer & Commercial Services",Sport & Leisure,Supplies & Services,Provisions,BIKOLD,07/03/2024,183.75
"Communities, Customer & Commercial Services",Sport & Leisure,Supplies & Services,Provisions,BIKOLD,07/03/2024,233.34
"Communities, Customer & Commercial Services",Sport & Leisure,Supplies & Services,Provisions,BIKOLD,07/03/2024,374.74
"Communities, Customer & Commercial Services",Sport & Leisure,Supplies & Services,Provisions,BIKOLD,07/03/2024,610.79
"Communities, Customer & Commercial Services",Sport & Leisure,Supplies & Services,Provisions,BIKOLD,07/03/2024,192.23
"Communities, Customer & Commercial Services",Sport & Leisure,Supplies & Services,Provisions,BIKOLD,07/03/2024,120.36
"Communities, Customer & Commercial Services",Sport & Leisure,Supplies & Services,Provisions,BIKOLD,07/03/2024,137.27
"Communities, Customer & Commercial Services",Sport & Leisure,Supplies & Services,Provisions,BIKOLD,07/03/2024,632.96
"Communities, Customer & Commercial Services",Sport & Leisure,Supplies & Services,Provisions,BIKOLD,07/03/2024,702.76
"Communities, Customer & Commercial Services",Sport & Leisure,Supplies & Services,Provisions,BIKOLD,07/03/2024,374.82
"Communities, Customer & Commercial Services",Sport & Leisure,Supplies & Services,Provisions,BIKOLD,07/03/2024,598.06
"Communities, Customer & Commercial Services",Sport & Leisure,Supplies & Services,Provisions,BIKOLD,07/03/2024,185.26
"Communities, Customer & Commercial Services",Sport & Leisure,Supplies & Services,Provisions,BIKOLD,07/03/2024,625.93
"Communities, Customer & Commercial Services",Sport & Leisure,Supplies & Services,Provisions,THEOS FOOD SERVICE LTD,05/03/2024,958.2
"Communities, Customer & Commercial Services",Sport & Leisure,Supplies & Services,Provisions,THEOS FOOD SERVICE LTD,05/03/2024,397.67
"Communities, Customer & Commercial Services",Sport & Leisure,Supplies & Services,Provisions,THEOS FOOD SERVICE LTD,12/03/2024,1247.2
"Communities, Customer & Commercial Services",Sport & Leisure,Supplies & Services,Provisions,On A Roll,15/03/2024,175.08
"Communities, Customer & Commercial Services",Sport & Leisure,Supplies & Services,Provisions,BIKOLD,14/03/2024,773.88
"Communities, Customer & Commercial Services",Sport & Leisure,Supplies & Services,Provisions,BIKOLD,14/03/2024,115.7
"Communities, Customer & Commercial Services",Sport & Leisure,Supplies & Services,Provisions,BIKOLD,14/03/2024,118.7
"Communities, Customer & Commercial Services",Sport & Leisure,Supplies & Services,Provisions,BIKOLD,14/03/2024,718.39
"Communities, Customer & Commercial Services",Sport & Leisure,Supplies & Services,Provisions,BIKOLD,14/03/2024,1002.36
"Communities, Customer & Commercial Services",Sport & Leisure,Supplies & Services,Provisions,BIKOLD,14/03/2024,159.36
"Communities, Customer & Commercial Services",Sport & Leisure,Supplies & Services,Provisions,BIKOLD,14/03/2024,341.67
"Communities, Customer & Commercial Services",Sport & Leisure,Supplies & Services,Provisions,BIKOLD,14/03/2024,174.91
"Communities, Customer & Commercial Services",Sport & Leisure,Supplies & Services,Provisions,BIKOLD,14/03/2024,131.7
"Communities, Customer & Commercial Services",Sport & Leisure,Supplies & Services,Provisions,BIKOLD,14/03/2024,406.78
"Communities, Customer & Commercial Services",Sport & Leisure,Supplies & Services,Provisions,BIKOLD,14/03/2024,319.88
"Communities, Customer & Commercial Services",Sport & Leisure,Supplies & Services,Provisions,BIKOLD,14/03/2024,202.09
"Communities, Customer & Commercial Services",Sport & Leisure,Supplies & Services,Provisions,BIKOLD,14/03/2024,388.97
"Communities, Customer & Commercial Services",Sport & Leisure,Supplies & Services,Provisions,BIKOLD,14/03/2024,546.31
"Communities, Customer & Commercial Services",Sport & Leisure,Supplies & Services,Provisions,BIKOLD,14/03/2024,142.69
"Communities, Customer & Commercial Services",Sport & Leisure,Supplies & Services,Provisions,BIKOLD,14/03/2024,534.07
"Communities, Customer & Commercial Services",Sport & Leisure,Supplies & Services,Provisions,BIKOLD,14/03/2024,149.01
"Communities, Customer & Commercial Services",Sport & Leisure,Supplies & Services,Provisions,BIKOLD,14/03/2024,463.06
"Communities, Customer & Commercial Services",Sport & Leisure,Supplies & Services,Provisions,BIKOLD,14/03/2024,944.57
"Communities, Customer & Commercial Services",Sport & Leisure,Supplies & Services,Provisions,BIKOLD,14/03/2024,554.84
"Communities, Customer & Commercial Services",Sport & Leisure,Supplies & Services,Provisions,BIKOLD,14/03/2024,1590.34
"Communities, Customer & Commercial Services",Sport & Leisure,Supplies & Services,Provisions,BIKOLD,14/03/2024,128.3
"Communities, Customer & Commercial Services",Sport & Leisure,Supplies & Services,Provisions,BIKOLD,14/03/2024,168.6
"Communities, Customer & Commercial Services",Sport & Leisure,Supplies & Services,Provisions,John Sheppard Catering Butchers,15/03/2024,127.2
"Communities, Customer & Commercial Services",Sport & Leisure,Supplies & Services,Provisions,John Sheppard Catering Butchers,15/03/2024,146.15
"Communities, Customer & Commercial Services",Sport & Leisure,Supplies & Services,Provisions,John Sheppard Catering Butchers,15/03/2024,146.66
"Communities, Customer & Commercial Services",Sport & Leisure,Supplies & Services,Provisions,ROWLANDS & COMPANY,15/03/2024,246.58
"Communities, Customer & Commercial Services",Sport & Leisure,Supplies & Services,Provisions,THEOS FOOD SERVICE LTD,20/03/2024,1315.3
"Communities, Customer & Commercial Services",Sport & Leisure,Supplies & Services,Provisions,On A Roll,15/03/2024,116.42
"Communities, Customer & Commercial Services",Sport & Leisure,Supplies & Services,Provisions,On A Roll,21/03/2024,175.08
"Communities, Customer & Commercial Services",Sport & Leisure,Supplies & Services,Provisions,On A Roll,21/03/2024,186.57
"Communities, Customer & Commercial Services",Sport & Leisure,Supplies & Services,Provisions,BIKOLD,21/03/2024,105.18
"Communities, Customer & Commercial Services",Sport & Leisure,Supplies & Services,Provisions,BIKOLD,21/03/2024,161.58
"Communities, Customer & Commercial Services",Sport & Leisure,Supplies & Services,Provisions,BIKOLD,21/03/2024,191.02
"Communities, Customer & Commercial Services",Sport & Leisure,Supplies & Services,Provisions,BIKOLD,21/03/2024,421.2
"Communities, Customer & Commercial Services",Sport & Leisure,Supplies & Services,Provisions,BIKOLD,21/03/2024,183.63
"Communities, Customer & Commercial Services",Sport & Leisure,Supplies & Services,Provisions,BIKOLD,21/03/2024,405.78
"Communities, Customer & Commercial Services",Sport & Leisure,Supplies & Services,Provisions,BIKOLD,21/03/2024,757.74
"Communities, Customer & Commercial Services",Sport & Leisure,Supplies & Services,Provisions,BIKOLD,21/03/2024,1052.19
"Communities, Customer & Commercial Services",Sport & Leisure,Supplies & Services,Provisions,BIKOLD,21/03/2024,257.35
"Communities, Customer & Commercial Services",Sport & Leisure,Supplies & Services,Provisions,BIKOLD,21/03/2024,335.4
"Communities, Customer & Commercial Services",Sport & Leisure,Supplies & Services,Provisions,BIKOLD,21/03/2024,135.22
"Communities, Customer & Commercial Services",Sport & Leisure,Supplies & Services,Provisions,BIKOLD,21/03/2024,326.15
"Communities, Customer & Commercial Services",Sport & Leisure,Supplies & Services,Provisions,BIKOLD,21/03/2024,133.33
"Communities, Customer & Commercial Services",Sport & Leisure,Supplies & Services,Provisions,BIKOLD,21/03/2024,1165.9
"Communities, Customer & Commercial Services",Sport & Leisure,Supplies & Services,Provisions,BIKOLD,21/03/2024,673.09
"Communities, Customer & Commercial Services",Sport & Leisure,Supplies & Services,Provisions,BIKOLD,21/03/2024,128.41
"Communities, Customer & Commercial Services",Sport & Leisure,Supplies & Services,Provisions,BIKOLD,21/03/2024,238.65
"Communities, Customer & Commercial Services",Sport & Leisure,Supplies & Services,Provisions,BIKOLD,21/03/2024,123.35
"Communities, Customer & Commercial Services",Sport & Leisure,Supplies & Services,Provisions,BIKOLD,21/03/2024,382.23
"Communities, Customer & Commercial Services",Sport & Leisure,Supplies & Services,Provisions,BIKOLD,21/03/2024,171.72
"Communities, Customer & Commercial Services",Sport & Leisure,Supplies & Services,Provisions,BIKOLD,21/03/2024,641.58
"Communities, Customer & Commercial Services",Sport & Leisure,Supplies & Services,Provisions,John Sheppard Catering Butchers,22/03/2024,119.25
"Communities, Customer & Commercial Services",Sport & Leisure,Supplies & Services,Provisions,On A Roll,28/03/2024,117.11
"Communities, Customer & Commercial Services",Sport & Leisure,Supplies & Services,Provisions,On A Roll,28/03/2024,106.14
"Communities, Customer & Commercial Services",Sport & Leisure,Supplies & Services,Crockery/Hardware/Light Equip,CALTEL CATERING & LAUNDRY EQUIPMENT LLP,01/03/2024,375
"Communities, Customer & Commercial Services",Sport & Leisure,Supplies & Services,Crockery/Hardware/Light Equip,CALTEL CATERING & LAUNDRY EQUIPMENT LLP,06/03/2024,-375
"Communities, Customer & Commercial Services",Sport & Leisure,Supplies & Services,Crockery/Hardware/Light Equip,CALTEL CATERING & LAUNDRY EQUIPMENT LLP,07/03/2024,-375
"Communities, Customer & Commercial Services",Sport & Leisure,Supplies & Services,Provisions,BIKOLD,07/03/2024,209.95
"Communities, Customer & Commercial Services",Sport & Leisure,Supplies & Services,Provisions,BIKOLD,07/03/2024,186.81
"Communities, Customer & Commercial Services",Sport & Leisure,Supplies & Services,Provisions,BIKOLD,21/03/2024,140.52
"Communities, Customer & Commercial Services",Sport & Leisure,Supplies & Services,Crockery/Hardware/Light Equip,TROPICAL ICE,11/03/2024,1088
"Communities, Customer & Commercial Services",Sport & Leisure,Supplies & Services,Crockery/Hardware/Light Equip,TROPICAL ICE,11/03/2024,450
"Communities, Customer & Commercial Services",Sport & Leisure,Supplies & Services,Crockery/Hardware/Light Equip,PLANGLOW LTD,15/03/2024,494.64
"Communities, Customer & Commercial Services",Sport & Leisure,Supplies & Services,Provisions,TROPICAL ICE,11/03/2024,390
"Communities, Customer & Commercial Services",Sport & Leisure,Supplies & Services,Provisions,BIKOLD,07/03/2024,119.97
"Communities, Customer & Commercial Services",Sport & Leisure,Supplies & Services,Provisions,BIKOLD,07/03/2024,359.34
"Communities, Customer & Commercial Services",Sport & Leisure,Supplies & Services,Provisions,BIKOLD,07/03/2024,337.35
"Communities, Customer & Commercial Services",Sport & Leisure,Supplies & Services,Provisions,BIKOLD,07/03/2024,296.62
"Communities, Customer & Commercial Services",Sport & Leisure,Supplies & Services,Provisions,BIKOLD,07/03/2024,219.71
"Communities, Customer & Commercial Services",Sport & Leisure,Supplies & Services,Provisions,BIKOLD,14/03/2024,593.42
"Communities, Customer & Commercial Services",Sport & Leisure,Supplies & Services,Provisions,BIKOLD,14/03/2024,271.48
"Communities, Customer & Commercial Services",Sport & Leisure,Supplies & Services,Provisions,BIKOLD,14/03/2024,563.98
"Communities, Customer & Commercial Services",Sport & Leisure,Supplies & Services,Provisions,BIKOLD,21/03/2024,255.33
"Communities, Customer & Commercial Services",Sport & Leisure,Supplies & Services,Provisions,BIKOLD,21/03/2024,178.33
"Communities, Customer & Commercial Services",Sport & Leisure,Supplies & Services,Provisions,BIKOLD,21/03/2024,210.73
"Communities, Customer & Commercial Services",Sport & Leisure,Supplies & Services,Provisions,BIKOLD,21/03/2024,308.6
"Communities, Customer & Commercial Services",Sport & Leisure,Supplies & Services,Provisions,BIKOLD,21/03/2024,104.71
"Communities, Customer & Commercial Services",Sport & Leisure,Supplies & Services,Provisions,BIKOLD,21/03/2024,472.26
"Communities, Customer & Commercial Services",Sport & Leisure,Employees,Staff Training,Cleara Consulting Limited trading as Clear Debit,18/03/2024,300
"Communities, Customer & Commercial Services",Sport & Leisure,Employees,Staff Training,Gladstone MRM Ltd,26/03/2024,797.5
"Communities, Customer & Commercial Services",Sport & Leisure,Employees,Staff Training,Gladstone MRM Ltd,26/03/2024,2392.5
"Communities, Customer & Commercial Services",Sport & Leisure,Supplies & Services,Payment Of Income Collected,Telford Tigers Limited,19/03/2024,4032.48
"Communities, Customer & Commercial Services",Sport & Leisure,Supplies & Services,Payment Of Income Collected,Telford Tigers Limited,04/03/2024,6865.2
"Communities, Customer & Commercial Services",Sport & Leisure,Supplies & Services,Payment Of Income Collected,Telford Tigers Limited,12/03/2024,5816.88
"Communities, Customer & Commercial Services",Sport & Leisure,Supplies & Services,Payment Of Income Collected,Telford Tigers Limited,25/03/2024,5256.96
"Communities, Customer & Commercial Services",Sport & Leisure,Supplies & Services,Equipment - Hire,SLIDERS SKATE SHOP,06/03/2024,300
"Communities, Customer & Commercial Services",Sport & Leisure,Premises-Related Expenditure,Grounds Maint - Sports Pitches,Technical Surfaces Ltd,26/03/2024,513
"Communities, Customer & Commercial Services",Sport & Leisure,Employees,Staff Training,INSTITUTE OF SWIMMING ,15/03/2024,399
"Communities, Customer & Commercial Services",Sport & Leisure,Employees,Staff Training,INSTITUTE OF SWIMMING ,27/03/2024,699
"Communities, Customer & Commercial Services",Sport & Leisure,Employees,Staff Training,INSTITUTE OF SWIMMING,26/03/2024,399
"Communities, Customer & Commercial Services",Sport & Leisure,Supplies & Services,Items For Resale,Splash About International Limited,12/03/2024,409.7
"Communities, Customer & Commercial Services",Sport & Leisure,Supplies & Services,Carriage/Delivery Charge,BRENNTAG UK LIMITED,11/03/2024,103
"Communities, Customer & Commercial Services",Sport & Leisure,Supplies & Services,Chemicals/Cleaning Products,BRENNTAG UK LIMITED,11/03/2024,774
"Communities, Customer & Commercial Services",Sport & Leisure,Premises-Related Expenditure,R&M - Mechanical,Culligan (UK) LTD,05/03/2024,117.72
"Communities, Customer & Commercial Services",Sport & Leisure,Supplies & Services,Licences,Les Mills Fitness UK Ltd,07/03/2024,1097.25
"Communities, Customer & Commercial Services",Sport & Leisure,Premises-Related Expenditure,R&M - Mechanical,Culligan (UK) LTD,19/03/2024,117.72
"Communities, Customer & Commercial Services",Sport & Leisure,Supplies & Services,Equipment - Purchase,Jordan Fitness  Ltd,26/03/2024,129.5
"Communities, Customer & Commercial Services",Sport & Leisure,Supplies & Services,Equipment - Purchase,RLSS UK Enterprises Ltd,21/03/2024,128
"Communities, Customer & Commercial Services",Sport & Leisure,Supplies & Services,Equipment - Purchase,RLSS UK Enterprises Ltd,21/03/2024,109.8
"Communities, Customer & Commercial Services",Sport & Leisure,Supplies & Services,Chemicals/Cleaning Products,BRENNTAG UK LIMITED,04/03/2024,176.4
"Communities, Customer & Commercial Services",Sport & Leisure,Supplies & Services,Equipment - Purchase,CCS MEDIA LIMITED,21/03/2024,145
"Communities, Customer & Commercial Services",Sport & Leisure,Transport-Related Expenditure,Servicing & Repairs V&P,Charlies AG & Turf,19/03/2024,922.33
"Communities, Customer & Commercial Services",Sport & Leisure,Transport-Related Expenditure,Servicing & Repairs V&P,THE LODGE TYRE CO LTD,12/03/2024,124.15
"Communities, Customer & Commercial Services",Sport & Leisure,Transport-Related Expenditure,Servicing & Repairs V&P,Charlies AG & Turf,12/03/2024,349.91
"Communities, Customer & Commercial Services",Sport & Leisure,Premises-Related Expenditure,R&M WC Planned,Agrovista UK LTD,12/03/2024,-247.7
"Communities, Customer & Commercial Services",Sport & Leisure,Premises-Related Expenditure,R&M WC Planned,Agrovista UK LTD,12/03/2024,276.6
"Communities, Customer & Commercial Services",Sport & Leisure,Premises-Related Expenditure,R&M WC Planned,Agrovista UK LTD,12/03/2024,126
"Communities, Customer & Commercial Services",Sport & Leisure,Transport-Related Expenditure,Servicing & Repairs V&P,Charlies AG & Turf,13/03/2024,680.98
"Communities, Customer & Commercial Services",Sport & Leisure,Transport-Related Expenditure,Servicing & Repairs V&P,Charlies AG & Turf,13/03/2024,779.92
"Communities, Customer & Commercial Services",Sport & Leisure,Transport-Related Expenditure,Servicing & Repairs V&P,Charlies AG & Turf,13/03/2024,356.69
"Communities, Customer & Commercial Services",Sport & Leisure,Transport-Related Expenditure,Servicing & Repairs V&P,Charlies AG & Turf,15/03/2024,740.8
"Communities, Customer & Commercial Services",Sport & Leisure,Transport-Related Expenditure,Servicing & Repairs V&P,Charlies AG & Turf,15/03/2024,570.06
"Communities, Customer & Commercial Services",Sport & Leisure,Supplies & Services,Equipment - Purchase,Charlies AG & Turf,18/03/2024,-10000
"Communities, Customer & Commercial Services",Sport & Leisure,Premises-Related Expenditure,R&M WC Planned,Agrovista UK LTD,27/03/2024,184
"Communities, Customer & Commercial Services",Sport & Leisure,Supplies & Services,Licences,Les Mills Fitness UK Ltd,07/03/2024,1097.25
"Communities, Customer & Commercial Services",Sport & Leisure,Supplies & Services,Equipment - Purchase,Culligan (UK) LTD,22/03/2024,2388.95
"Communities, Customer & Commercial Services",Sport & Leisure,Supplies & Services,Licences,Les Mills Fitness UK Ltd,07/03/2024,682.5
"Communities, Customer & Commercial Services",Sport & Leisure,Supplies & Services,Equipment - Purchase,Wrockwardine Wood Recreation Ground,13/03/2024,700
"Communities, Customer & Commercial Services",Sport & Leisure,Supplies & Services,Equipment - Purchase,R & J Hill Engineering Limited,22/03/2024,960
"Communities, Customer & Commercial Services",Sport & Leisure,Supplies & Services,Equipment - Purchase,NOBRIDGE LTD,01/03/2024,870
"Communities, Customer & Commercial Services",Sport & Leisure,Premises-Related Expenditure,Electricity,West Mercia Energy (WME),21/03/2024,702.63
"Communities, Customer & Commercial Services",Sport & Leisure,Supplies & Services,Other Materials,PROVAC CLEANING SUPPLIES LTD,05/03/2024,312.18
"Communities, Customer & Commercial Services",Sport & Leisure,Employees,Professional Subs,RLSS UK Enterprises Ltd,21/03/2024,500
"Communities, Customer & Commercial Services",Sport & Leisure,Supplies & Services,Equipment - Purchase,RLSS UK Enterprises Ltd,28/03/2024,671
Corporate Items,Corporate Codes,Employees,Agency Supply Costs,Opus People Solutions Limited,06/03/2024,36235.06
Corporate Items,Corporate Codes,Employees,Agency Supply Costs,Opus People Solutions Limited,21/03/2024,27985.35
Corporate Items,Corporate Codes,Employees,Agency Supply Costs,Opus People Solutions Limited,21/03/2024,11436.51
Corporate Items,Corporate Codes,Employees,Agency Supply Costs,Opus People Solutions Limited,13/03/2024,35274.52
Corporate Items,Corporate Codes,Employees,Agency Supply Costs,Opus People Solutions Limited,26/03/2024,27692.78
Corporate Items,Corporate Codes,Third Party Payments,Contribution To Other La's,SHROPSHIRE COUNCIL ,20/03/2024,2279
Corporate Items,Corporate Codes,Capital Financing Costs,Utility Charge,MITIE FM Ltd,08/03/2024,8961
Corporate Items,Corporate Codes,Capital Financing Costs,Utility Charge,MITIE FM Ltd,12/03/2024,230877
Education & Skills,Consultancy & Advisory Services,Employees,Training Exp's (Facilitators),D U Consultancy LTD,01/03/2024,618
Education & Skills,Consultancy & Advisory Services,Premises-Related Expenditure,Hire Of Rooms,MEETING POINT TRUST LTD,01/03/2024,125
Education & Skills,Consultancy & Advisory Services,Premises-Related Expenditure,Hire Of Rooms,MEETING POINT TRUST LTD,05/03/2024,112.5
Education & Skills,Consultancy & Advisory Services,Premises-Related Expenditure,Hire Of Rooms,RAMADA TELFORD IRONBRIDGE,27/03/2024,250
Education & Skills,Consultancy & Advisory Services,Supplies & Services,Training Costs - Participants Recharged,RAMADA TELFORD IRONBRIDGE,27/03/2024,658.33
Education & Skills,Consultancy & Advisory Services,Supplies & Services,Training Costs - Participants Recharged,RAMADA TELFORD IRONBRIDGE,27/03/2024,100.42
Education & Skills,Consultancy & Advisory Services,Premises-Related Expenditure,Hire Of Rooms,RAMADA TELFORD IRONBRIDGE,27/03/2024,216.67
Education & Skills,Consultancy & Advisory Services,Premises-Related Expenditure,Hire Of Rooms,Mercure Telford Centre Hotel,27/03/2024,596.54
Education & Skills,Consultancy & Advisory Services,Supplies & Services,Training Costs - Participants Recharged,Mercure Telford Centre Hotel,27/03/2024,842.74
Education & Skills,Consultancy & Advisory Services,Premises-Related Expenditure,Hire Of Rooms,MEETING POINT TRUST LTD,14/03/2024,112.5
Education & Skills,Consultancy & Advisory Services,Premises-Related Expenditure,Hire Of Rooms,MEETING POINT TRUST LTD,14/03/2024,129.17
Education & Skills,Consultancy & Advisory Services,Premises-Related Expenditure,Hire Of Rooms,RAMADA TELFORD IRONBRIDGE,25/03/2024,187.5
Education & Skills,Consultancy & Advisory Services,Supplies & Services,Other Grants (Expenses),School of Coding Ltd,06/03/2024,2625.75
Education & Skills,Consultancy & Advisory Services,Supplies & Services,Other Grants (Expenses),School of Coding Ltd,06/03/2024,2626.5
Education & Skills,Consultancy & Advisory Services,Supplies & Services,Other Grants (Expenses),Active Future Franchising Ltd,06/03/2024,3510
Education & Skills,Consultancy & Advisory Services,Supplies & Services,Other Grants (Expenses),Active Future Franchising Ltd,06/03/2024,3090
Education & Skills,Consultancy & Advisory Services,Supplies & Services,Other Grants (Expenses),Active Future Franchising Ltd,06/03/2024,3375
Education & Skills,Consultancy & Advisory Services,Supplies & Services,Other Grants (Expenses),HALESFIELD DAY NURSERY CENTRE ,06/03/2024,599.63
Education & Skills,Consultancy & Advisory Services,Supplies & Services,Other Grants (Expenses),4 All Foundation,06/03/2024,1125
Education & Skills,Consultancy & Advisory Services,Supplies & Services,Other Grants (Expenses),4 All Foundation,06/03/2024,1140
Education & Skills,Consultancy & Advisory Services,Supplies & Services,Other Grants (Expenses),4 All Foundation,06/03/2024,1170
Education & Skills,Consultancy & Advisory Services,Supplies & Services,Other Grants (Expenses),Cordingley Hall,06/03/2024,3000
Education & Skills,Consultancy & Advisory Services,Supplies & Services,Other Grants (Expenses),Cordingley Hall,06/03/2024,750
Education & Skills,Consultancy & Advisory Services,Supplies & Services,Other Grants (Expenses),STIRCHLEY & BROOKSIDE PARISH COUNCIL ,06/03/2024,1889.55
Education & Skills,Consultancy & Advisory Services,Supplies & Services,Other Grants (Expenses),Telford Park School,06/03/2024,4657.5
Education & Skills,Consultancy & Advisory Services,Supplies & Services,Other Grants (Expenses),School of Coding Ltd,06/03/2024,2625
Education & Skills,Consultancy & Advisory Services,Supplies & Services,Other Grants (Expenses),Educating Kids Outdoors Ltd,06/03/2024,750
Education & Skills,Consultancy & Advisory Services,Supplies & Services,Other Grants (Expenses),Windmill Primary School Academy,06/03/2024,2927.25
Education & Skills,Consultancy & Advisory Services,Supplies & Services,Other Grants (Expenses),PODS,06/03/2024,4301.25
Education & Skills,Consultancy & Advisory Services,Supplies & Services,Other Grants (Expenses),OAKENGATES TOWN COUNCIL,06/03/2024,1537.5
Education & Skills,Consultancy & Advisory Services,Supplies & Services,Other Grants (Expenses),Moonstruck Astronaut C.I.C,06/03/2024,772.5
Education & Skills,Consultancy & Advisory Services,Premises-Related Expenditure,Hire Of Rooms,MEETING POINT TRUST LTD,14/03/2024,112.5
Education & Skills,Consultancy & Advisory Services,Supplies & Services,Other Grants (Expenses),AFC Telford United Foundation CIC,18/03/2024,1140
Education & Skills,Consultancy & Advisory Services,Supplies & Services,Other Grants (Expenses),CEIA,18/03/2024,2700
Education & Skills,Consultancy & Advisory Services,Supplies & Services,Other Grants (Expenses),ComputerXplorers Birmingham South East,18/03/2024,2200
Education & Skills,Consultancy & Advisory Services,Supplies & Services,Other Grants (Expenses),Charlton Academy,18/03/2024,6000
Education & Skills,Consultancy & Advisory Services,Supplies & Services,Other Grants (Expenses),Genius Tuition,18/03/2024,7488.22
Education & Skills,Consultancy & Advisory Services,Supplies & Services,Other Grants (Expenses),Genius Tuition,18/03/2024,2995.2
Education & Skills,Consultancy & Advisory Services,Supplies & Services,Other Grants (Expenses),Genius Tuition,18/03/2024,8981.25
Education & Skills,Consultancy & Advisory Services,Supplies & Services,Other Grants (Expenses),Genius Tuition,18/03/2024,2995.2
Education & Skills,Consultancy & Advisory Services,Supplies & Services,Other Grants (Expenses),Great Dawley Town Council,18/03/2024,2324.7
Education & Skills,Consultancy & Advisory Services,Supplies & Services,Other Grants (Expenses),Great Dawley Town Council,18/03/2024,1455
Education & Skills,Consultancy & Advisory Services,Supplies & Services,Other Grants (Expenses),NEWPORT TOWN COUNCIL,18/03/2024,1125
Education & Skills,Consultancy & Advisory Services,Supplies & Services,Other Grants (Expenses),Old Park Primary SCHOOL ,18/03/2024,1537.5
Education & Skills,Consultancy & Advisory Services,Supplies & Services,Other Grants (Expenses),Portalkids Ltd,18/03/2024,510.98
Education & Skills,Consultancy & Advisory Services,Supplies & Services,Other Grants (Expenses),CAT - Telford Priory School,18/03/2024,4500
Education & Skills,Consultancy & Advisory Services,Supplies & Services,Other Grants (Expenses),Wrekin Forest Schools and Events Ltd,26/03/2024,869.06
Education & Skills,Consultancy & Advisory Services,Supplies & Services,Furniture - Purchase,Office Boffins,21/03/2024,245.95
Education & Skills,Consultancy & Advisory Services,Supplies & Services,Furniture - Purchase,Office Boffins,21/03/2024,245.95
Education & Skills,Consultancy & Advisory Services,Supplies & Services,Other Grants (Expenses),Cyclones Football CIC,22/03/2024,1500
Education & Skills,Consultancy & Advisory Services,Supplies & Services,Other Grants (Expenses),Wrekin Forest Schools and Events Ltd,26/03/2024,790
Education & Skills,Consultancy & Advisory Services,Premises-Related Expenditure,Hire Of Rooms,Mercure Telford Centre Hotel,05/03/2024,124.46
Education & Skills,Consultancy & Advisory Services,Supplies & Services,Training Costs - Participants Recharged,Mercure Telford Centre Hotel,05/03/2024,153.06
Education & Skills,Consultancy & Advisory Services,Premises-Related Expenditure,Hire Of Rooms,Mercure Telford Centre Hotel,25/03/2024,124.46
Education & Skills,Education & Skills,Capital Expenditure,Legal Fees,WARD HADAWAY SOLICITORS,11/03/2024,1175.6
Education & Skills,Education & Skills,Capital Expenditure,Payments to Contractor,COOPER & WILLIAMS LTD,06/03/2024,28694
Education & Skills,Education & Skills,Capital Expenditure,Legal Fees,FREETHS LLP,19/03/2024,462
Education & Skills,Education & Skills,Capital Expenditure,Payments to Contractor,PAVE AWAYS LTD,22/03/2024,189252.45
Education & Skills,Education & Skills,Capital Expenditure,Legal Fees,WARD HADAWAY SOLICITORS,11/03/2024,727.4
Education & Skills,Education & Skills,Capital Expenditure,Legal Fees,WARD HADAWAY SOLICITORS,11/03/2024,3212.9
Education & Skills,Education & Skills,Capital Expenditure,Legal Fees,WARD HADAWAY SOLICITORS,11/03/2024,334.4
Education & Skills,Education & Skills,Capital Expenditure,Legal Fees,WARD HADAWAY SOLICITORS,11/03/2024,728.5
Education & Skills,Education & Skills,Capital Expenditure,Payments to Contractor,WELLINGTON INSULATION CO. LTD,22/03/2024,350
Education & Skills,Education & Skills,Capital Expenditure,Payments to Contractor,Inspectas Compliance Ltd,14/03/2024,420
Education & Skills,Education & Skills,Capital Expenditure,Payments to Contractor,TAYLORS MECHANICAL H & P SERVICES LTD,28/03/2024,5182.15
Education & Skills,Education & Skills,Capital Expenditure,Payments to Contractor,PAVE AWAYS LTD,21/03/2024,501821.92
Education & Skills,Education & Skills,Capital Expenditure,Payments to Contractor,PAVE AWAYS LTD,28/03/2024,356889.34
Education & Skills,Education & Skills,Capital Expenditure,Payments to Contractor,TAYLORS MECHANICAL H & P SERVICES LTD,28/03/2024,9816.39
Education & Skills,Education & Skills,Capital Expenditure,Payments to Contractor,GRANVILLE CONSTRUCTION & MAINTENANCE LTD,28/03/2024,4170
Education & Skills,Education & Skills,Capital Expenditure,Payments to Contractor,GRANVILLE CONSTRUCTION & MAINTENANCE LTD,28/03/2024,6094.37
Education & Skills,Education & Skills,Capital Expenditure,Payments to Contractor,PRYCE (BUILDERS) LTD,25/03/2024,7353
Education & Skills,Education & Skills,Capital Expenditure,Payments to Contractor,ARJO UK LTD,27/03/2024,-1600
Education & Skills,Education & Skills,Capital Expenditure,Payments to Contractor,TAYLORS MECHANICAL H & P SERVICES LTD,27/03/2024,350
Education & Skills,Education & Skills,Capital Expenditure,Payments to Contractor,TAYLORS MECHANICAL H & P SERVICES LTD,15/03/2024,377.92
Education & Skills,Education & Skills,Capital Expenditure,Payments to Contractor,Pumpforce Ltd,15/03/2024,1201
Education & Skills,Education & Skills,Capital Expenditure,Payments to Contractor,TAYLORS MECHANICAL H & P SERVICES LTD,15/03/2024,896.5
Education & Skills,Education & Skills,Capital Expenditure,Payments to Contractor,Pumpforce Ltd,27/03/2024,1957.14
Education & Skills,Education & Skills,Capital Expenditure,Payments to Contractor,TAYLORS MECHANICAL H & P SERVICES LTD,15/03/2024,996
Education & Skills,Education & Skills,Capital Expenditure,Payments to Contractor,PAVE AWAYS LTD,27/03/2024,130682.21
Education & Skills,Pupil Support Services,Third Party Payments,DSG - High Needs Block,CAT - Telford Priory School,04/03/2024,3486
Education & Skills,Pupil Support Services,Third Party Payments,DSG - High Needs Block,USE 501722 Haberdashers' Abraham Darby ,04/03/2024,17813
Education & Skills,Pupil Support Services,Third Party Payments,Misc. Education Payments to T&W Schools (incl Academies),The Telford Langley School,06/03/2024,948
Education & Skills,Pupil Support Services,Supplies & Services,Equipment - Purchase,Heritage Music & Caswell's Strings,04/03/2024,678.49
Education & Skills,Pupil Support Services,Supplies & Services,Artistes Fees,Redacted Personal Information,18/03/2024,2320
Education & Skills,Pupil Support Services,Supplies & Services,Artistes Fees,Redacted Personal Information,18/03/2024,4000
Education & Skills,SEND (0-25),Transport-Related Expenditure,Taxi Costs,Telford Taxi Hire Limited,08/03/2024,1100
Education & Skills,SEND (0-25),Transport-Related Expenditure,Taxi Costs,24X7 Ltd,08/03/2024,2144.64
Education & Skills,SEND (0-25),Third Party Payments,DSG - High Needs Block,Speakaboo,05/03/2024,200
Education & Skills,SEND (0-25),Third Party Payments,DSG - High Needs Block,Bridge Therapy,13/03/2024,319.5
Education & Skills,SEND (0-25),Third Party Payments,DSG - High Needs Block,Bridge Therapy,13/03/2024,459
Education & Skills,SEND (0-25),Third Party Payments,DSG - High Needs Block,Queensway HLC,12/03/2024,44701.96
Education & Skills,SEND (0-25),Third Party Payments,DSG - High Needs Block,Queensway HLC,12/03/2024,50236.15
Education & Skills,SEND (0-25),Third Party Payments,DSG - High Needs Block,Queensway HLC,12/03/2024,26936.97
Education & Skills,SEND (0-25),Third Party Payments,DSG - High Needs Block,Queensway HLC,12/03/2024,44745.92
Education & Skills,SEND (0-25),Third Party Payments,Health Funded Services,SHROPSHIRE COMMUNITY HEALTH NHS TRUST,05/03/2024,5012.25
Education & Skills,SEND (0-25),Third Party Payments,DSG - High Needs Block,Kickstart Academy,12/03/2024,92163.62
Education & Skills,SEND (0-25),Third Party Payments,DSG - High Needs Block,Queensway HLC,12/03/2024,44701.96
Education & Skills,SEND (0-25),Third Party Payments,DSG - High Needs Block,Queensway HLC,12/03/2024,109453.28
Education & Skills,SEND (0-25),Third Party Payments,DSG - High Needs Block,Queensway HLC,12/03/2024,26936.97
Education & Skills,SEND (0-25),Third Party Payments,DSG - High Needs Block,Queensway HLC,12/03/2024,67734.75
Education & Skills,SEND (0-25),Third Party Payments,DSG - High Needs Block,Aspris Telford School,13/03/2024,14406.86
Education & Skills,SEND (0-25),Third Party Payments,DSG - High Needs Block,Aspris Telford School,13/03/2024,28813.73
Education & Skills,SEND (0-25),Third Party Payments,DSG - High Needs Block,Monarch Education,05/03/2024,336
Education & Skills,SEND (0-25),Third Party Payments,DSG - High Needs Block,The Keystone Academy,05/03/2024,16666.66
Education & Skills,SEND (0-25),Third Party Payments,DSG - High Needs Block,The Keystone Academy,05/03/2024,5000
Education & Skills,SEND (0-25),Employees,Agency Supply Costs,Guide Dogs for the Blind,05/03/2024,2105.13
Education & Skills,SEND (0-25),Third Party Payments,DSG - High Needs Block,Monarch Education,05/03/2024,420
Education & Skills,SEND (0-25),Third Party Payments,DSG - High Needs Block,Aspris Telford School,05/03/2024,17782.26
Education & Skills,SEND (0-25),Third Party Payments,DSG - High Needs Block,Aspris Telford School,05/03/2024,1367.86
Education & Skills,SEND (0-25),Third Party Payments,DSG - High Needs Block,SHROPSHIRE COUNCIL ,05/03/2024,12423
Education & Skills,SEND (0-25),Third Party Payments,DSG - High Needs Block,Bentley West Primary School - Walsall Council,05/03/2024,14656.62
Education & Skills,SEND (0-25),Third Party Payments,DSG - High Needs Block,STAFFORDSHIRE COUNTY COUNCIL,05/03/2024,32295
Education & Skills,SEND (0-25),Third Party Payments,DSG - High Needs Block,BEDSTONE EDUCATIONAL TRUST LIMITED,05/03/2024,9320
Education & Skills,SEND (0-25),Third Party Payments,DSG - High Needs Block,THE EDUCATION DEVELOPMENT SERVICE LTD,05/03/2024,9500
Education & Skills,SEND (0-25),Third Party Payments,DSG - High Needs Block,THE EDUCATION DEVELOPMENT SERVICE LTD,05/03/2024,9500
Education & Skills,SEND (0-25),Third Party Payments,DSG - High Needs Block,THE EDUCATION DEVELOPMENT SERVICE LTD,05/03/2024,9500
Education & Skills,SEND (0-25),Third Party Payments,DSG - High Needs Block,THE EDUCATION DEVELOPMENT SERVICE LTD,05/03/2024,9500
Education & Skills,SEND (0-25),Third Party Payments,DSG - High Needs Block,THE EDUCATION DEVELOPMENT SERVICE LTD,05/03/2024,9500
Education & Skills,SEND (0-25),Third Party Payments,DSG - High Needs Block,THE EDUCATION DEVELOPMENT SERVICE LTD,05/03/2024,9500
Education & Skills,SEND (0-25),Third Party Payments,DSG - High Needs Block,Aspris Telford School,05/03/2024,36983.78
Education & Skills,SEND (0-25),Third Party Payments,DSG - High Needs Block,Aspris Telford School,05/03/2024,27294.66
Education & Skills,SEND (0-25),Third Party Payments,DSG - High Needs Block,Prestfelde School Ltd,05/03/2024,2786.29
Education & Skills,SEND (0-25),Third Party Payments,DSG - High Needs Block,Prestfelde School Ltd,05/03/2024,2786.29
Education & Skills,SEND (0-25),Third Party Payments,DSG - High Needs Block,Reach Psychology,05/03/2024,765
Education & Skills,SEND (0-25),Third Party Payments,DSG - High Needs Block,Monarch Education,05/03/2024,420
Education & Skills,SEND (0-25),Third Party Payments,DSG - High Needs Block,Acorn Care & Education Ltd,05/03/2024,747.4
Education & Skills,SEND (0-25),Third Party Payments,DSG - High Needs Block,Acorn Education & Care Ltd,05/03/2024,747.4
Education & Skills,SEND (0-25),Third Party Payments,DSG - High Needs Block,Loxley Hall School,05/03/2024,3119.1
Education & Skills,SEND (0-25),Third Party Payments,DSG - High Needs Block,The Keystone Academy,05/03/2024,4166.67
Education & Skills,SEND (0-25),Third Party Payments,DSG - High Needs Block,The Keystone Academy,05/03/2024,4166.67
Education & Skills,SEND (0-25),Third Party Payments,DSG - High Needs Block,Bettws Lifehouse Ltd,13/03/2024,10000
Education & Skills,SEND (0-25),Third Party Payments,DSG - High Needs Block,Bettws Lifehouse Ltd,13/03/2024,7500
Education & Skills,SEND (0-25),Third Party Payments,DSG - High Needs Block,Bettws Lifehouse Ltd,13/03/2024,14666.67
Education & Skills,SEND (0-25),Third Party Payments,DSG - High Needs Block,Bettws Lifehouse Ltd,13/03/2024,8833.34
Education & Skills,SEND (0-25),Third Party Payments,DSG - High Needs Block,Prestfelde School Ltd,13/03/2024,2111.69
Education & Skills,SEND (0-25),Employees,Staff Training,RNIB ENTERPRISES LTD ,07/03/2024,365
Education & Skills,SEND (0-25),Third Party Payments,DSG - High Needs Block,Monarch Education,13/03/2024,252
Education & Skills,SEND (0-25),Third Party Payments,DSG - High Needs Block,Bettws Lifehouse Ltd,13/03/2024,7500
Education & Skills,SEND (0-25),Third Party Payments,DSG - High Needs Block,Bettws Lifehouse Ltd,13/03/2024,7833.33
Education & Skills,SEND (0-25),Third Party Payments,DSG - High Needs Block,POWYS COUNTY COUNCIL,28/03/2024,2740.02
Education & Skills,SEND (0-25),Third Party Payments,DSG - High Needs Block,Bentley West Primary School - Walsall Council,28/03/2024,2212.32
Education & Skills,SEND (0-25),Supplies & Services,Aids & Appliances,RNIB ENTERPRISES LTD ,19/03/2024,115
Education & Skills,SEND (0-25),Supplies & Services,Equipment - Purchase,SOUNDBYTE SOLUTIONS (UK) LTD,11/03/2024,180
Education & Skills,SEND (0-25),Supplies & Services,Equipment - Purchase,OTICON LIMITED,12/03/2024,249
Education & Skills,SEND (0-25),Supplies & Services,Equipment - Purchase,CONNEVANS LIMITED,26/03/2024,152.85
Education & Skills,SEND (0-25),Supplies & Services,Equipment - Purchase,PHONAK UK LTD,25/03/2024,588.71
Education & Skills,SEND (0-25),Supplies & Services,Equipment - Purchase,PHONAK UK LTD,25/03/2024,-588.71
Education & Skills,SEND (0-25),Third Party Payments,DSG - High Needs Block,LANDAU LTD,13/03/2024,3279.81
Education & Skills,SEND (0-25),Third Party Payments,DSG - High Needs Block,LANDAU LTD,13/03/2024,3279.81
Education & Skills,SEND (0-25),Third Party Payments,DSG - High Needs Block,LANDAU LTD,13/03/2024,3279.81
Education & Skills,SEND (0-25),Third Party Payments,DSG - High Needs Block,LANDAU LTD,13/03/2024,3279.81
Education & Skills,SEND (0-25),Third Party Payments,DSG - High Needs Block,LANDAU LTD,13/03/2024,3279.81
Education & Skills,SEND (0-25),Third Party Payments,DSG - High Needs Block,LANDAU LTD,13/03/2024,3279.81
Education & Skills,SEND (0-25),Third Party Payments,DSG - High Needs Block,LANDAU LTD,13/03/2024,3279.81
Education & Skills,SEND (0-25),Third Party Payments,DSG - High Needs Block,LANDAU LTD,13/03/2024,3279.81
Education & Skills,SEND (0-25),Third Party Payments,DSG - High Needs Block,LANDAU LTD,13/03/2024,3279.81
Education & Skills,SEND (0-25),Third Party Payments,DSG - High Needs Block,LANDAU LTD,13/03/2024,3279.81
Education & Skills,SEND (0-25),Third Party Payments,DSG - High Needs Block,LANDAU LTD,13/03/2024,3279.81
Education & Skills,SEND (0-25),Third Party Payments,DSG - High Needs Block,LANDAU LTD,13/03/2024,3279.81
Education & Skills,SEND (0-25),Third Party Payments,DSG - High Needs Block,LANDAU LTD,13/03/2024,3279.81
Education & Skills,SEND (0-25),Third Party Payments,DSG - High Needs Block,LANDAU LTD,13/03/2024,3279.81
Education & Skills,SEND (0-25),Third Party Payments,DSG - High Needs Block,LANDAU LTD,13/03/2024,3279.81
Education & Skills,SEND (0-25),Third Party Payments,DSG - High Needs Block,LANDAU LTD,13/03/2024,3279.81
Education & Skills,SEND (0-25),Third Party Payments,DSG - High Needs Block,LANDAU LTD,13/03/2024,3279.81
Education & Skills,SEND (0-25),Third Party Payments,DSG - High Needs Block,LANDAU LTD,13/03/2024,3279.81
Education & Skills,SEND (0-25),Third Party Payments,DSG - High Needs Block,LANDAU LTD,13/03/2024,3279.81
Education & Skills,SEND (0-25),Third Party Payments,DSG - High Needs Block,LANDAU LTD,13/03/2024,3279.81
Education & Skills,SEND (0-25),Third Party Payments,DSG - High Needs Block,LANDAU LTD,13/03/2024,3279.81
Education & Skills,SEND (0-25),Third Party Payments,DSG - High Needs Block,LANDAU LTD,13/03/2024,3279.81
Education & Skills,SEND (0-25),Third Party Payments,DSG - High Needs Block,LANDAU LTD,13/03/2024,3279.81
Education & Skills,SEND (0-25),Third Party Payments,DSG - High Needs Block,LANDAU LTD,13/03/2024,3279.81
Education & Skills,SEND (0-25),Third Party Payments,DSG - High Needs Block,LANDAU LTD,13/03/2024,3279.81
Education & Skills,SEND (0-25),Third Party Payments,DSG - High Needs Block,LANDAU LTD,13/03/2024,3279.81
Education & Skills,SEND (0-25),Third Party Payments,DSG - High Needs Block,LANDAU LTD,13/03/2024,3279.81
Education & Skills,SEND (0-25),Third Party Payments,DSG - High Needs Block,LANDAU LTD,13/03/2024,3279.81
Education & Skills,SEND (0-25),Third Party Payments,DSG - High Needs Block,LANDAU LTD,13/03/2024,3279.81
Education & Skills,SEND (0-25),Third Party Payments,DSG - High Needs Block,LANDAU LTD,13/03/2024,3279.81
Education & Skills,SEND (0-25),Third Party Payments,DSG - High Needs Block,LANDAU LTD,13/03/2024,3279.81
Education & Skills,SEND (0-25),Third Party Payments,DSG - High Needs Block,LANDAU LTD,13/03/2024,3280.03
Education & Skills,SEND (0-25),Third Party Payments,DSG - High Needs Block,The Really NEET Project Ltd,13/03/2024,8316.67
Education & Skills,SEND (0-25),Third Party Payments,DSG - High Needs Block,The Really NEET Project Ltd,13/03/2024,8316.67
Education & Skills,SEND (0-25),Third Party Payments,DSG - High Needs Block,The Really NEET Project Ltd,13/03/2024,8316.67
Education & Skills,SEND (0-25),Third Party Payments,DSG - High Needs Block,The Really NEET Project Ltd,13/03/2024,5333.33
Education & Skills,SEND (0-25),Third Party Payments,DSG - High Needs Block,The Really NEET Project Ltd,13/03/2024,5333.33
Education & Skills,SEND (0-25),Third Party Payments,DSG - High Needs Block,The Really NEET Project Ltd,13/03/2024,5333.33
Education & Skills,SEND (0-25),Third Party Payments,DSG - High Needs Block,The Really NEET Project Ltd,13/03/2024,5333.33
Education & Skills,SEND (0-25),Third Party Payments,DSG - High Needs Block,The Really NEET Project Ltd,13/03/2024,5333.33
Education & Skills,SEND (0-25),Third Party Payments,DSG - High Needs Block,The Really NEET Project Ltd,13/03/2024,5333.33
Education & Skills,SEND (0-25),Third Party Payments,DSG - High Needs Block,The Really NEET Project Ltd,13/03/2024,5333.33
Education & Skills,SEND (0-25),Third Party Payments,DSG - High Needs Block,The Really NEET Project Ltd,13/03/2024,5333.33
Education & Skills,SEND (0-25),Third Party Payments,DSG - High Needs Block,The Really NEET Project Ltd,13/03/2024,5333.33
Education & Skills,SEND (0-25),Third Party Payments,DSG - High Needs Block,The Really NEET Project Ltd,13/03/2024,5333.33
Education & Skills,SEND (0-25),Third Party Payments,DSG - High Needs Block,Herefordshire and Ludlow College,13/03/2024,124705.02
Education & Skills,SEND (0-25),Third Party Payments,DSG - High Needs Block,The Really NEET Project Ltd,13/03/2024,5333.33
Education & Skills,SEND (0-25),Third Party Payments,DSG - High Needs Block,The Really NEET Project Ltd,13/03/2024,8433.33
Education & Skills,SEND (0-25),Third Party Payments,DSG - High Needs Block,The Really NEET Project Ltd,13/03/2024,8433.33
Education & Skills,SEND (0-25),Third Party Payments,DSG - High Needs Block,The Really NEET Project Ltd,13/03/2024,8433.33
Education & Skills,SEND (0-25),Third Party Payments,DSG - High Needs Block,The Really NEET Project Ltd,13/03/2024,15000.04
Education & Skills,SEND (0-25),Third Party Payments,DSG - High Needs Block,LANDAU LTD,13/03/2024,3279.81
Education & Skills,SEND (0-25),Third Party Payments,DSG - High Needs Block,NOVA TRAINING LTD,05/03/2024,1477.6
Education & Skills,SEND (0-25),Third Party Payments,DSG - High Needs Block,NOVA TRAINING LTD,05/03/2024,1477.6
Education & Skills,SEND (0-25),Third Party Payments,DSG - High Needs Block,NOVA TRAINING LTD,05/03/2024,2233.6
Education & Skills,SEND (0-25),Third Party Payments,DSG - High Needs Block,NOVA TRAINING LTD,05/03/2024,2955.2
Education & Skills,SEND (0-25),Third Party Payments,DSG - High Needs Block,NOVA TRAINING LTD,05/03/2024,1099.6
Education & Skills,SEND (0-25),Third Party Payments,DSG - High Needs Block,NOVA TRAINING LTD,05/03/2024,1666.6
Education & Skills,SEND (0-25),Third Party Payments,DSG - High Needs Block,NOVA TRAINING LTD,05/03/2024,1666.6
Education & Skills,SEND (0-25),Third Party Payments,DSG - High Needs Block,NOVA TRAINING LTD,05/03/2024,1099.6
Education & Skills,SEND (0-25),Third Party Payments,DSG - High Needs Block,NOVA TRAINING LTD,05/03/2024,1099.6
Education & Skills,SEND (0-25),Third Party Payments,DSG - High Needs Block,NOVA TRAINING LTD,05/03/2024,1099.6
Education & Skills,SEND (0-25),Third Party Payments,DSG - High Needs Block,NOVA TRAINING LTD,05/03/2024,1666.6
Education & Skills,SEND (0-25),Third Party Payments,DSG - High Needs Block,NOVA TRAINING LTD,05/03/2024,1666.6
Education & Skills,SEND (0-25),Third Party Payments,DSG - High Needs Block,STAFFORDSHIRE COUNTY COUNCIL,05/03/2024,22800
Education & Skills,SEND (0-25),Third Party Payments,DSG - High Needs Block,CROSSBAR COACHING,05/03/2024,6825
Education & Skills,SEND (0-25),Third Party Payments,DSG - High Needs Block,SOUTH STAFFORDSHIRE COLLEGE,05/03/2024,982.43
Education & Skills,SEND (0-25),Third Party Payments,DSG - High Needs Block,SOUTH STAFFORDSHIRE COLLEGE,05/03/2024,982.43
Education & Skills,SEND (0-25),Third Party Payments,DSG - High Needs Block,SOUTH STAFFORDSHIRE COLLEGE,05/03/2024,3124.5
Education & Skills,SEND (0-25),Third Party Payments,DSG - High Needs Block,SOUTH STAFFORDSHIRE COLLEGE,05/03/2024,1946.27
Education & Skills,SEND (0-25),Third Party Payments,DSG - High Needs Block,SOUTH STAFFORDSHIRE COLLEGE,05/03/2024,3664.5
Education & Skills,SEND (0-25),Third Party Payments,DSG - High Needs Block,SOUTH STAFFORDSHIRE COLLEGE,05/03/2024,982.43
Education & Skills,SEND (0-25),Third Party Payments,DSG - High Needs Block,SOUTH STAFFORDSHIRE COLLEGE,05/03/2024,982.43
Education & Skills,SEND (0-25),Third Party Payments,DSG - High Needs Block,SOUTH STAFFORDSHIRE COLLEGE,05/03/2024,1926.71
Education & Skills,SEND (0-25),Third Party Payments,DSG - High Needs Block,SOUTH STAFFORDSHIRE COLLEGE,05/03/2024,882.51
Education & Skills,SEND (0-25),Third Party Payments,DSG - High Needs Block,SOUTH STAFFORDSHIRE COLLEGE,05/03/2024,2584.5
Education & Skills,SEND (0-25),Third Party Payments,DSG - High Needs Block,SOUTH STAFFORDSHIRE COLLEGE,05/03/2024,882.51
Education & Skills,SEND (0-25),Third Party Payments,DSG - High Needs Block,Sandwell College,05/03/2024,4137.5
Education & Skills,SEND (0-25),Third Party Payments,DSG - High Needs Block,Ruskin Mill Trust,05/03/2024,4719.75
Education & Skills,SEND (0-25),Third Party Payments,DSG - High Needs Block,Ruskin Mill Trust,05/03/2024,743.23
Education & Skills,SEND (0-25),Third Party Payments,DSG - High Needs Block,STAFFORDSHIRE COUNTY COUNCIL,05/03/2024,46800
Education & Skills,SEND (0-25),Third Party Payments,DSG - High Needs Block,Ruskin Mill Trust,05/03/2024,52516.88
Education & Skills,SEND (0-25),Third Party Payments,DSG - High Needs Block,SHREWSBURY COLLEGES GROUP,05/03/2024,64944.09
Education & Skills,SEND (0-25),Third Party Payments,DSG - High Needs Block,SHREWSBURY COLLEGES GROUP,05/03/2024,64944.09
Education & Skills,SEND (0-25),Third Party Payments,DSG - High Needs Block,NOVA TRAINING LTD,05/03/2024,1099.6
Education & Skills,SEND (0-25),Third Party Payments,DSG - High Needs Block,NOVA TRAINING LTD,05/03/2024,1666.6
Education & Skills,SEND (0-25),Third Party Payments,DSG - High Needs Block,NOVA TRAINING LTD,05/03/2024,1099.6
Education & Skills,SEND (0-25),Third Party Payments,DSG - High Needs Block,NOVA TRAINING LTD,05/03/2024,2233.6
Education & Skills,SEND (0-25),Third Party Payments,DSG - High Needs Block,NOVA TRAINING LTD,05/03/2024,744.52
Education & Skills,SEND (0-25),Third Party Payments,DSG - High Needs Block,NOVA TRAINING LTD,05/03/2024,2233.6
Education & Skills,SEND (0-25),Third Party Payments,DSG - High Needs Block,NOVA TRAINING LTD,05/03/2024,1477.6
Education & Skills,SEND (0-25),Third Party Payments,DSG - High Needs Block,NOVA TRAINING LTD,05/03/2024,1477.6
Education & Skills,SEND (0-25),Third Party Payments,DSG - High Needs Block,NOVA TRAINING LTD,05/03/2024,1855.6
Education & Skills,SEND (0-25),Third Party Payments,DSG - High Needs Block,NOVA TRAINING LTD,05/03/2024,1477.6
Education & Skills,SEND (0-25),Third Party Payments,DSG - High Needs Block,NOVA TRAINING LTD,05/03/2024,1855.6
Education & Skills,SEND (0-25),Third Party Payments,DSG - High Needs Block,NOVA TRAINING LTD,05/03/2024,1855.6
Education & Skills,SEND (0-25),Third Party Payments,DSG - High Needs Block,NOVA TRAINING LTD,05/03/2024,532.6
Education & Skills,SEND (0-25),Third Party Payments,DSG - High Needs Block,NOVA TRAINING LTD,05/03/2024,1855.6
Education & Skills,SEND (0-25),Third Party Payments,DSG - High Needs Block,NOVA TRAINING LTD,05/03/2024,1099.6
Education & Skills,SEND (0-25),Third Party Payments,DSG - High Needs Block,NOVA TRAINING LTD,05/03/2024,3855.6
Education & Skills,SEND (0-25),Third Party Payments,DSG - High Needs Block, Small Talk Nurseries,05/03/2024,210.39
Education & Skills,SEND (0-25),Third Party Payments,DSG - High Needs Block,LANDAU LTD,13/03/2024,3279.81
Education & Skills,SEND (0-25),Third Party Payments,DSG - High Needs Block,LANDAU LTD,13/03/2024,3279.81
Education & Skills,SEND (0-25),Third Party Payments,DSG - High Needs Block,LANDAU LTD,13/03/2024,3279.81
Education & Skills,SEND (0-25),Third Party Payments,DSG - High Needs Block,LANDAU LTD,13/03/2024,3279.81
Education & Skills,SEND (0-25),Third Party Payments,DSG - High Needs Block,LANDAU LTD,13/03/2024,3279.81
Education & Skills,SEND (0-25),Third Party Payments,DSG - High Needs Block,LANDAU LTD,13/03/2024,3279.81
Education & Skills,SEND (0-25),Third Party Payments,DSG - High Needs Block,LANDAU LTD,13/03/2024,3279.81
Education & Skills,SEND (0-25),Third Party Payments,DSG - High Needs Block,LANDAU LTD,13/03/2024,3279.81
Education & Skills,SEND (0-25),Third Party Payments,DSG - High Needs Block,LANDAU LTD,13/03/2024,3279.81
Education & Skills,SEND (0-25),Third Party Payments,DSG - High Needs Block,LANDAU LTD,13/03/2024,3279.81
Education & Skills,SEND (0-25),Third Party Payments,DSG - High Needs Block,LANDAU LTD,13/03/2024,3279.81
Education & Skills,SEND (0-25),Third Party Payments,DSG - High Needs Block,LANDAU LTD,13/03/2024,3279.81
Education & Skills,SEND (0-25),Third Party Payments,DSG - High Needs Block,LANDAU LTD,13/03/2024,3279.81
Education & Skills,SEND (0-25),Third Party Payments,DSG - High Needs Block,LANDAU LTD,13/03/2024,3279.81
Education & Skills,SEND (0-25),Third Party Payments,DSG - High Needs Block,LANDAU LTD,13/03/2024,3279.81
Education & Skills,SEND (0-25),Third Party Payments,DSG - High Needs Block,LANDAU LTD,13/03/2024,3279.81
Education & Skills,SEND (0-25),Third Party Payments,DSG - High Needs Block,LANDAU LTD,13/03/2024,3279.81
Education & Skills,SEND (0-25),Third Party Payments,DSG - High Needs Block,LANDAU LTD,13/03/2024,3279.81
Education & Skills,SEND (0-25),Third Party Payments,DSG - High Needs Block,LANDAU LTD,13/03/2024,3279.81
Education & Skills,SEND (0-25),Third Party Payments,DSG - High Needs Block,LANDAU LTD,13/03/2024,3279.81
Education & Skills,SEND (0-25),Third Party Payments,DSG - High Needs Block,LANDAU LTD,13/03/2024,3279.81
Education & Skills,SEND (0-25),Third Party Payments,DSG - High Needs Block,LANDAU LTD,13/03/2024,3279.81
Education & Skills,SEND (0-25),Third Party Payments,DSG - High Needs Block,LANDAU LTD,13/03/2024,3279.81
Education & Skills,SEND (0-25),Third Party Payments,DSG - High Needs Block,LANDAU LTD,13/03/2024,3280.03
Education & Skills,SEND (0-25),Third Party Payments,DSG - High Needs Block,LANDAU LTD,13/03/2024,3279.81
Education & Skills,SEND (0-25),Third Party Payments,DSG - High Needs Block,LANDAU LTD,13/03/2024,3279.81
Education & Skills,SEND (0-25),Third Party Payments,DSG - High Needs Block,LANDAU LTD,13/03/2024,3279.81
Education & Skills,SEND (0-25),Third Party Payments,DSG - High Needs Block,LANDAU LTD,13/03/2024,3279.81
Education & Skills,SEND (0-25),Third Party Payments,DSG - High Needs Block,LANDAU LTD,13/03/2024,3279.81
Education & Skills,SEND (0-25),Third Party Payments,DSG - High Needs Block,LANDAU LTD,13/03/2024,3279.81
Education & Skills,SEND (0-25),Third Party Payments,DSG - High Needs Block,LANDAU LTD,13/03/2024,3279.81
Education & Skills,SEND (0-25),Third Party Payments,DSG - High Needs Block,TELFORD COLLEGE,27/03/2024,386108.27
Education & Skills,SEND (0-25),Supplies & Services,Materials,Speech and Language UK,13/03/2024,360
Education & Skills,SEND (0-25),Third Party Payments,DSG - High Needs Block,ESWB Tutoring and Support Ltd,13/03/2024,684
Education & Skills,SEND (0-25),Third Party Payments,DSG - High Needs Block,ESWB Tutoring and Support Ltd,13/03/2024,780
Education & Skills,SEND (0-25),Third Party Payments,DSG - High Needs Block,ESWB Tutoring and Support Ltd,13/03/2024,624
Education & Skills,SEND (0-25),Third Party Payments,DSG - High Needs Block,ESWB Tutoring and Support Ltd,13/03/2024,342
Education & Skills,SEND (0-25),Third Party Payments,DSG - High Needs Block,ESWB Tutoring and Support Ltd,13/03/2024,780
Education & Skills,SEND (0-25),Third Party Payments,DSG - High Needs Block,ESWB Tutoring and Support Ltd,13/03/2024,780
Education & Skills,SEND (0-25),Third Party Payments,DSG - High Needs Block,ESWB Tutoring and Support Ltd,13/03/2024,780
Education & Skills,SEND (0-25),Third Party Payments,DSG - High Needs Block,ESWB Tutoring and Support Ltd,13/03/2024,342
Education & Skills,SEND (0-25),Third Party Payments,DSG - High Needs Block,ESWB Tutoring and Support Ltd,13/03/2024,570
Education & Skills,SEND (0-25),Third Party Payments,DSG - High Needs Block,ESWB Tutoring and Support Ltd,13/03/2024,456
Education & Skills,SEND (0-25),Third Party Payments,DSG - High Needs Block,ESWB Tutoring and Support Ltd,13/03/2024,285
Education & Skills,SEND (0-25),Third Party Payments,DSG - High Needs Block,ESWB Tutoring and Support Ltd,13/03/2024,456
Education & Skills,SEND (0-25),Third Party Payments,DSG - High Needs Block,ESWB Tutoring and Support Ltd,05/03/2024,285
Education & Skills,SEND (0-25),Third Party Payments,DSG - High Needs Block,ESWB Tutoring and Support Ltd,05/03/2024,456
Education & Skills,SEND (0-25),Third Party Payments,DSG - High Needs Block,ESWB Tutoring and Support Ltd,05/03/2024,1560
Education & Skills,SEND (0-25),Third Party Payments,DSG - High Needs Block,ESWB Tutoring and Support Ltd,05/03/2024,456
Education & Skills,SEND (0-25),Third Party Payments,DSG - High Needs Block,ESWB Tutoring and Support Ltd,05/03/2024,399
Education & Skills,SEND (0-25),Third Party Payments,DSG - High Needs Block,ESWB Tutoring and Support Ltd,05/03/2024,285
Education & Skills,SEND (0-25),Third Party Payments,DSG - High Needs Block,ESWB Tutoring and Support Ltd,05/03/2024,285
Education & Skills,SEND (0-25),Third Party Payments,DSG - High Needs Block,Chalkline Education & Support Ltd,05/03/2024,500
Education & Skills,SEND (0-25),Third Party Payments,DSG - High Needs Block,ESWB Tutoring and Support Ltd,05/03/2024,456
Education & Skills,SEND (0-25),Third Party Payments,DSG - High Needs Block,ESWB Tutoring and Support Ltd,05/03/2024,570
Education & Skills,SEND (0-25),Third Party Payments,DSG - High Needs Block,ESWB Tutoring and Support Ltd,05/03/2024,342
Education & Skills,SEND (0-25),Supplies & Services,Health & Safety Expenses,G & S SMIRTHWAITE LTD,05/03/2024,670
Education & Skills,SEND (0-25),Premises-Related Expenditure,Hire Of Rooms,Mercure Telford Centre Hotel,05/03/2024,124.46
Education & Skills,SEND (0-25),Third Party Payments,DSG - High Needs Block,ESWB Tutoring and Support Ltd,05/03/2024,456
Education & Skills,SEND (0-25),Third Party Payments,DSG - High Needs Block,Chalkline Education & Support Ltd,05/03/2024,200
Education & Skills,SEND (0-25),Third Party Payments,DSG - High Needs Block,ESWB Tutoring and Support Ltd,05/03/2024,456
Education & Skills,SEND (0-25),Third Party Payments,DSG - High Needs Block,ESWB Tutoring and Support Ltd,05/03/2024,285
Education & Skills,SEND (0-25),Third Party Payments,DSG - High Needs Block,ESWB Tutoring and Support Ltd,05/03/2024,342
Education & Skills,SEND (0-25),Third Party Payments,DSG - High Needs Block,ESWB Tutoring and Support Ltd,05/03/2024,228
Education & Skills,SEND (0-25),Supplies & Services,Health & Safety Expenses,G & S SMIRTHWAITE LTD,05/03/2024,494
Education & Skills,SEND (0-25),Third Party Payments,DSG - High Needs Block,Chalkline Education & Support Ltd,05/03/2024,500
Education & Skills,SEND (0-25),Third Party Payments,DSG - High Needs Block,ESWB Tutoring and Support Ltd,05/03/2024,114
Education & Skills,SEND (0-25),Third Party Payments,DSG - High Needs Block,ESWB Tutoring and Support Ltd,05/03/2024,285
Education & Skills,SEND (0-25),Third Party Payments,DSG - High Needs Block,ESWB Tutoring and Support Ltd,05/03/2024,570
Education & Skills,SEND (0-25),Third Party Payments,DSG - High Needs Block,ESWB Tutoring and Support Ltd,05/03/2024,456
Education & Skills,SEND (0-25),Third Party Payments,DSG - High Needs Block,Chalkline Education & Support Ltd,05/03/2024,500
Education & Skills,SEND (0-25),Third Party Payments,DSG - High Needs Block,Chalkline Education & Support Ltd,05/03/2024,500
Education & Skills,SEND (0-25),Third Party Payments,DSG - High Needs Block,Chalkline Education & Support Ltd,05/03/2024,576
Education & Skills,SEND (0-25),Third Party Payments,DSG - High Needs Block,Chalkline Education & Support Ltd,05/03/2024,720
Education & Skills,SEND (0-25),Third Party Payments,DSG - High Needs Block,Chalkline Education & Support Ltd,05/03/2024,322.5
Education & Skills,SEND (0-25),Third Party Payments,DSG - High Needs Block,ESWB Tutoring and Support Ltd,05/03/2024,520
Education & Skills,SEND (0-25),Third Party Payments,DSG - High Needs Block,Chalkline Education & Support Ltd,05/03/2024,720
Education & Skills,SEND (0-25),Third Party Payments,DSG - High Needs Block,ESWB Tutoring and Support Ltd,05/03/2024,520
Education & Skills,SEND (0-25),Third Party Payments,DSG - High Needs Block,Chalkline Education & Support Ltd,05/03/2024,720
Education & Skills,SEND (0-25),Third Party Payments,DSG - High Needs Block,ESWB Tutoring and Support Ltd,13/03/2024,570
Education & Skills,SEND (0-25),Third Party Payments,DSG - High Needs Block,ESWB Tutoring and Support Ltd,13/03/2024,624
Education & Skills,SEND (0-25),Third Party Payments,DSG - High Needs Block,ESWB Tutoring and Support Ltd,13/03/2024,780
Education & Skills,SEND (0-25),Third Party Payments,DSG - High Needs Block,Chalkline Education & Support Ltd,13/03/2024,500
Education & Skills,SEND (0-25),Third Party Payments,DSG - High Needs Block,Chalkline Education & Support Ltd,13/03/2024,337.5
Education & Skills,SEND (0-25),Third Party Payments,DSG - High Needs Block,Chalkline Education & Support Ltd,13/03/2024,720
Education & Skills,SEND (0-25),Third Party Payments,DSG - High Needs Block,Chalkline Education & Support Ltd,13/03/2024,500
Education & Skills,SEND (0-25),Premises-Related Expenditure,Hire Of Rooms,Mercure Telford Centre Hotel,25/03/2024,124.46
Education & Skills,SEND (0-25),Premises-Related Expenditure,Hire Of Rooms,Mercure Telford Centre Hotel,25/03/2024,124.46
Education & Skills,SEND (0-25),Third Party Payments,DSG - High Needs Block,ESWB Tutoring and Support Ltd,28/03/2024,456
Education & Skills,SEND (0-25),Third Party Payments,DSG - High Needs Block,ESWB Tutoring and Support Ltd,28/03/2024,285
Education & Skills,SEND (0-25),Third Party Payments,DSG - High Needs Block,ESWB Tutoring and Support Ltd,28/03/2024,456
Education & Skills,SEND (0-25),Third Party Payments,DSG - High Needs Block,ESWB Tutoring and Support Ltd,28/03/2024,520
Education & Skills,SEND (0-25),Third Party Payments,DSG - High Needs Block,ESWB Tutoring and Support Ltd,28/03/2024,520
Education & Skills,SEND (0-25),Third Party Payments,DSG - High Needs Block,ESWB Tutoring and Support Ltd,28/03/2024,520
Education & Skills,SEND (0-25),Third Party Payments,DSG - High Needs Block,ESWB Tutoring and Support Ltd,28/03/2024,456
Education & Skills,SEND (0-25),Third Party Payments,DSG - High Needs Block,ESWB Tutoring and Support Ltd,28/03/2024,624
Education & Skills,SEND (0-25),Third Party Payments,DSG - High Needs Block,ESWB Tutoring and Support Ltd,28/03/2024,780
Education & Skills,SEND (0-25),Third Party Payments,DSG - High Needs Block,ESWB Tutoring and Support Ltd,28/03/2024,570
Education & Skills,SEND (0-25),Third Party Payments,DSG - High Needs Block,ESWB Tutoring and Support Ltd,28/03/2024,456
Education & Skills,SEND (0-25),Third Party Payments,DSG - High Needs Block,ESWB Tutoring and Support Ltd,28/03/2024,285
Education & Skills,SEND (0-25),Third Party Payments,DSG - High Needs Block,ESWB Tutoring and Support Ltd,28/03/2024,456
Education & Skills,SEND (0-25),Third Party Payments,DSG - High Needs Block,ESWB Tutoring and Support Ltd,28/03/2024,520
Education & Skills,SEND (0-25),Third Party Payments,DSG - High Needs Block,ESWB Tutoring and Support Ltd,28/03/2024,520
Education & Skills,SEND (0-25),Third Party Payments,DSG - High Needs Block,ESWB Tutoring and Support Ltd,28/03/2024,416
Education & Skills,SEND (0-25),Third Party Payments,DSG - High Needs Block,ESWB Tutoring and Support Ltd,28/03/2024,780
Education & Skills,SEND (0-25),Third Party Payments,DSG - High Needs Block,ESWB Tutoring and Support Ltd,28/03/2024,285
Education & Skills,SEND (0-25),Third Party Payments,DSG - High Needs Block,ESWB Tutoring and Support Ltd,28/03/2024,520
Education & Skills,SEND (0-25),Third Party Payments,DSG - High Needs Block,ESWB Tutoring and Support Ltd,28/03/2024,456
Education & Skills,SEND (0-25),Third Party Payments,DSG - High Needs Block,ESWB Tutoring and Support Ltd,28/03/2024,624
Education & Skills,SEND (0-25),Third Party Payments,DSG - High Needs Block,Chalkline Education & Support Ltd,28/03/2024,500
Education & Skills,SEND (0-25),Third Party Payments,DSG - High Needs Block,Chalkline Education & Support Ltd,28/03/2024,337.5
Education & Skills,SEND (0-25),Third Party Payments,DSG - High Needs Block,Chalkline Education & Support Ltd,28/03/2024,720
Education & Skills,SEND (0-25),Third Party Payments,DSG - High Needs Block,Chalkline Education & Support Ltd,28/03/2024,500
Education & Skills,SEND (0-25),Third Party Payments,DSG - High Needs Block,Chalkline Education & Support Ltd,28/03/2024,500
Education & Skills,SEND (0-25),Third Party Payments,DSG - High Needs Block,Chalkline Education & Support Ltd,28/03/2024,720
Education & Skills,SEND (0-25),Third Party Payments,DSG - High Needs Block,ESWB Tutoring and Support Ltd,28/03/2024,427.5
Education & Skills,SEND (0-25),Third Party Payments,DSG - High Needs Block,ESWB Tutoring and Support Ltd,28/03/2024,520
Education & Skills,SEND (0-25),Third Party Payments,DSG - High Needs Block,ESWB Tutoring and Support Ltd,28/03/2024,520
Education & Skills,SEND (0-25),Third Party Payments,DSG - High Needs Block,ESWB Tutoring and Support Ltd,28/03/2024,416
Education & Skills,SEND (0-25),Third Party Payments,DSG - High Needs Block,Chalkline Education & Support Ltd,28/03/2024,500
Education & Skills,SEND (0-25),Third Party Payments,DSG - High Needs Block,Chalkline Education & Support Ltd,28/03/2024,150
Education & Skills,SEND (0-25),Third Party Payments,DSG - High Needs Block,Chalkline Education & Support Ltd,28/03/2024,500
Education & Skills,SEND (0-25),Third Party Payments,DSG - High Needs Block,Chalkline Education & Support Ltd,28/03/2024,337.5
Education & Skills,SEND (0-25),Third Party Payments,DSG - High Needs Block,Chalkline Education & Support Ltd,28/03/2024,264
Education & Skills,SEND (0-25),Third Party Payments,DSG - High Needs Block,Chalkline Education & Support Ltd,28/03/2024,500
Education & Skills,SEND (0-25),Third Party Payments,DSG - High Needs Block,Chalkline Education & Support Ltd,28/03/2024,150
